Nominativi dei beneficiari;Data mandato;Natura economica;Importo;Ritenute;Ritenute per IVA Split;CIG;Titolo;Macroaggregato;Descr. Macroaggregato;Liv. 3;Liv. 4;Liv. 5;Descrizione mandato;Numero mandato;TITNO_BL;2� livello;3� livello;4� livello;5� livello
KUWAIT PETROLEUM ITALIA S.P.A.;20/01/2022;Carburanti, combustibili e lubrificanti ;686,17;0,00;123,73;785073791D;1;3;Acquisto di beni e servizi;1;2;2;Liquidazione Fattura Nr. PJ04844506  del 31/12/2021 (di cui Split per euro 123,73) - Fornitura generica;8;1;3;1;2;2
KUWAIT PETROLEUM ITALIA S.P.A.;20/01/2022;Carburanti, combustibili e lubrificanti ;611,61;0,00;110,29;785073791D;1;3;Acquisto di beni e servizi;1;2;2;Liquidazione Fattura Nr. PJ04844506  del 31/12/2021 (di cui Split per euro 110,29) - Fornitura generica;9;1;3;1;2;2
KUWAIT PETROLEUM ITALIA S.P.A.;20/01/2022;Carburanti, combustibili e lubrificanti ;801,14;0,00;144,47;785073791D;1;3;Acquisto di beni e servizi;1;2;2;Liquidazione Fattura Nr. PJ04844506  del 31/12/2021 (di cui Split per euro 144,47) - Fornitura generica;10;1;3;1;2;2
ACQUE S.P.A.;20/01/2022;Acqua;390,49;0,00;35,50;;1;3;Acquisto di beni e servizi;2;5;5;Liquidazione Fattura Nr. 6021012000015049  del 07/12/2021 (di cui Split per euro 35,50) - Fornitura generica;41;1;3;2;5;5
ACQUE S.P.A.;20/01/2022;Acqua;35,51;0,00;3,08;;1;3;Acquisto di beni e servizi;2;5;5;Liquidazione Fattura Nr. 6021012000015113  del 09/12/2021 (di cui Split per euro 3,08) - Fornitura generica;62;1;3;2;5;5
ACQUE S.P.A.;20/01/2022;Acqua;3,14;0,00;0,28;;1;3;Acquisto di beni e servizi;2;5;5;Liquidazione Fattura Nr. 6021012000015116  del 09/12/2021 (di cui Split per euro 0,28) - Fornitura generica;63;1;3;2;5;5
ACQUE S.P.A.;20/01/2022;Acqua;16,73;0,00;1,14;;1;3;Acquisto di beni e servizi;2;5;5;Liquidazione Fattura Nr. 6021012000015114  del 09/12/2021 (di cui Split per euro 1,14) - Fornitura generica;64;1;3;2;5;5
ACQUE S.P.A.;20/01/2022;Acqua;30,75;0,00;2,71;;1;3;Acquisto di beni e servizi;2;5;5;Liquidazione Fattura Nr. 6021012000015115  del 09/12/2021 (di cui Split per euro 2,71) - Fornitura generica;65;1;3;2;5;5
ACQUE S.P.A.;20/01/2022;Acqua;25,94;0,00;2,27;;1;3;Acquisto di beni e servizi;2;5;5;Liquidazione Fattura Nr. 6021012000015194  del 10/12/2021 (di cui Split per euro 2,27) - Fornitura generica;66;1;3;2;5;5
ACQUE S.P.A.;20/01/2022;Acqua;0,57;0,00;0,05;;1;3;Acquisto di beni e servizi;2;5;5;Liquidazione Fattura Nr. 6021012000015195  del 10/12/2021 (di cui Split per euro 0,05) - Fornitura generica;67;1;3;2;5;5
ACQUE S.P.A.;20/01/2022;Acqua;36,03;0,00;3,19;;1;3;Acquisto di beni e servizi;2;5;5;Liquidazione Fattura Nr. 6021012000015254  del 13/12/2021 (di cui Split per euro 3,19) - Fornitura generica;68;1;3;2;5;5
ACQUE S.P.A.;20/01/2022;Acqua;31,70;0,00;3,19;;1;3;Acquisto di beni e servizi;2;5;5;Liquidazione Fattura Nr. 6021012000015255  del 13/12/2021 (di cui Split per euro 3,19) - Fornitura generica;69;1;3;2;5;5
ACQUE S.P.A.;20/01/2022;Acqua;13,04;0,00;1,19;;1;3;Acquisto di beni e servizi;2;5;5;Liquidazione Fattura Nr. 6021012000015329  del 14/12/2021 (di cui Split per euro 1,19) - Fornitura generica;93;1;3;2;5;5
ACQUE S.P.A.;20/01/2022;Acqua;484,75;0,00;44,07;;1;3;Acquisto di beni e servizi;2;5;5;Liquidazione Fattura Nr. 6021012000015222  del 13/12/2021 (di cui Split per euro 44,07) - Fornitura generica;57;1;3;2;5;5
ACQUE S.P.A.;20/01/2022;Acqua;196,02;0,00;17,82;;1;3;Acquisto di beni e servizi;2;5;5;Liquidazione Fattura Nr. 6021012000015222  del 13/12/2021 (di cui Split per euro 17,82) - Fornitura generica;92;1;3;2;5;5
ACQUE S.P.A.;20/01/2022;Acqua;1,12;0,00;0,09;;1;3;Acquisto di beni e servizi;2;5;5;Liquidazione Fattura Nr. 6021012000015431  del 16/12/2021 (di cui Split per euro 0,09) - Fornitura generica;71;1;3;2;5;5
ACQUE S.P.A.;20/01/2022;Acqua;9,90;0,00;0,89;;1;3;Acquisto di beni e servizi;2;5;5;Liquidazione Fattura Nr. 6021012000015433  del 16/12/2021 (di cui Split per euro 0,89) - Fornitura generica;72;1;3;2;5;5
ACQUE S.P.A.;20/01/2022;Acqua;249,01;0,00;22,64;;1;3;Acquisto di beni e servizi;2;5;5;Liquidazione Fattura Nr. 6021012000015403  del 15/12/2021 (di cui Split per euro 22,64) - Fornitura generica;73;1;3;2;5;5
ACQUE S.P.A.;20/01/2022;Acqua;35,00;0,00;3,18;;1;3;Acquisto di beni e servizi;2;5;5;Liquidazione Fattura Nr. 6021012000015403  del 15/12/2021 (di cui Split per euro 3,18) - Fornitura generica;95;1;3;2;5;5
ACQUE S.P.A.;20/01/2022;Acqua;5,52;0,00;0,50;;1;3;Acquisto di beni e servizi;2;5;5;Liquidazione Fattura Nr. 6021012000015435  del 16/12/2021 (di cui Split per euro 0,50) - Fornitura generica;96;1;3;2;5;5
ACQUE S.P.A.;20/01/2022;Acqua;40,51;0,00;3,68;;1;3;Acquisto di beni e servizi;2;5;5;Liquidazione Fattura Nr. 6021012000015440  del 16/12/2021 (di cui Split per euro 3,68) - Fornitura generica;32;1;3;2;5;5
ACQUE S.P.A.;20/01/2022;Acqua;59,23;0,00;5,26;;1;3;Acquisto di beni e servizi;2;5;5;Liquidazione Fattura Nr. 6021012000015438  del 16/12/2021 (di cui Split per euro 5,26) - Fornitura generica;70;1;3;2;5;5
ACQUE S.P.A.;20/01/2022;Acqua;434,92;0,00;39,53;;1;3;Acquisto di beni e servizi;2;5;5;Liquidazione Fattura Nr. 6021012000015432  del 16/12/2021 (di cui Split per euro 39,53) - Fornitura generica;79;1;3;2;5;5
ACQUE S.P.A.;20/01/2022;Acqua;0,26;0,00;0,02;;1;3;Acquisto di beni e servizi;2;5;5;Liquidazione Fattura Nr. 6021012000015404  del 15/12/2021 (di cui Split per euro 0,02) - Fornitura generica;80;1;3;2;5;5
ACQUE S.P.A.;20/01/2022;Acqua;14,31;0,00;1,29;;1;3;Acquisto di beni e servizi;2;5;5;Liquidazione Fattura Nr. 6021012000015436  del 16/12/2021 (di cui Split per euro 1,29) - Fornitura generica;81;1;3;2;5;5
ACQUE S.P.A.;20/01/2022;Acqua;1,09;0,00;0,10;;1;3;Acquisto di beni e servizi;2;5;5;Liquidazione Fattura Nr. 6021012000015429  del 16/12/2021 (di cui Split per euro 0,10) - Fornitura generica;50;1;3;2;5;5
ACQUE S.P.A.;20/01/2022;Acqua;62,52;0,00;5,68;;1;3;Acquisto di beni e servizi;2;5;5;Liquidazione Fattura Nr. 6021012000015402  del 15/12/2021 (di cui Split per euro 5,68) - Fornitura generica;75;1;3;2;5;5
ACQUE S.P.A.;20/01/2022;Acqua;0,26;0,00;0,02;;1;3;Acquisto di beni e servizi;2;5;5;Liquidazione Fattura Nr. 6021012000015437  del 16/12/2021 (di cui Split per euro 0,02) - Fornitura generica;31;1;3;2;5;5
ACQUE S.P.A.;20/01/2022;Acqua;7,66;0,00;0,70;;1;3;Acquisto di beni e servizi;2;5;5;Liquidazione Fattura Nr. 6021012000015500  del 17/12/2021 (di cui Split per euro 0,70) - Fornitura generica;77;1;3;2;5;5
ACQUE S.P.A.;20/01/2022;Acqua;45,24;0,00;4,10;;1;3;Acquisto di beni e servizi;2;5;5;Liquidazione Fattura Nr. 6021012000015509  del 17/12/2021 (di cui Split per euro 4,10) - Fornitura generica;78;1;3;2;5;5
ACQUE S.P.A.;20/01/2022;Acqua;531,20;0,00;48,30;;1;3;Acquisto di beni e servizi;2;5;5;Liquidazione Fattura Nr. 6021012000015488  del 17/12/2021 (di cui Split per euro 48,30) - Fornitura generica;83;1;3;2;5;5
ACQUE S.P.A.;20/01/2022;Acqua;351,40;0,00;31,94;;1;3;Acquisto di beni e servizi;2;5;5;Liquidazione Fattura Nr. 6021012000015488  del 17/12/2021 (di cui Split per euro 31,94) - Fornitura generica;76;1;3;2;5;5
ACQUE S.P.A.;20/01/2022;Acqua;9,58;0,00;0,52;;1;3;Acquisto di beni e servizi;2;5;5;Liquidazione Fattura Nr. 6021012000015552  del 17/12/2021 (di cui Split per euro 0,52) - Fornitura generica;98;1;3;2;5;5
ACQUE S.P.A.;20/01/2022;Acqua;1,31;0,00;0,12;;1;3;Acquisto di beni e servizi;2;5;5;Liquidazione Fattura Nr. 6021012000015546  del 17/12/2021 (di cui Split per euro 0,12) - Fornitura generica;61;1;3;2;5;5
ACQUE S.P.A.;20/01/2022;Acqua;180,53;0,00;16,41;;1;3;Acquisto di beni e servizi;2;5;5;Liquidazione Fattura Nr. 6021012000015507  del 17/12/2021 (di cui Split per euro 16,41) - Fornitura generica;47;1;3;2;5;5
ACQUE S.P.A.;20/01/2022;Acqua;18,68;0,00;1,69;;1;3;Acquisto di beni e servizi;2;5;5;Liquidazione Fattura Nr. 6021012000015501  del 17/12/2021 (di cui Split per euro 1,69) - Fornitura generica;56;1;3;2;5;5
ACQUE S.P.A.;20/01/2022;Acqua;10,10;0,00;0,92;;1;3;Acquisto di beni e servizi;2;5;5;Liquidazione Fattura Nr. 6021012000015619  del 20/12/2021 (di cui Split per euro 0,92) - Fornitura generica;97;1;3;2;5;5
ACQUE S.P.A.;20/01/2022;Acqua;1,69;0,00;0,10;;1;3;Acquisto di beni e servizi;2;5;5;Liquidazione Fattura Nr. 6021012000015625  del 20/12/2021 (di cui Split per euro 0,10) - Fornitura generica;74;1;3;2;5;5
ACQUE S.P.A.;20/01/2022;Acqua;48,30;0,00;4,31;;1;3;Acquisto di beni e servizi;2;5;5;Liquidazione Fattura Nr. 6021012000015674  del 21/12/2021 (di cui Split per euro 4,31) - Fornitura generica;91;1;3;2;5;5
ACQUE S.P.A.;20/01/2022;Acqua;1.345,27;0,00;122,26;;1;3;Acquisto di beni e servizi;2;5;5;Liquidazione Fattura Nr. 6021012000015726  del 21/12/2021 (di cui Split per euro 122,26) - Fornitura generica;40;1;3;2;5;5
ACQUE S.P.A.;20/01/2022;Acqua;741,94;0,00;67,44;;1;3;Acquisto di beni e servizi;2;5;5;Liquidazione Fattura Nr. 6021012000015726  del 21/12/2021 (di cui Split per euro 67,44) - Fornitura generica;45;1;3;2;5;5
ACQUE S.P.A.;20/01/2022;Acqua;15,43;0,00;1,39;;1;3;Acquisto di beni e servizi;2;5;5;Liquidazione Fattura Nr. 6021012000015675  del 21/12/2021 (di cui Split per euro 1,39) - Fornitura generica;36;1;3;2;5;5
ACQUE S.P.A.;20/01/2022;Acqua;10,91;0,00;0,97;;1;3;Acquisto di beni e servizi;2;5;5;Liquidazione Fattura Nr. 6021012000015676  del 21/12/2021 (di cui Split per euro 0,97) - Fornitura generica;37;1;3;2;5;5
ACQUE S.P.A.;20/01/2022;Acqua;9,93;0,00;0,89;;1;3;Acquisto di beni e servizi;2;5;5;Liquidazione Fattura Nr. 6021012000015741  del 22/12/2021 (di cui Split per euro 0,89) - Fornitura generica;38;1;3;2;5;5
ACQUE S.P.A.;20/01/2022;Acqua;29,28;0,00;2,64;;1;3;Acquisto di beni e servizi;2;5;5;Liquidazione Fattura Nr. 6021012000015741  del 22/12/2021 (di cui Split per euro 2,64) - Fornitura generica;39;1;3;2;5;5
ACQUE S.P.A.;20/01/2022;Acqua;458,00;0,00;41,64;;1;3;Acquisto di beni e servizi;2;5;5;Liquidazione Fattura Nr. 6021012000015736  del 22/12/2021 (di cui Split per euro 41,64) - Fornitura generica;100;1;3;2;5;5
ACQUE S.P.A.;20/01/2022;Acqua;566,57;0,00;51,50;;1;3;Acquisto di beni e servizi;2;5;5;Liquidazione Fattura Nr. 6021012000015736  del 22/12/2021 (di cui Split per euro 51,50) - Fornitura generica;46;1;3;2;5;5
ACQUE S.P.A.;20/01/2022;Acqua;90,40;0,00;8,22;;1;3;Acquisto di beni e servizi;2;5;5;Liquidazione Fattura Nr. 6021012000015736  del 22/12/2021 (di cui Split per euro 8,22) - Fornitura generica;99;1;3;2;5;5
ACQUE S.P.A.;20/01/2022;Acqua;30,04;0,00;2,73;;1;3;Acquisto di beni e servizi;2;5;5;Liquidazione Fattura Nr. 6021012000015736  del 22/12/2021 (di cui Split per euro 2,73) - Fornitura generica;90;1;3;2;5;5
ACQUE S.P.A.;20/01/2022;Acqua;3,53;0,00;0,31;;1;3;Acquisto di beni e servizi;2;5;5;Liquidazione Fattura Nr. 6021012000015765  del 22/12/2021 (di cui Split per euro 0,31) - Fornitura generica;7;1;3;2;5;5
ACQUE S.P.A.;20/01/2022;Acqua;176,84;0,00;16,08;;1;3;Acquisto di beni e servizi;2;5;5;Liquidazione Fattura Nr. 6021012000015765  del 22/12/2021 (di cui Split per euro 16,08) - Fornitura generica;12;1;3;2;5;5
ACQUE S.P.A.;20/01/2022;Acqua;64,02;0,00;5,83;;1;3;Acquisto di beni e servizi;2;5;5;Liquidazione Fattura Nr. 6021012000015765  del 22/12/2021 (di cui Split per euro 5,83) - Fornitura generica;13;1;3;2;5;5
ACQUE S.P.A.;20/01/2022;Acqua;39,46;0,00;3,58;;1;3;Acquisto di beni e servizi;2;5;5;Liquidazione Fattura Nr. 6021012000015765  del 22/12/2021 (di cui Split per euro 3,58) - Fornitura generica;14;1;3;2;5;5
ACQUE S.P.A.;20/01/2022;Acqua;226,50;0,00;20,59;;1;3;Acquisto di beni e servizi;2;5;5;Liquidazione Fattura Nr. 6021012000015765  del 22/12/2021 (di cui Split per euro 20,59) - Fornitura generica;16;1;3;2;5;5
ACQUE S.P.A.;20/01/2022;Acqua;55,49;0,00;5,05;;1;3;Acquisto di beni e servizi;2;5;5;Liquidazione Fattura Nr. 6021012000015765  del 22/12/2021 (di cui Split per euro 5,05) - Fornitura generica;17;1;3;2;5;5
ACQUE S.P.A.;20/01/2022;Acqua;1.880,71;0,00;170,97;;1;3;Acquisto di beni e servizi;2;5;5;Liquidazione Fattura Nr. 6021012000015765  del 22/12/2021 (di cui Split per euro 170,97) - Fornitura generica;18;1;3;2;5;5
EDISON ENERGIA S.P.A.;20/01/2022;Energia elettrica;1.112,10;0,00;200,54;8498487554;1;3;Acquisto di beni e servizi;2;5;4;Bonifico a favore di Edison energia S.P.A. Liquidazione Fattura Nr. 5751314000  del 13/12/2021 (di cui Split per euro 200,54) - IT001E04919528;53;1;3;2;5;4
EDISON ENERGIA S.P.A.;20/01/2022;Energia elettrica;19,13;0,00;3,45;8498487554;1;3;Acquisto di beni e servizi;2;5;4;Bonifico a favore di Edison energia S.P.A.Liquidazione Fattura Nr. 5751325029  del 13/12/2021 (di cui Split per euro 3,45) - IT001E04919526;82;1;3;2;5;4
EDISON ENERGIA S.P.A.;20/01/2022;Energia elettrica;26,97;0,00;4,86;8498487554;1;3;Acquisto di beni e servizi;2;5;4;Bonifico a favore di Edison energia S.P.A.Liquidazione Fattura Nr. 5751323839  del 13/12/2021 (di cui Split per euro 4,86) - IT001E41398842;87;1;3;2;5;4
EDISON ENERGIA S.P.A.;20/01/2022;Energia elettrica;46,56;0,00;8,40;8498487554;1;3;Acquisto di beni e servizi;2;5;4;Bonifico a favore di Edison energia S.P.A. Liquidazione Fattura Nr. 5751322206  del 13/12/2021 (di cui Split per euro 8,40) - IT001E04919543;35;1;3;2;5;4
EDISON ENERGIA S.P.A.;20/01/2022;Energia elettrica;14,76;0,00;2,66;8498487554;1;3;Acquisto di beni e servizi;2;5;4;Bonifico a favore di Edison energia S.P.A. Liquidazione Fattura Nr. 5751325626  del 13/12/2021 (di cui Split per euro 2,66) - IT001E41741369;27;1;3;2;5;4
EDISON ENERGIA S.P.A.;20/01/2022;Energia elettrica;296,92;0,00;53,54;8498487554;1;3;Acquisto di beni e servizi;2;5;4;Bonifico a favore di Edison energia S.P.A.Liquidazione Fattura Nr. 5751317087  del 13/12/2021 (di cui Split per euro 53,54) - IT001E04919524;28;1;3;2;5;4
EDISON ENERGIA S.P.A.;20/01/2022;Energia elettrica;355,50;0,00;64,11;8498487554;1;3;Acquisto di beni e servizi;2;5;4;Bonifico a favore di Edison energia S.P.A. Liquidazione Fattura Nr. 5751316557  del 13/12/2021 (di cui Split per euro 64,11) - IT001E40889726;55;1;3;2;5;4
EDISON ENERGIA S.P.A.;20/01/2022;Energia elettrica;136,16;0,00;24,55;8498487554;1;3;Acquisto di beni e servizi;2;5;4;Bonifico a favore di Edison energia S.P.A. Liquidazione Fattura Nr. 5751319141  del 13/12/2021 (di cui Split per euro 24,55) - IT001E04919519;29;1;3;2;5;4
EDISON ENERGIA S.P.A.;20/01/2022;Energia elettrica;718,62;0,00;129,59;8498487554;1;3;Acquisto di beni e servizi;2;5;4;Bonifico a favore di Edison energia S.P.A.Liquidazione Fattura Nr. 5751314821  del 13/12/2021 (di cui Split per euro 129,59) - IT001E40886806;49;1;3;2;5;4
EDISON ENERGIA S.P.A.;20/01/2022;Energia elettrica;450,49;0,00;81,24;8498487554;1;3;Acquisto di beni e servizi;2;5;4;Bonifico a favore di Edison energia S.P.A. Liquidazione Fattura Nr. 5751315925  del 13/12/2021 (di cui Split per euro 81,24) - IT001E04919534;101;1;3;2;5;4
EDISON ENERGIA S.P.A.;20/01/2022;Energia elettrica;254,99;0,00;45,98;8498487554;1;3;Acquisto di beni e servizi;2;5;4;Bonifico a favore di Edison energia S.P.A. Liquidazione Fattura Nr. 5751317511  del 13/12/2021 (di cui Split per euro 45,98) - IT001E04919536;30;1;3;2;5;4
EDISON ENERGIA S.P.A.;20/01/2022;Energia elettrica;1.281,76;0,00;231,14;8498487554;1;3;Acquisto di beni e servizi;2;5;4;Bonifico a favore di Edison energia S.P.A. Liquidazione Fattura Nr. 5751313747  del 13/12/2021 (di cui Split per euro 231,14) - IT001E04919531;52;1;3;2;5;4
EDISON ENERGIA S.P.A.;20/01/2022;Energia elettrica;1.307,72;0,00;235,82;8498487554;1;3;Acquisto di beni e servizi;2;5;4;Bonifico a favore di Edison energia S.P.A. Liquidazione Fattura Nr. 5751313723  del 13/12/2021 (di cui Split per euro 235,82) - IT001E04919523;19;1;3;2;5;4
EDISON ENERGIA S.P.A.;20/01/2022;Energia elettrica;370,28;0,00;66,77;8498487554;1;3;Acquisto di beni e servizi;2;5;4;Bonifico a favore di Edison energia S.P.A. Liquidazione Fattura Nr. 5751316443  del 13/12/2021 (di cui Split per euro 66,77) - IT001E04919521;51;1;3;2;5;4
EDISON ENERGIA S.P.A.;20/01/2022;Energia elettrica;705,50;0,00;127,22;8498487554;1;3;Acquisto di beni e servizi;2;5;4;Bonifico a favore di Edison energia S.P.A.Liquidazione Fattura Nr. 5751314868  del 13/12/2021 (di cui Split per euro 127,22) - IT001E04919520;48;1;3;2;5;4
EDISON ENERGIA S.P.A.;20/01/2022;Energia elettrica;29,39;0,00;5,30;8498487554;1;3;Acquisto di beni e servizi;2;5;4;Bonifico a favore di Edison energia S.P.A. Liquidazione Fattura Nr. 5751323609  del 13/12/2021 (di cui Split per euro 5,30) - IT001E43232057;85;1;3;2;5;4
EDISON ENERGIA S.P.A.;20/01/2022;Energia elettrica;139,85;0,00;25,22;8498487554;1;3;Acquisto di beni e servizi;2;5;4;Bonifico a favore di Edison energia S.P.A. Liquidazione Fattura Nr. 5751319073  del 13/12/2021 (di cui Split per euro 25,22) - IT001E04919525;20;1;3;2;5;4
EDISON ENERGIA S.P.A.;20/01/2022;Energia elettrica;29,29;0,00;5,28;8498487554;1;3;Acquisto di beni e servizi;2;5;4;Bonifico a favore di Edison energia S.P.A.Liquidazione Fattura Nr. 5751323614  del 13/12/2021 (di cui Split per euro 5,28) - IT001E43263124;84;1;3;2;5;4
EDISON ENERGIA S.P.A.;20/01/2022;Energia elettrica;27,82;0,00;5,02;8498487554;1;3;Acquisto di beni e servizi;2;5;4;Bonifico a favore di Edison energia S.P.A. Liquidazione Fattura Nr. 5751323746  del 13/12/2021 (di cui Split per euro 5,02) - IT001E04919518;33;1;3;2;5;4
EDISON ENERGIA S.P.A.;20/01/2022;Energia elettrica;34,82;0,00;6,28;8498487554;1;3;Acquisto di beni e servizi;2;5;4;Bonifico a favore di Edison energia S.P.A. Liquidazione Fattura Nr. 5751323065  del 13/12/2021 (di cui Split per euro 6,28) - IT001E04919532;21;1;3;2;5;4
EDISON ENERGIA S.P.A.;20/01/2022;Energia elettrica;18,02;0,00;3,25;8498487554;1;3;Acquisto di beni e servizi;2;5;4;Bonifico a favore di Edison energia S.P.A.Liquidazione Fattura Nr. 5751325169  del 13/12/2021 (di cui Split per euro 3,25) - IT001E43232056;86;1;3;2;5;4
EDISON ENERGIA S.P.A.;20/01/2022;Energia elettrica;54,40;0,00;9,81;8498487554;1;3;Acquisto di beni e servizi;2;5;4;Bonifico a favore di Edison energia S.P.A.Liquidazione Fattura Nr. 5751321726  del 13/12/2021 (di cui Split per euro 9,81) - IT001E04919517;22;1;3;2;5;4
EDISON ENERGIA S.P.A.;20/01/2022;Energia elettrica;24,80;0,00;4,47;8498487554;1;3;Acquisto di beni e servizi;2;5;4;Bonifico a favore di Edison energia S.P.A. Liquidazione Fattura Nr. 5751324088  del 13/12/2021 (di cui Split per euro 4,47) - IT001E04919530;23;1;3;2;5;4
EDISON ENERGIA S.P.A.;20/01/2022;Energia elettrica;62,02;0,00;11,18;8498487554;1;3;Acquisto di beni e servizi;2;5;4;Bonifico a favore di Edison energia S.P.A. Liquidazione Fattura Nr. 5751321345  del 13/12/2021 (di cui Split per euro 11,18) - IT001E04919527;24;1;3;2;5;4
EDISON ENERGIA S.P.A.;20/01/2022;Energia elettrica;11,05;0,00;1,99;8498487554;1;3;Acquisto di beni e servizi;2;5;4;Bonifico a favore di Edison energia S.P.A. Liquidazione Fattura Nr. 5751326676  del 13/12/2021 (di cui Split per euro 1,99) - IT001E04919533;25;1;3;2;5;4
EDISON ENERGIA S.P.A.;20/01/2022;Energia elettrica;99,70;0,00;17,98;8498487554;1;3;Acquisto di beni e servizi;2;5;4;Bonifico a favore di Edison energia S.P.A. Liquidazione Fattura Nr. 5751317569  del 13/12/2021 (di cui Split per euro 17,98) - IT001E04919544;88;1;3;2;5;4
EDISON ENERGIA S.P.A.;20/01/2022;Energia elettrica;149,55;0,00;26,97;8498487554;1;3;Acquisto di beni e servizi;2;5;4;Bonifico a favore di Edison energia S.P.A. Liquidazione Fattura Nr. 5751317569  del 13/12/2021 (di cui Split per euro 26,97) - IT001E04919544;89;1;3;2;5;4
EDISON ENERGIA S.P.A.;20/01/2022;Energia elettrica;11,46;0,00;2,07;8498487554;1;3;Acquisto di beni e servizi;2;5;4;Bonifico a favore di Edison energia S.P.A. Liquidazione Fattura Nr. 5751326383  del 13/12/2021 (di cui Split per euro 2,07) - IT001E40889318;26;1;3;2;5;4
EDISON ENERGIA S.P.A.;20/01/2022;Energia elettrica;11,05;0,00;1,99;8498487554;1;3;Acquisto di beni e servizi;2;5;4;Bonifico a favore di Edison energia S.P.A. Liquidazione Fattura Nr. 5751326670  del 13/12/2021 (di cui Split per euro 1,99) - IT001E04919522;34;1;3;2;5;4
EDISON ENERGIA S.P.A.;20/01/2022;Energia elettrica;176,26;0,00;31,78;8498487554;1;3;Acquisto di beni e servizi;2;5;4;Bonifico a favore di Edison energia S.P.A. Liquidazione Fattura Nr. 5751315995  del 13/12/2021 (di cui Split per euro 31,78) - IT001E41412665;58;1;3;2;5;4
EDISON ENERGIA S.P.A.;20/01/2022;Energia elettrica;264,38;0,00;47,68;8498487554;1;3;Acquisto di beni e servizi;2;5;4;Bonifico a favore di Edison energia S.P.A. Liquidazione Fattura Nr. 5751315995  del 13/12/2021 (di cui Split per euro 47,68) - IT001E41412665;59;1;3;2;5;4
EDISON ENERGIA S.P.A.;20/01/2022;Energia elettrica;890,25;0,00;160,54;8498487554;1;3;Acquisto di beni e servizi;2;5;4;Bonifico a favore di Edison energia S.P.A. Liquidazione Fattura Nr. 5751314396  del 13/12/2021 (di cui Split per euro 160,54) - IT001E04919516;44;1;3;2;5;4
EDISON ENERGIA S.P.A.;20/01/2022;Energia elettrica;582,05;0,00;104,96;8498487554;1;3;Acquisto di beni e servizi;2;5;4;Bonifico a favore di Edison energia S.P.A.Liquidazione Fattura Nr. 5751315290  del 13/12/2021 (di cui Split per euro 104,96) - IT001E04919538;42;1;3;2;5;4
EDISON ENERGIA S.P.A.;20/01/2022;Energia elettrica;664,07;0,00;119,75;8498487554;1;3;Acquisto di beni e servizi;2;5;4;Bonifico a favore di Edison energia S.P.A. Liquidazione Fattura Nr. 5751315004  del 13/12/2021 (di cui Split per euro 119,75) - IT001E43445285;60;1;3;2;5;4
EDISON ENERGIA S.P.A.;20/01/2022;Energia elettrica;206,01;0,00;37,15;8498487554;1;3;Acquisto di beni e servizi;2;5;4;Bonifico a favore di Edison energia S.P.A. Liquidazione Fattura Nr. 5751318064  del 13/12/2021 (di cui Split per euro 37,15) - IT001E04919529;54;1;3;2;5;4
EDISON ENERGIA S.P.A.;20/01/2022;Energia elettrica;148,25;0,00;26,73;8498487554;1;3;Acquisto di beni e servizi;2;5;4;Bonifico a favore di Edison energia S.P.A.Liquidazione Fattura Nr. 5751318915  del 13/12/2021 (di cui Split per euro 26,73) - IT001E04919515;43;1;3;2;5;4
EDISON ENERGIA S.P.A.;20/01/2022;Energia elettrica;76,16;0,00;13,73;8498487554;1;3;Acquisto di beni e servizi;2;5;4;Bonifico a favore di Edison energia S.P.A.Liquidazione Fattura Nr. 5751320735  del 13/12/2021 (di cui Split per euro 13,73) - IT001E04919540;94;1;3;2;5;4
EDISON ENERGIA S.P.A.;20/01/2022;Gas;334,57;0,00;15,92;89162702C5;1;3;Acquisto di beni e servizi;2;5;6;Bonifico a favore di EDISON ENERGIA SPA- Liquidazione Fattura Nr. 5950249695  del 17/12/2021 (di cui Split per euro 15,92) - 15104203728332;11;1;3;2;5;6
EDISON ENERGIA S.P.A.;20/01/2022;Gas;1.154,70;0,00;55,00;89162702C5;1;3;Acquisto di beni e servizi;2;5;6;Bonifico a favore di EDISON ENERGIA SPA- Liquidazione Fattura Nr. 5950249695  del 17/12/2021 (di cui Split per euro 55,00) - 15104203728332;107;1;3;2;5;6
EDISON ENERGIA S.P.A.;20/01/2022;Gas;1.244,23;0,00;59,26;89162702C5;1;3;Acquisto di beni e servizi;2;5;6;Bonifico a favore di EDISON ENERGIA SPA - Liquidazione Fattura Nr. 5950249791  del 17/12/2021 (di cui Split per euro 59,26) - 15104203730640;102;1;3;2;5;6
EDISON ENERGIA S.P.A.;20/01/2022;Gas;17,47;0,00;0,82;89162702C5;1;3;Acquisto di beni e servizi;2;5;6;Bonifico a favore di EDISON ENERGIA SPA-  Liquidazione Fattura Nr. 5950249791  del 17/12/2021 (di cui Split per euro 0,82) - 15104203730640;108;1;3;2;5;6
EDISON ENERGIA S.P.A.;20/01/2022;Gas;1.438,21;0,00;68,49;89162702C5;1;3;Acquisto di beni e servizi;2;5;6;Bonifico a favore di EDISON ENERGIA SPA - Liquidazione Fattura Nr. 5950249560  del 17/12/2021 (di cui Split per euro 68,49) - 15104203730554;109;1;3;2;5;6
ESTRA ENERGIE S.R.L.;20/01/2022;Gas;12,47;0,00;2,25;8446599200;1;3;Acquisto di beni e servizi;2;5;6;Liquidazione Fattura Nr. 211903036716  del 22/12/2021 (di cui Split per euro 2,25) - PRESA D'ATTO ESITO GARA FORNITURA DI GAS METANO PER L'ANNO TERMICO 2020/2021 E IMPEGNO DELLE SOMME PER IL RELATIVO PAGAMENTO ALLA DITTA AGGIUDICATARIA ESTR;105;1;3;2;5;6
ESTRA ENERGIE S.R.L.;20/01/2022;Gas;18,70;0,00;3,37;8446599200;1;3;Acquisto di beni e servizi;2;5;6;Liquidazione Fattura Nr. 211903036716  del 22/12/2021 (di cui Split per euro 3,37) - PRESA D'ATTO ESITO GARA FORNITURA DI GAS METANO PER L'ANNO TERMICO 2020/2021 E IMPEGNO DELLE SOMME PER IL RELATIVO PAGAMENTO ALLA DITTA AGGIUDICATARIA ESTR;106;1;3;2;5;6
V.A.B. VIGILANZA ANTICENDI BOSCHIVI;20/01/2022;Altri servizi diversi n.a.c.;9.000,00;0,00;0,00;;1;3;Acquisto di beni e servizi;2;99;999;attivit� integrative e di supporto a servizi di pubblico interesse del comune di Vinci anni 2021-22-23_2�semestre 2021;15;1;3;2;99;999
CINELLI TACITO E GABBANINI DIANA;20/01/2022;Locazione di beni immobili;1.677,47;0,00;0,00;;1;3;Acquisto di beni e servizi;2;7;1;canone locazione immobile via Fucini angolo via Rossi-parte adibita a biblioteca civica-1�trimestre 2022;6;1;3;2;7;1
A2A ENERGIA SPA;20/01/2022;Energia elettrica;33.289,39;0,00;6.003,00;8498237705;1;3;Acquisto di beni e servizi;2;5;4;Liquidazione Fattura Nr. 821000419199  del 28/12/2021 (di cui Split per euro 6.003,00) - FORNITURA ENERGIA ELETTRICA periodo: 01.07.2021-30.11.2021 kWh 195940 Importi al netto della ritenuta di garanzia del 0,5% ai sensi art.4 D.P.R.207/20;104;1;3;2;5;4
A2A ENERGIA SPA;20/01/2022;Energia elettrica;102,01;0,00;18,40;8498237705;1;3;Acquisto di beni e servizi;2;5;4;Liquidazione Fattura Nr. 821000413953  del 28/12/2021 (di cui Split per euro 18,40) - FORNITURA ENERGIA ELETTRICA periodo: 01.11.2021-30.11.2021 POD IT001E40095287 Contatore 000000000000446296 kWh 817 Importi al netto della ritenuta di gara;103;1;3;2;5;4
L'ELETTRICA S.P.A.;21/01/2022;Altri beni e materiali di consumo n.a.c.;58,28;0,00;10,51;Z7132D43BD;1;3;Acquisto di beni e servizi;1;2;999;Liquidazione Fattura Nr. 21/000502/PA  del 29/10/2021 (di cui Split per euro 10,51) - fornitura materiale elettrico;129;1;3;1;2;999
L'ELETTRICA S.P.A.;21/01/2022;Altri beni e materiali di consumo n.a.c.;400,00;0,00;72,13;Z7132D43BD;1;3;Acquisto di beni e servizi;1;2;999;Liquidazione Fattura Nr. 21/000502/PA  del 29/10/2021 (di cui Split per euro 72,13) - fornitura materiale elettrico;122;1;3;1;2;999
ROCA'S SAS IMPIANTI ELETTRICI DI GRANIERO R. & C.;21/01/2022;Manutenzione ordinaria e riparazioni di impianti e macchinari;634,92;0,00;114,49;Z5532BE7F8;1;3;Acquisto di beni e servizi;2;9;4;Liquidazione Fattura Nr. 000120PA  del 31/10/2021 (di cui Split per euro 114,49) - INTERVENTI SU QUADRO DI COMANDO DELLA PUBBLICA ILLUMINAZIONE IN VIA VAL DI SOLE E SULLA CISTERNA PRESSO IL CAMPO SPORTIVO DI VINCI;125;1;3;2;9;4
ROCA'S SAS IMPIANTI ELETTRICI DI GRANIERO R. & C.;21/01/2022;Manutenzione ordinaria e riparazioni di impianti e macchinari;267,88;0,00;48,31;Z5532BE7F8;1;3;Acquisto di beni e servizi;2;9;4;Liquidazione Fattura Nr. 000120PA  del 31/10/2021 (di cui Split per euro 48,31) - INTERVENTI SU QUADRO DI COMANDO DELLA PUBBLICA ILLUMINAZIONE IN VIA VAL DI SOLE E SULLA CISTERNA PRESSO IL CAMPO SPORTIVO DI VINCI;126;1;3;2;9;4
GIGLIOLI PIATTAFORME DI GIGLIOLI ANTONIO & C. S.A.S.;21/01/2022;Altre spese sostenute per utilizzo di beni di terzi n.a.c.;919,88;0,00;165,88;ZF23248E9B;1;3;Acquisto di beni e servizi;2;7;999;Liquidazione Fattura Nr. 1840  del 31/10/2021 (di cui Split per euro 165,88) - noleggio piattaforma aerea;128;1;3;2;7;999
GIGLIOLI PIATTAFORME DI GIGLIOLI ANTONIO & C. S.A.S.;21/01/2022;Noleggi di impianti e macchinari;251,32;0,00;45,32;Z1A2C5BCC5;1;3;Acquisto di beni e servizi;2;7;8;Liquidazione Fattura Nr. 1839  del 31/10/2021 (di cui Split per euro 45,32) - noleggio piattaforma aerea;127;1;3;2;7;8
ETRURIA P.A. SRL;21/01/2022;Accesso a banche dati e a pubblicazioni on line;732,00;0,00;132,00;Z2D34054D0;1;3;Acquisto di beni e servizi;2;5;3;Liquidazione Fattura Nr. 2388/00000  del 20/12/2021 (di cui Split per euro 132,00) - Abbonamento Enti on Line 2022;110;1;3;2;5;3
GENERALI ITALIA SPA;21/01/2022;Altri premi di assicurazione contro i danni;630,50;0,00;0,00;Z6B3216792;1;10;Altre spese correnti;4;1;999;Liq.Premio polizza infortuni 01/01/2022-30/06/2022;112;1;10;4;1;999
CONVERGE S.P.A.;21/01/2022;Noleggi di hardware;634,89;0,00;114,49;Z9D1DC27F4;1;3;Acquisto di beni e servizi;2;7;4;Liquidazione Fattura Nr. 21307368  del 31/12/2021 (di cui Split per euro 114,49) - AFFIDAMENTO DEL SERVIZIO DI NOLEGGIO PER N.2 MACCHINE MULTIFUNZIONE A NOLEGGIO PER UFFICIO TURISTICO E PER UFFICIO TECNICO MEDIANTE ADESIONE A CONVENZIONE CO;118;1;3;2;7;4
SMS SRL;21/01/2022;Manutenzione ordinaria e riparazioni di beni immobili;13.818,00;0,00;2.491,77;Z1132E3392;1;3;Acquisto di beni e servizi;2;9;8;Liquidazione Fattura Nr. 43/PA  del 10/12/2021 (di cui Split per euro 2.491,77) - LAVORI DI MANUTENZIONE DELLA SEGNALETICA ORIZZONTALE E VERTICALE SULLE STRADE DEL COMUNE DI VINCI;121;1;3;2;9;8
SMS SRL;21/01/2022;Manutenzione ordinaria e riparazioni di beni immobili;7.328,26;0,00;1.321,49;Z1132E3392;1;3;Acquisto di beni e servizi;2;9;8;Liquidazione Fattura Nr. 43/PA  del 10/12/2021 (di cui Split per euro 1.321,49) - LAVORI DI MANUTENZIONE DELLA SEGNALETICA ORIZZONTALE E VERTICALE SULLE STRADE DEL COMUNE DI VINCI;120;1;3;2;9;8
NOBIS COMPAGNIA DI ASSICURAZIONI SPA;21/01/2022;Premi di assicurazione per responsabilit� civile verso terzi;14.779,65;0,00;0,00;862162887E;1;10;Altre spese correnti;4;1;3;Liq.premi polizza RCT 01/01/2022-30/06/2022;114;1;10;4;1;3
NOBIS COMPAGNIA DI ASSICURAZIONI SPA;21/01/2022;Altri premi di assicurazione contro i danni;4.110,69;0,00;0,00;862168685B;1;10;Altre spese correnti;4;1;999;Liq.premio polizza RCA 01/01/2022-30/06/2022;115;1;10;4;1;999
NOBIS COMPAGNIA DI ASSICURAZIONI SPA;21/01/2022;Premi di assicurazione su beni mobili;583,50;0,00;0,00;8621679296;1;10;Altre spese correnti;4;1;1;Liq.premio polizza 01/01/2022-30/06/2022;116;1;10;4;1;1
EUROFORM K. WINKLER S.R.L.;21/01/2022;Attrezzature n.a.c.;5.416,80;0,00;976,80;Z0F32E1D76;2;2;Investimenti fissi lordi e acquisto di terreni;1;5;999;Liquidazione Fattura Nr. 210606  del 15/11/2021 (di cui Split per euro 976,80) - acquisto paletti dissuasori;130;2;2;1;5;999
CERT 2000 S.R.L.;21/01/2022;Manutenzione ordinaria e riparazioni di impianti e macchinari;122,00;0,00;22,00;Z122875CA9;1;3;Acquisto di beni e servizi;2;9;4;Liquidazione Fattura Nr. V686/2021  del 29/10/2021 (di cui Split per euro 22,00) - verifiche periodiche biennali impianto ascensore anni 2019/2021;123;1;3;2;9;4
CERT 2000 S.R.L.;21/01/2022;Manutenzione ordinaria e riparazioni di impianti e macchinari;244,00;0,00;44,00;Z122875CA9;1;3;Acquisto di beni e servizi;2;9;4;Liquidazione Fattura Nr. V687/2021  del 29/10/2021 (di cui Split per euro 44,00) - verifiche periodiche biennali impianto ascensore anni 2019/2021;124;1;3;2;9;4
ITALIANA ASSICURAZIONI SPA AG. PER L'ITALIA  DUAL ITALIA SPA;21/01/2022;Premi di assicurazione su beni mobili;785,00;0,00;0,00;Z6832168B9;1;10;Altre spese correnti;4;1;1;Liq.premio polizza 01/01/2022-30/06/2022;113;1;10;4;1;1
ROLAND RECHTSSCHUTZ VERSICHERUNGS AG  RAPPRESENTANZA GENERALE PER L'ITALIA;21/01/2022;Altri premi di assicurazione contro i danni;1.807,14;0,00;0,00;Z123216818;1;10;Altre spese correnti;4;1;999;Liquidazione premio Tutela Legale 01/01/2022-30/06/2022;117;1;10;4;1;999
AMISSIMA ASSICURAZIONI SPA AGENZIA PASSERINI STEFANO SRL;21/01/2022;Premi di assicurazione su beni immobili;4.750,00;0,00;0,00;ZE032165C5;1;10;Altre spese correnti;4;1;2;Liq.premio polizze all risks property 01/01/2022-30/06/2022;111;1;10;4;1;2
EDISON ENERGIA S.P.A.;26/01/2022;Gas;1.610,58;0,00;76,69;89162702C5;1;3;Acquisto di beni e servizi;2;5;6;Bonifico a favore di Edison Energia S.P.A Liquidazione Fattura Nr. 5950249638  del 17/12/2021 (di cui Split per euro 76,69) - 15104203730639;137;1;3;2;5;6
EDISON ENERGIA S.P.A.;26/01/2022;Gas;223,13;0,00;10,62;89162702C5;1;3;Acquisto di beni e servizi;2;5;6;Bonifico a favore di Edison Energia S.P.A Liquidazione Fattura Nr. 5950250395  del 17/12/2021 (di cui Split per euro 10,62) - 15964204269553;138;1;3;2;5;6
EDISON ENERGIA S.P.A.;26/01/2022;Gas;334,69;0,00;15,94;89162702C5;1;3;Acquisto di beni e servizi;2;5;6;Bonifico a favore di Edison Energia S.P.A Liquidazione Fattura Nr. 5950250395  del 17/12/2021 (di cui Split per euro 15,94) - 15964204269553;139;1;3;2;5;6
EDISON ENERGIA S.P.A.;26/01/2022;Gas;414,33;0,00;19,73;89162702C5;1;3;Acquisto di beni e servizi;2;5;6;Bonifico a favore di Edison Energia S.P.A Liquidazione Fattura Nr. 5950250604  del 17/12/2021 (di cui Split per euro 19,73) - 15104203728281;134;1;3;2;5;6
EDISON ENERGIA S.P.A.;26/01/2022;Gas;856,53;0,00;40,79;89162702C5;1;3;Acquisto di beni e servizi;2;5;6;Bonifico a favore di Edison Energia S.P.A Liquidazione Fattura Nr. 5950250054  del 17/12/2021 (di cui Split per euro 40,79) - 15964204304490;131;1;3;2;5;6
EDISON ENERGIA S.P.A.;26/01/2022;Gas;346,50;0,00;16,50;89162702C5;1;3;Acquisto di beni e servizi;2;5;6;Bonifico a favore di Edison Energia S.P.A Liquidazione Fattura Nr. 5950250727  del 17/12/2021 (di cui Split per euro 16,50) - 15104203728249;136;1;3;2;5;6
EDISON ENERGIA S.P.A.;26/01/2022;Gas;268,87;0,00;12,80;89162702C5;1;3;Acquisto di beni e servizi;2;5;6;Bonifico a favore di Edison Energia S.P.A Liquidazione Fattura Nr. 5950250256  del 17/12/2021 (di cui Split per euro 12,80) - 15104203729242;140;1;3;2;5;6
EDISON ENERGIA S.P.A.;26/01/2022;Gas;403,30;0,00;19,21;89162702C5;1;3;Acquisto di beni e servizi;2;5;6;Bonifico a favore di Edison Energia S.P.A Liquidazione Fattura Nr. 5950250256  del 17/12/2021 (di cui Split per euro 19,21) - 15104203729242;141;1;3;2;5;6
EDISON ENERGIA S.P.A.;26/01/2022;Gas;167,23;0,00;7,96;89162702C5;1;3;Acquisto di beni e servizi;2;5;6;Bonifico a favore di Edison Energia S.P.A Liquidazione Fattura Nr. 5950251180  del 17/12/2021 (di cui Split per euro 7,96) - 15104203729241;132;1;3;2;5;6
EDISON ENERGIA S.P.A.;26/01/2022;Gas;123,11;0,00;5,86;89162702C5;1;3;Acquisto di beni e servizi;2;5;6;Bonifico a favore di Edison Energia S.P.A Liquidazione Fattura Nr. 5950251315  del 17/12/2021 (di cui Split per euro 5,86) - 15104203729400;142;1;3;2;5;6
EDISON ENERGIA S.P.A.;26/01/2022;Gas;1.676,08;0,00;79,81;89162702C5;1;3;Acquisto di beni e servizi;2;5;6;Bonifico a favore di Edison Energia S.P.A Liquidazione Fattura Nr. 5950249612  del 17/12/2021 (di cui Split per euro 79,81) - 15104203730736;135;1;3;2;5;6
EDISON ENERGIA S.P.A.;26/01/2022;Gas;316,12;0,00;15,05;89162702C5;1;3;Acquisto di beni e servizi;2;5;6;Bonifico a favore di Edison Energia S.P.A Liquidazione Fattura Nr. 5950250791  del 17/12/2021 (di cui Split per euro 15,05) - 15104203729253;133;1;3;2;5;6
COOPERATIVA SOCIALE PEGASO SOCIETA' COOPERATIVA;27/01/2022;Manutenzione ordinaria e riparazioni di beni immobili;42.861,04;0,00;7.729,04;8790442637;1;3;Acquisto di beni e servizi;2;9;8;"LIQUIDAZIONE FATTURA NR. 297/01  DEL 16/12/2021 (DI CUI SPLIT PER EURO 7.729,04) - MANUTENZIONE DEL VERDE PUBBLICO ANNO 2021 TRAMITE AVVALIMENTO DI COOPERATIVA SOCIALE DI TIPO ""B""";147;1;3;2;9;8
ALIA SERVIZI AMBIENTALI S.P.A.;27/01/2022;Contratti di servizio per la raccolta rifiuti;260.051,88;0,00;23.641,08;4726694F44;1;3;Acquisto di beni e servizi;2;15;4;Liquidazione Fattura Nr. 0000135317  del 31/12/2021 (di cui Split per euro 23.641,08) -  Determina nr.129 del 10.11.2021  Iva da versare a cura del cessionario o committente ai sensi dell'art.17 -ter del D.P.R. nr.633/1972 Scissione pagamen;145;1;3;2;15;4
ALIA SERVIZI AMBIENTALI S.P.A.;27/01/2022;Contratti di servizio per la raccolta rifiuti;19.643,98;0,00;1.785,82;4726694F44;1;3;Acquisto di beni e servizi;2;15;4;LIQUIDAZIONE FATTURA NR. 0000135317  DEL 31/12/2021 (DI CUI SPLIT PER EURO 1.785,82) -  DETERMINA NR.129 DEL 10.11.2021  IVA DA VERSARE A CURA DEL CESSIONARIO O COMMITTENTE AI SENSI DELL'ART.17 -TER DEL D.P.R. NR.633/1972 SCISSIONE PAGAMENT;146;1;3;2;15;4
INFOCLIP S.R.L.;27/01/2022;Giornali e riviste;1.597,30;0,00;25,30;ZBF348F6EC;1;3;Acquisto di beni e servizi;1;1;1;Liquidazione Fattura Nr. FVL1346 del 28/12/2021 - Fornitura periodici per biblioteca leonardiana (di cui Split per euro 25,30);143;1;3;1;1;1
ELEAR SRL;27/01/2022;Attrezzature n.a.c.;20.886,40;0,00;3.766,40;Z0A32B7C7E;2;2;Investimenti fissi lordi e acquisto di terreni;1;5;999;Liquidazione Fattura Nr. 000281/2021  del 30/11/2021 (di cui Split per euro 3.766,40) - FORNITURA DI DISPOSITIVI ELETTRONICI E INFORMATICI PER ALLESTIMENTI MUSEALI PERIODO SETTEMBRE-DICEMBRE 2021;148;2;2;1;5;999
ELEAR SRL;27/01/2022;Altre spese sostenute per utilizzo di beni di terzi n.a.c.;4.886,00;0,00;881,00;Z0A32B7C7E;1;3;Acquisto di beni e servizi;2;7;999;Liquidazione Fattura Nr. 000280/2021  del 30/11/2021 al netto di Nota: N. 000011/NC/2021 del 07/12/2021 di 0,10 (di cui Split per euro 881,00) - FORNITURA DI DISPOSITIVI ELETTRONICI E INFORMATICI PER ALLESTIMENTI MUSEALI PERIODO SETTEMBRE-D;144;1;3;2;7;999
IMMOBILIARE PAOLO SRL;27/01/2022;Rimborsi in conto capitale a Imprese di somme non dovute o incassate in eccesso;1.227,23;0,00;0,00;;2;5;Altre spese in conto capitale;4;5;1;RIMBORSO ONERI DI URBANIZZAZIONE PRIMARIA, SECONDARIA E COSTO DI COSTRUZIONE C.E. SANATORIA N. 9/2020;149;2;5;4;5;1
COOP. CULTURALE LIBRERIA RINASCITA;28/01/2022;Stampa e rilegatura;2.147,80;0,00;0,00;Z35334CADB;1;3;Acquisto di beni e servizi;2;13;4;Liquidazione Fattura Nr. 295-21 del 25/11/2021 - Riferimento bolla n. 148-21 del 03/11/2021, 164-21 del 17/11/2021, 167-21 del 18/11/2021, 174-21 del 25/11/2021, 175-21 del 25/11/2021;153;1;3;2;13;4
CINELLI TACITO E GABBANINI DIANA;28/01/2022;Locazione di beni immobili;2.500,00;0,00;0,00;;1;3;Acquisto di beni e servizi;2;7;1;canone locazione immobile via Fucini angolo via Rossi-parte adibita a URP-1�trimestre 2022;151;1;3;2;7;1
LIBERASOGNI SOCIET� COOPERATIVA - LIBRERIA BLUME;28/01/2022;Stampa e rilegatura;2.147,80;0,00;0,00;ZCB334CB16;1;3;Acquisto di beni e servizi;2;13;4;Liquidazione Fattura Nr. 32 del 01/12/2021 - Fornitura libri fondo MIC 2021 per biblioteca leonardiana;154;1;3;2;13;4
VOX SPA;28/01/2022;Noleggi di impianti e macchinari;68,32;0,00;12,32;ZB03387FC4;1;3;Acquisto di beni e servizi;2;7;8;"Liquidazione Fattura Nr. 11/FE  del 13/12/2021 (di cui Split per euro 12,32) - noleggio radioguide novembre 2021
";158;1;3;2;7;8
FUTURA SRL;28/01/2022;Altri servizi diversi n.a.c.;616,10;0,00;111,10;ZE630D3F2E;1;3;Acquisto di beni e servizi;2;99;999;Liquidazione Fattura Nr. 593  del 30/11/2021 (di cui Split per euro 111,10) - Fornitura generica;157;1;3;2;99;999
TECMANA SCARL;28/01/2022;Acquisto di servizi per formazione obbligatoria;1.931,00;0,00;0,00;Z3933A21BA;1;3;Acquisto di beni e servizi;2;4;4;Liquidazione Fattura Nr. 9SSL  del 13/12/2021 - Formazione e aggiornamento SSL determina n. 76 del 24/06/2021;150;1;3;2;4;4
LIBRERIA NESSUNDOVE SRLS;28/01/2022;Stampa e rilegatura;2.147,80;0,00;0,00;ZB9334CA28;1;3;Acquisto di beni e servizi;2;13;4;Liquidazione Fattura Nr. 4 del 18/11/2021 - Fornitura libri fondo MIC 2021 per biblioteca leonardiana;155;1;3;2;13;4
GIORGIO GIORGI SRL;28/01/2022;Pubblicazioni;299,97;0,00;0,00;ZE93412943;1;3;Acquisto di beni e servizi;1;1;2;"Liquidazione Fattura Nr. P/51/2021  del 02/12/2021 - Fornitura n. 36 copie del libro ""Il segreto di Leonardo"" Piemme Editore per Bookshop del Museo Leonardiano";156;1;3;1;1;2
GIUNTI EDITORE S.P.A.;31/01/2022;Pubblicazioni;400,00;0,00;0,00;Z8033202A9;1;3;Acquisto di beni e servizi;1;1;2;"Liquidazione Fattura Nr. 2021143469  del 31/10/2021 - FORNITURA DI N. 20 COPIE IN LINGUA ITALIANA DEL CATALOGO DELLA MOSTRA ""LEONARDO A VINCI. ALLE ORIGINI DEL GENIO""";238;1;3;1;1;2
COMUNE DI FUCECCHIO;31/01/2022;Spese postali;5,88;0,00;0,00;;1;3;Acquisto di beni e servizi;2;16;2;RIMBORSO DIRITTI DI NOTIFICA 2020;178;1;3;2;16;2
CASALINI LIBRI S.P.A.;31/01/2022;Pubblicazioni;45,00;0,00;0,00;Z222F117DF;1;3;Acquisto di beni e servizi;1;1;2;Liquidazione Fattura Nr. 21-31506  del 04/11/2021 al netto di Nota: N. 21-33656 del 22/11/2021 di 103,50 - Acquisto risorse librarie;235;1;3;1;1;2
COMUNE DI MONSUMMANO TERME;31/01/2022;Spese postali;11,59;0,00;0,00;;1;3;Acquisto di beni e servizi;2;16;2;RIMBORSO DIRITTI DI NOTIFICA N.396/2021;180;1;3;2;16;2
PARROCCHIA DI SANTA MARIA A FALTOGNANO;31/01/2022;Trasferimenti correnti a Istituzioni Sociali Private ;890,00;0,00;0,00;;1;4;Trasferimenti correnti;4;1;1;det.154_21- concessione contributo manutenzione Leccio;243;1;4;4;1;1
UISP - UNIONE ITALIANA SPORT PER TUTTI COMITATO TERRITORIALE EMPOLI VALDELSA;31/01/2022;Altri servizi diversi n.a.c.;4.133,06;0,00;0,00;Z2F334E89D;1;3;Acquisto di beni e servizi;2;99;999;Liquidazione Fattura Nr. 107  del 10/12/2021 - fatturazione effettuata da soggetto che si avvale del regime di cui alla legge16/12/1991 n.398 non assoggetta a split payment ai sensi della circolare agenzia delle entrate n.15/E del 13/04/201;242;1;3;2;99;999
UISP - UNIONE ITALIANA SPORT PER TUTTI COMITATO TERRITORIALE EMPOLI VALDELSA;31/01/2022;Altri servizi diversi n.a.c.;34,77;0,00;0,00;Z2F334E89D;1;3;Acquisto di beni e servizi;2;99;999;Liquidazione Fattura Nr. 108  del 16/12/2021 - fatturazione effettuata da soggetto che si avvale del regime di cui alla legge16/12/1991 n.398 non assoggetta a split payment ai sensi della circolare agenzia delle entrate n.15/E del 13/04/201;241;1;3;2;99;999
ASSOCIAZIONE ARISTOGATTI EMPOLI;31/01/2022;Trasferimenti correnti a Istituzioni Sociali Private ;3.500,00;0,00;0,00;;1;4;Trasferimenti correnti;4;1;1;determina n. 152 del 13/12/21 - contributo annuale 2021;246;1;4;4;1;1
COMUNE DI FIRENZE;31/01/2022;Spese postali;5,88;0,00;0,00;;1;3;Acquisto di beni e servizi;2;16;2;RIMBORSO DIRITTI PER NOTIFICA N.9920/2020;177;1;3;2;16;2
C.C.N. VINCINCENTRO;31/01/2022;Trasferimenti correnti a Istituzioni Sociali Private ;400,00;0,00;0,00;;1;4;Trasferimenti correnti;4;1;1;Det.128/21-contributo a saldo per festa castagna;244;1;4;4;1;1
ART & LIBRI SAS DI ALFREDO LUPI & C.;31/01/2022;Pubblicazioni;2.061,47;0,00;0,00;ZE2334CB67;1;3;Acquisto di beni e servizi;1;1;2;Liquidazione Fattura Nr. 304 del 15/12/2021 - Fornitura generica;236;1;3;1;1;2
ART & LIBRI SAS DI ALFREDO LUPI & C.;31/01/2022;Stampati specialistici;700,00;0,00;0,00;ZE2334CB67;1;3;Acquisto di beni e servizi;1;2;14;Liquidazione Fattura Nr. 305 del 15/12/2021 - Fornitura generica;234;1;3;1;2;14
COMUNE DI MONTOPOLI IN VALDARNO;31/01/2022;Spese postali;5,88;0,00;0,00;;1;3;Acquisto di beni e servizi;2;16;2;RIMBORSO DIRITTI DI NOTIFICA 2020;181;1;3;2;16;2
COMUNE DI POGGIO A CAIANO;31/01/2022;Spese postali;11,76;0,00;0,00;;1;3;Acquisto di beni e servizi;2;16;2;RIMBORSO DIRITTI DI NOTIFICA 2021 CRON. 242-243;183;1;3;2;16;2
COMUNE DI PISTOIA;31/01/2022;Spese postali;5,88;0,00;0,00;;1;3;Acquisto di beni e servizi;2;16;2;RIMBORSO DIRITTI DI NOTIFICA ACC.247 N. INVITO 61/2021;182;1;3;2;16;2
ESKIMO COOP. SOCIALE ONLUS;31/01/2022;Altri servizi diversi n.a.c.;6.222,00;0,00;1.122,00;Z27314228C;1;3;Acquisto di beni e servizi;2;99;999;Liquidazione Fattura Nr. FATTPA 151_21 del 10/12/2021 - SERVIZIO DI ATTACCHINAGGIO RELATIVO ALLE PUBBLICHE AFFISSIONI PER IL PERIODO DAL 01/05/2021 AL 30/11/2021 - AFFIDAMENTO ALLA ESKIMO SOCIET� COOPERATIVA SOCIALE ONLUS (di cui Split per ;160;1;3;2;99;999
CIR FOOD S.C. DIVISIONE EUDANIA;31/01/2022;Contratti di servizio per le mense scolastiche;28.671,20;0,00;1.102,74;7769463BAF;1;3;Acquisto di beni e servizi;2;15;6;Liquidazione Fattura Nr. 5200029015  del 19/11/2021 (di cui Split per euro 1.102,74) - Destinatario:0000100288,COMUNE DI VINCI,Piazza Leonardo 29,VINCI,50059,FI Trattenute DPR RIT 0,5 % ART. 4 C.3 DPR 207/2010 di 138,54- RIF2: SER.RIST.SCOL;164;1;3;2;15;6
POLLICHINO DAVID;31/01/2022;Pubblicazioni;3.322,87;0,00;0,00;Z553432C51;1;3;Acquisto di beni e servizi;1;1;2;Liquidazione Fattura Nr. 1/PA  del 01/12/2021 - Determinazione n. 149 del 06/08/2021 del Settore 1 - codice impegno DS01149/1 - Il prezzo totale �� gi�� comprensivo dello sconto ministeriale dello 0,25%;189;1;3;1;1;2
CO&SO EMPOLI - CONS. DI COOP. SOCIALI - SOCIETA' COOPERATIVA;31/01/2022;Altre spese per contratti di servizio pubblico;5.181,13;0,00;0,00;8603669443;1;3;Acquisto di beni e servizi;2;15;999;Liquidazione Fattura Nr. 001344-2C0 del 22/12/2021 - Front e back-office per biblioteca leonardiana e sedi distaccate, dicembre 2021;165;1;3;2;15;999
CO&SO EMPOLI - CONS. DI COOP. SOCIALI - SOCIETA' COOPERATIVA;31/01/2022;Altre spese per contratti di servizio pubblico;4.782,93;0,00;0,00;8603669443;1;3;Acquisto di beni e servizi;2;15;999;Liquidazione Fattura Nr. 001343-2C0 del 22/12/2021 - Front e back-office per biblioteca leonardiana e sedi distaccate, novembre 2021;166;1;3;2;15;999
CO&SO EMPOLI - CONS. DI COOP. SOCIALI - SOCIETA' COOPERATIVA;31/01/2022;Altre spese per contratti di servizio pubblico;3.054,38;0,00;0,00;8603669443;1;3;Acquisto di beni e servizi;2;15;999;Liquidazione Fattura Nr. 001346-2C0 del 22/12/2021 - Programma promozione lettura e attivit� didattiche della biblioteca per le scuole a.s. 2021;167;1;3;2;15;999
CO&SO EMPOLI - CONS. DI COOP. SOCIALI - SOCIETA' COOPERATIVA;31/01/2022;Altri servizi diversi n.a.c.;1.000,00;0,00;0,00;8603669443;1;3;Acquisto di beni e servizi;2;99;999;Liquidazione Fattura Nr. 001345-2C0 del 22/12/2021 - Attivit� didattiche extrascuola della biblioteca, novembre-dicembre 2021;168;1;3;2;99;999
ISTITUTO COMPRENSIVO DI VINCI;31/01/2022;Trasferimenti correnti a Ministero dell'Istruzione - Istituzioni scolastiche;2.500,00;0,00;0,00;;1;4;Trasferimenti correnti;1;1;2;CONTRIBUTI COMUNALI PER L'ORGANIZZAZIONE DELL'ISTITUTO COMPRENSIVO DI VINCI;186;1;4;1;1;2
ISTITUTO COMPRENSIVO DI VINCI;31/01/2022;Trasferimenti correnti a Ministero dell'Istruzione - Istituzioni scolastiche;2.000,00;0,00;0,00;;1;4;Trasferimenti correnti;1;1;2;PRIMO ACCONTO DEI CONTRIBUTI COMUNALI PER L'ORGANIZZAZIONE DELL'ISTITUTO COMPRENSIVO DI VINCI;187;1;4;1;1;2
ISTITUTO COMPRENSIVO DI VINCI;31/01/2022;Trasferimenti correnti a Ministero dell'Istruzione - Istituzioni scolastiche;1.481,01;0,00;0,00;;1;4;Trasferimenti correnti;1;1;2;PRIMO ACCONTO DEI CONTRIBUTI COMUNALI PER L'ORGANIZZAZIONE DELL'ISTITUTO COMPRENSIVO DI VINCI;188;1;4;1;1;2
ISTITUTO COMPRENSIVO DI VINCI;31/01/2022;Trasferimenti correnti a altre Amministrazioni Locali n.a.c.;1.000,00;0,00;0,00;;1;4;Trasferimenti correnti;1;2;999;PRIMO ACCONTO DEI CONTRIBUTI COMUNALI PER L'ORGANIZZAZIONE DELL'ISTITUTO COMPRENSIVO DI VINCI;191;1;4;1;2;999
VERDIANI GIOVANNI CARTOLIBRERIA;31/01/2022;Pubblicazioni;136,76;0,00;0,00;Z4534070DA;1;3;Acquisto di beni e servizi;1;1;2;Liquidazione Fattura Nr. FS0000006  del 19/11/2021 -  Il prezzo totale ? gi? comprensivo  dello sconto ministeriale dello 0,25%  Codice impegno DS01149/1  CIG:Z4534070DA  Determinazione n.149 del 06/08/2021 del  Settore 1;190;1;3;1;1;2
CRISTOFORO SOC.COOP. SOCIALE ONLUS;31/01/2022;Altri servizi diversi n.a.c.;7.420,81;0,00;674,62;8589752796;1;3;Acquisto di beni e servizi;2;99;999;Liquidazione Fattura Nr. 1831. 20006/ 2021  del 18/11/2021 - FATTURA;162;1;3;2;99;999
CRISTOFORO SOC.COOP. SOCIALE ONLUS;31/01/2022;Altri servizi diversi n.a.c.;9.273,54;0,00;843,05;8589752796;1;3;Acquisto di beni e servizi;2;99;999;Liquidazione Fattura Nr. 1966. 20006/ 2021  del 26/11/2021 (di cui Split per euro 843,05) - FATTURA;163;1;3;2;99;999
MINISTERO DELL'INTERNO DIREZIONE CENTRALE PER I SERVIZI DEMOGRAFICI;31/01/2022;Trasferimenti correnti a Ministeri;1.897,27;0,00;0,00;;1;4;Trasferimenti correnti;1;1;1;COMUNE DI VINCI, M059, CORRISPETTIVO PER RILASCIO N. 113 CIE PERIODO 16-31 OTTOBRE 2021;174;1;4;1;1;1
MINISTERO DELL'INTERNO DIREZIONE CENTRALE PER I SERVIZI DEMOGRAFICI;31/01/2022;Trasferimenti correnti a Ministeri;1.998,01;0,00;0,00;;1;4;Trasferimenti correnti;1;1;1;COMUNE DI VINCI, M059, CORRISPETTIVO PER RILASCIO N. 119 CIE PERIODO 1-15 NOVEMBRE 2021;173;1;4;1;1;1
MINISTERO DELL'INTERNO DIREZIONE CENTRALE PER I SERVIZI DEMOGRAFICI;31/01/2022;Trasferimenti correnti a Ministeri;1.645,42;0,00;0,00;;1;4;Trasferimenti correnti;1;1;1;COMUNE DI VINCI, M059, CORRISPETTIVO PER RILASCIO N. 18 CIE PERIODO 16-30 NOVEMBRE 2021;172;1;4;1;1;1
COMUNE DI TORRITA DI SIENA;31/01/2022;Spese postali;12,38;0,00;0,00;;1;3;Acquisto di beni e servizi;2;16;2;RIMBORSO DIRITTI DI NOTIFICA PROT. 1252/21_REP. 14/21;185;1;3;2;16;2
TECNOROOMS SRL;31/01/2022;Manutenzione ordinaria e riparazioni di beni immobili;6.302,50;0,00;1.136,52;ZDE33904C3;1;3;Acquisto di beni e servizi;2;9;8;Liquidazione Fattura Nr. 142  del 29/11/2021 (di cui Split per euro 1.136,52) - Installazione pareti presso Direzione Didattica e Palasport;161;1;3;2;9;8
TECNOROOMS SRL;31/01/2022;Manutenzione ordinaria e riparazioni di beni immobili;3.000,00;0,00;540,98;ZDE33904C3;1;3;Acquisto di beni e servizi;2;9;8;Liquidazione Fattura Nr. 142  del 29/11/2021 (di cui Split per euro 540,98) - Installazione pareti presso Direzione Didattica e Palasport;169;1;3;2;9;8
CETRAS CENTRO TOSCANO RECUPERO AVIFAUNA SELVATICA ONLUS;31/01/2022;Trasferimenti correnti a Istituzioni Sociali Private ;500,00;0,00;0,00;;1;4;Trasferimenti correnti;4;1;1;DETERMINA N. 153 DEL 13/12/21 - CONCESSIONE DEL CONTRIBUTO;245;1;4;4;1;1
TERMINAL VIDEO ITALIA S.R.L.;31/01/2022;Pubblicazioni;104,61;0,00;0,00;Z4C3212E31;1;3;Acquisto di beni e servizi;1;1;2;Liquidazione Fattura Nr. 21040232 del 28/12/2021 - Fornitura libri per biblioteca leonardiana;237;1;3;1;1;2
PROGETTO VERDE DI GIOVANNI MORELLI PROGETTO VERDE DI GIOVANNI MORELLI;31/01/2022;Beni immobili n.a.c.;17.174,28;2.760,25;0,00;ZD73267968;2;2;Investimenti fissi lordi e acquisto di terreni;1;9;999;LIQUIDAZIONE FATTURA NR. 101/E  DEL 03/12/2021 - ESECUZIONE DI PROVE STRUMENTALI SUL PATRIMONIO ARBOREO PUBBLICO DEL COMUNE DI VINCI;170;2;2;1;9;999
PROGETTO VERDE DI GIOVANNI MORELLI PROGETTO VERDE DI GIOVANNI MORELLI;31/01/2022;Beni immobili n.a.c.;1.440,13;231,46;0,00;ZD73267968;2;2;Investimenti fissi lordi e acquisto di terreni;1;9;999;LIQUIDAZIONE FATTURA NR. 101/E  DEL 03/12/2021 - ESECUZIONE DI PROVE STRUMENTALI SUL PATRIMONIO ARBOREO PUBBLICO DEL COMUNE DI VINCI;171;2;2;1;9;999
CARDILICCHIA ELISA;31/01/2022;Altri servizi diversi n.a.c.;1.040,00;0,00;0,00;Z4632E5577;1;3;Acquisto di beni e servizi;2;99;999;"Liquidazione Fattura Nr. 2PA  del 08/11/2021 - AFFIDAMENTO DIRETTO PER L'AGGIORNAMENTO DEI MEN� INVERNAE ED ESTIVO DEL NIDO D'INFANZIA COMUNALE ""PICCINO PICCI�"" E LA PREDISPOSIZIONE DEL MEN� SPECIALE AI SENSI  DELL'ART. 36 COMMA 2 LETT. A) ";192;1;3;2;99;999
PIXEL COMPUTER DI BADITA GIANINA  CRISTINA;31/01/2022;Altri beni e materiali di consumo n.a.c.;293,39;0,00;0,00;Z1F3400B6D;1;3;Acquisto di beni e servizi;1;2;999;"Liquidazione Fattura Nr. 95  del 29/11/2021 - ODA 6483069 CIG Z1F3400B6D - FORNITURA DI DISPOSITIVI MULTIMEDIALI PER L'ESPOSIZIONE DAL TITOLO ""A VIEW FROM WITHIN""";239;1;3;1;2;999
COMUNE DI EMPOLI;31/01/2022;Trasferimenti correnti a Comuni;209,24;0,00;0,00;;1;4;Trasferimenti correnti;1;2;3;RIMBORSO SPESE SCEC PER L'ANNO 2020 QUOTA DEL COMUNE DI VINCI;175;1;4;1;2;3
COMUNE DI STRONA;31/01/2022;Spese postali;5,88;0,00;0,00;;1;3;Acquisto di beni e servizi;2;16;2;rimborso diritti di notifica 2020;184;1;3;2;16;2
COMUNE DI FINALE LIGURE;31/01/2022;Spese postali;5,88;0,00;0,00;;1;3;Acquisto di beni e servizi;2;16;2;RIMBORSO DIRITTI DI NOTIFICA 2020;176;1;3;2;16;2
COMUNE DI MENTANA;31/01/2022;Spese postali;5,88;0,00;0,00;;1;3;Acquisto di beni e servizi;2;16;2;RIMBORSO DIRITTI DI NOTIFICA 2020;179;1;3;2;16;2
ALMA MATER STUDIORUM - UNIVERSITA' DI BOLOGNA - DIP. ARCHITETTURA;31/01/2022;Altri servizi diversi n.a.c.;4.880,00;0,00;0,00;;1;3;Acquisto di beni e servizi;2;99;999;CONTRATTO DI RICERCA SCIENTIFICA COMMISSIONATA STIPULATO CON IL DIPARTIMENTO DI ARCHITETTURA DELL'ALMA MATER STUDIORUM - UNIVERSITA' DI BOLOGNA.IMPEGNO DI SPESA PER VERSAMENTO CORRISPETTIVO - 1^ TRANCHE.;240;1;3;2;99;999
M.F.M. SRL;01/02/2022;Altri assegni e sussidi assistenziali;250,00;0,00;20,92;;1;4;Trasferimenti correnti;2;2;999;LIQUIDAZIONE FATTURA NR. 02124  DEL 09/12/2021 (DI CUI SPLIT PER EURO 20,92) - BUONI SPESA COVID 2021 ASSOCIAZIONI PER PACCHI ALIMENTARI;289;1;4;2;2;999
M.F.M. SRL;01/02/2022;Altri assegni e sussidi assistenziali;1.250,00;0,00;133,86;;1;4;Trasferimenti correnti;2;2;999;LIQUIDAZIONE FATTURA NR. 02121  DEL 09/12/2021 (DI CUI SPLIT PER EURO 133,86) - BUONI SPESA COVID 2021 ASSOCIAZIONI PER PACCHI ALIMENTARI;290;1;4;2;2;999
M.F.M. SRL;01/02/2022;Altri assegni e sussidi assistenziali;1.250,00;0,00;139,19;;1;4;Trasferimenti correnti;2;2;999;LIQUIDAZIONE FATTURA NR. 02122  DEL 09/12/2021 (DI CUI SPLIT PER EURO 139,19) - BUONI SPESA COVID 2021 ASSOCIAZIONI PER PACCHI ALIMENTARI;291;1;4;2;2;999
M.F.M. SRL;01/02/2022;Generi alimentari;1.451,41;0,00;205,73;;1;3;Acquisto di beni e servizi;1;2;11;Liquidazione Fattura Nr. 02123  del 09/12/2021 (di cui Split per euro 205,73) - buoni spesa covid 2021 associazioni per pacchi alimentari;293;1;3;1;2;11
M.F.M. SRL;01/02/2022;Altri assegni e sussidi assistenziali;548,59;0,00;21,10;;1;4;Trasferimenti correnti;2;2;999;LIQUIDAZIONE FATTURA NR. 02123  DEL 09/12/2021 (DI CUI SPLIT PER EURO 21,10) - BUONI SPESA COVID 2021 ASSOCIAZIONI PER PACCHI ALIMENTARI;292;1;4;2;2;999
ASSOCIAZIONE CIVILE CASA DEL POPOLO VINCI;01/02/2022;Trasferimenti correnti a Istituzioni Sociali Private ;5.500,00;0,00;0,00;;1;4;Trasferimenti correnti;4;1;1;det.118_2021 - contributo cinema estate 2021;263;1;4;4;1;1
CASA EDITRICE LEO S.OLSCHKI S.R.L.;01/02/2022;Stampa e rilegatura;5.148,00;0,00;198,00;Z352FE2973;1;3;Acquisto di beni e servizi;2;13;4;"Liquidazione Fattura Nr. VI  000300 del 16/12/2021 - STAMPA DEGLI ATTI DELLE CONFERENZE 2019 ""LEONARDO 1519-2019. APPUNTAMENTI D'AUTORE PER CINQUE SECOLI DI STORIA"" COME VOLUME N. 9 DELLA COLLANA BIBLIOTECA LEONARDIANA: ATTIVITA' PRELIMINAR";254;1;3;2;13;4
MAGGIOLI S.P.A.;01/02/2022;Stampati specialistici;256,81;0,00;46,31;Z7E3396572;1;3;Acquisto di beni e servizi;1;2;14;Liquidazione Fattura Nr. 0002147971  del 26/11/2021 - FATT. IVA SPLIT P.;272;1;3;1;2;14
MAGGIOLI S.P.A.;01/02/2022;Stampati specialistici;117,12;0,00;21,12;Z7E3396572;1;3;Acquisto di beni e servizi;1;2;14;Liquidazione Fattura Nr. 0002149353  del 30/11/2021 - FATT. IVA SPLIT P;273;1;3;1;2;14
MAGGIOLI S.P.A.;01/02/2022;Stampati specialistici;56,36;0,00;10,16;Z7E3396572;1;3;Acquisto di beni e servizi;1;2;14;Liquidazione Fattura Nr. 0002152365  del 14/12/2021 - FATT. IVA SPLIT P.;271;1;3;1;2;14
CENTRO L.I.F.E.;01/02/2022;Altri servizi diversi n.a.c.;2.500,00;0,00;450,82;Z1034736BE;1;3;Acquisto di beni e servizi;2;99;999;"LIQUIDAZIONE FATTURA NR. 3 DEL 17/01/2022 - SERVIZIO DI GESTIONE AMBITO PROGETTO SERVIZIO ""MUSEO, BIBLIOTECA ED ARCHIVIO"" (DI CUI SPLIT PER EURO 450,82)";247;1;3;2;99;999
LATINI  CLAUDIO;01/02/2022;Altre prestazioni professionali e specialistiche n.a.c.;634,40;100,00;0,00;ZF1314FFAC;1;3;Acquisto di beni e servizi;2;11;999;LIQUIDAZIONE FATTURA NR. 223  DEL 22/12/2021 - REDAZIONE DEL DUVRI RELATIVO ALL'APPALTO DELL'ALLESTIMENTO DELLA SEDE MUSEALE DI PALAZZINA UZIELLI. CIG: ZF1314FFAC;255;1;3;2;11;999
PROMOCULTURA SOCIETA' COOPERATIVA A.R.L..;01/02/2022;Altre spese per servizi amministrativi;1.531,71;0,00;276,21;Z263065B88;1;3;Acquisto di beni e servizi;2;16;999;Liquidazione Fattura Nr. 92-E-2021  del 09/12/2021 (di cui Split per euro 276,21) - Servizio archivio di deposito mesi di novembre 2021;265;1;3;2;16;999
ETRURIA P.A. SRL;01/02/2022;Stampati specialistici;504,35;0,00;90,95;Z2133965DF;1;3;Acquisto di beni e servizi;1;2;14;Liquidazione Fattura Nr. 2056/00000  del 05/11/2021 (di cui Split per euro 90,95) - DETERMINA A CONTRARRE E AFFIDAMENTO EX ART. 36 CO. 2 LETTERA A) DLGS 50/2016 COME MODIFICATO DAL D.L. 16 LUGLIO 2020, N. 76 CONV. IN L. N. 120/2020 E DAL D.;269;1;3;1;2;14
ETRURIA P.A. SRL;01/02/2022;Altri servizi diversi n.a.c.;7,34;0,00;1,32;ZF330EA1B1;1;3;Acquisto di beni e servizi;2;99;999;Liquidazione Fattura Nr. 2215/00000  del 27/11/2021 (di cui Split per euro 1,32) - AFFIDAMENTO DIRETTO  DEL SERVIZIO DI BOLLETTAZIONE DEI SERVIZI COMUNALI PER LA PRIMA INFANZIA, SERVIZI SCOLASTICI ED EXTRASCOLASTCI  EX ART. 36 COMMA 2 LETT.;281;1;3;2;99;999
ETRURIA P.A. SRL;01/02/2022;Materiale informatico;302,56;0,00;54,56;Z8333FC069;1;3;Acquisto di beni e servizi;1;2;6;Liquidazione Fattura Nr. 2182  del 24/11/2021 - STAMPANTE CANON LBP226DW;270;1;3;1;2;6
ETRURIA P.A. SRL;01/02/2022;Stampa e rilegatura;18,30;0,00;3,30;ZB32EFC76F;1;3;Acquisto di beni e servizi;2;13;4;Liquidazione Fattura Nr. 2216/00000  del 27/11/2021 (di cui Split per euro 3,30) - RILEGATURA LISTE DI LEVA CLASSE 2003;268;1;3;2;13;4
CIR FOOD S.C. DIVISIONE EUDANIA;01/02/2022;Contratti di servizio per le mense scolastiche;5.085,62;0,00;195,60;7769463BAF;1;3;Acquisto di beni e servizi;2;15;6;Liquidazione Fattura Nr. 5200029016  del 19/11/2021 (di cui Split per euro 195,60) - Destinatario:0000100288,COMUNE DI VINCI,Piazza Leonardo 29,VINCI,50059,FI Trattenute DPR RIT 0,5 % ART. 4 C.3 DPR 207/2010 di 24,57- RIF2: SER.RIST.SCOLAST;280;1;3;2;15;6
CIR FOOD S.C. DIVISIONE EUDANIA;01/02/2022;Contratti di servizio per le mense scolastiche;4.911,16;0,00;188,89;7769463BAF;1;3;Acquisto di beni e servizi;2;15;6;Liquidazione Fattura Nr. 5200029014  del 19/11/2021 (di cui Split per euro 188,89) - Destinatario:0000531751,COMUNE DI VINCI CANONE GIORNALIEROPER MISURE CONTENIMENTO COVID,PIAZZA LEONARDO 29,VINCI,50059,FI Trattenute DPR RIT 0,5 % ART. 4 C;279;1;3;2;15;6
VALDELSA STUDIO SERVICE SNC DI CAMPATELLI NIDIACI  E VICIANI;01/02/2022;Altri servizi diversi n.a.c.;298,90;0,00;53,90;ZE73445B6A;1;3;Acquisto di beni e servizi;2;99;999;Liquidazione Fattura Nr. 89-2021  del 16/12/2021 (di cui Split per euro 53,90) - Assistenza tecnica per manutenzione attrezzature teatro di Vinci;259;1;3;2;99;999
FRANCO COSIMO PANINI EDITORE SPA;01/02/2022;Altri beni e materiali di consumo n.a.c.;59,40;0,00;10,71;Z19340AC91;1;3;Acquisto di beni e servizi;1;2;999;Liquidazione Fattura Nr. VPA2100057  del 20/12/2021 (di cui Split per euro 10,71) - CONTO VENDITA RIPRODUZIONI A STAMPA FINE ART -  PAGAMENTO ALL'IMPRESA FORNITRICE DEL CORRISPETTIVO SPETTANTE PER LA MERCE  VENDUTA MESE DI OTTOBRE 2021;257;1;3;1;2;999
CRISTOFORO SOC.COOP. SOCIALE ONLUS;01/02/2022;Altri servizi diversi n.a.c.;819,04;0,00;74,46;8589752796;1;3;Acquisto di beni e servizi;2;99;999;Liquidazione Fattura Nr. 1832. 20006/ 2021  del 18/11/2021 - FATTURA;277;1;3;2;99;999
CRISTOFORO SOC.COOP. SOCIALE ONLUS;01/02/2022;Altri servizi diversi n.a.c.;1.467,95;0,00;133,45;8589752796;1;3;Acquisto di beni e servizi;2;99;999;Liquidazione Fattura Nr. 1967. 20006/ 2021  del 26/11/2021 (di cui Split per euro 133,45) - FATTURA;278;1;3;2;99;999
ASSOCIAZIONE LA VALIGIA BLU;01/02/2022;Altre prestazioni professionali e specialistiche n.a.c.;2.001,00;0,00;181,91;Z622FDEFF7;1;3;Acquisto di beni e servizi;2;11;999;Liquidazione Fattura Nr. 3/FE  del 03/12/2021 al netto di Nota: N. 4/FE del 17/12/2021 di 1,00 (di cui Split per euro 181,91) - Festival Fuciniano 2021;260;1;3;2;11;999
ACS AUTOMATISMI SNC;01/02/2022;Manutenzione ordinaria e riparazioni di altri beni materiali;732,00;0,00;132,00;Z003139F70;1;3;Acquisto di beni e servizi;2;9;11;Liquidazione Fattura Nr. 14/PA  del 22/11/2021 (di cui Split per euro 132,00) - RIPARAZIONE E MANUTENZIONE SEMESTRALE DISSUASORI PILOMAT PM275/P-600 INSTALLATI SU VIA DEL CASTELLO;284;1;3;2;9;11
DELTA PROJECT DI TOSI FABIO;01/02/2022;Spese per commissioni e comitati dell'Ente;36,99;6,12;0,00;Z3633E2B50;1;3;Acquisto di beni e servizi;2;99;5;LIQUIDAZIONE FATTURA NR. 122  DEL 14/12/2021 - COMPENSO COMMISSIONE PUBBLICO SPETTACOLO;285;1;3;2;99;5
MONDADORI MEDIA S.P.A.;01/02/2022;Altre spese sostenute per utilizzo di beni di terzi n.a.c.;1.220,00;0,00;220,00;;1;3;Acquisto di beni e servizi;2;7;999;"Liquidazione Fattura Nr. 2096003707  del 22/11/2021 (di cui Split per euro 220,00) - ACQUISTO DIRITTI USO IMMAGINI DEL CODICE ATLANTICO DA UTILIZZARE NELL'AMBITO DELLA MOSTRA ""LEONARDO E L'ARCHITETTURA: INVENZIONI, PROGETTI, TECNICHE""- Rif.";262;1;3;2;7;999
PROFILI ASCENSORI SRL;01/02/2022;Manutenzione ordinaria e riparazioni di impianti e macchinari;300,00;0,00;54,10;ZC4306BA15;1;3;Acquisto di beni e servizi;2;9;4;LIQUIDAZIONE FATTURA NR. 000048/21/PA  DEL 17/11/2021 (DI CUI SPLIT PER EURO 54,10) - MANUTENZIONE STRAORDINARIA IMPIANTO ELEVATORE PRESSO IL PALAZZO COMUNALE ;275;1;3;2;9;4
PROFILI ASCENSORI SRL;01/02/2022;Manutenzione ordinaria e riparazioni di impianti e macchinari;300,00;0,00;54,10;ZC4306BA15;1;3;Acquisto di beni e servizi;2;9;4;LIQUIDAZIONE FATTURA NR. 000048/21/PA  DEL 17/11/2021 (DI CUI SPLIT PER EURO 54,10) - MANUTENZIONE STRAORDINARIA IMPIANTO ELEVATORE PRESSO IL PALAZZO COMUNALE ;283;1;3;2;9;4
PROFILI ASCENSORI SRL;01/02/2022;Manutenzione ordinaria e riparazioni di impianti e macchinari;238,19;0,00;42,95;ZC4306BA15;1;3;Acquisto di beni e servizi;2;9;4;LIQUIDAZIONE FATTURA NR. 000048/21/PA  DEL 17/11/2021 (DI CUI SPLIT PER EURO 42,95) - MANUTENZIONE STRAORDINARIA IMPIANTO ELEVATORE PRESSO IL PALAZZO COMUNALE ;266;1;3;2;9;4
PROFILI ASCENSORI SRL;01/02/2022;Manutenzione ordinaria e riparazioni di impianti e macchinari;218,74;0,00;39,44;ZC4306BA15;1;3;Acquisto di beni e servizi;2;9;4;LIQUIDAZIONE FATTURA NR. 000048/21/PA  DEL 17/11/2021 (DI CUI SPLIT PER EURO 39,44) - MANUTENZIONE STRAORDINARIA IMPIANTO ELEVATORE PRESSO IL PALAZZO COMUNALE ;286;1;3;2;9;4
PROFILI ASCENSORI SRL;01/02/2022;Manutenzione ordinaria e riparazioni di impianti e macchinari;200,00;0,00;36,07;ZC4306BA15;1;3;Acquisto di beni e servizi;2;9;4;LIQUIDAZIONE FATTURA NR. 000048/21/PA  DEL 17/11/2021 (DI CUI SPLIT PER EURO 36,07) - MANUTENZIONE STRAORDINARIA IMPIANTO ELEVATORE PRESSO IL PALAZZO COMUNALE ;276;1;3;2;9;4
PROFILI ASCENSORI SRL;01/02/2022;Manutenzione ordinaria e riparazioni di impianti e macchinari;161,31;0,00;29,09;ZC4306BA15;1;3;Acquisto di beni e servizi;2;9;4;LIQUIDAZIONE FATTURA NR. 000048/21/PA  DEL 17/11/2021 (DI CUI SPLIT PER EURO 29,09) - MANUTENZIONE STRAORDINARIA IMPIANTO ELEVATORE PRESSO IL PALAZZO COMUNALE ;267;1;3;2;9;4
PROFILI ASCENSORI SRL;01/02/2022;Manutenzione ordinaria e riparazioni di impianti e macchinari;150,00;0,00;27,05;ZC4306BA15;1;3;Acquisto di beni e servizi;2;9;4;LIQUIDAZIONE FATTURA NR. 000048/21/PA  DEL 17/11/2021 (DI CUI SPLIT PER EURO 27,05) - MANUTENZIONE STRAORDINARIA IMPIANTO ELEVATORE PRESSO IL PALAZZO COMUNALE ;288;1;3;2;9;4
PROFILI ASCENSORI SRL;01/02/2022;Manutenzione ordinaria e riparazioni di impianti e macchinari;27,79;0,00;5,01;ZC4306BA15;1;3;Acquisto di beni e servizi;2;9;4;LIQUIDAZIONE FATTURA NR. 000048/21/PA  DEL 17/11/2021 (DI CUI SPLIT PER EURO 5,01) - MANUTENZIONE STRAORDINARIA IMPIANTO ELEVATORE PRESSO IL PALAZZO COMUNALE ;287;1;3;2;9;4
PROFILI ASCENSORI SRL;01/02/2022;Manutenzione ordinaria e riparazioni di impianti e macchinari;648,77;0,00;116,99;Z63340C374;1;3;Acquisto di beni e servizi;2;9;4;"Liquidazione Fattura Nr. 000058/21/PA  del 29/11/2021 (di cui Split per euro 116,99) - MANUTENZIONE STRAORDINARIA IMPIANTO ELEVATORE INSTALLATO PRESSO LA SCUOLA D'INFANZIA ""LA BARCA A VELA"" ";274;1;3;2;9;4
SIGMA SRL;01/02/2022;Incarichi professionali per la realizzazione di investimenti;1.895,51;0,00;341,81;ZD33241B61;2;2;Investimenti fissi lordi e acquisto di terreni;3;5;1;LIQUIDAZIONE FATTURA NR. 2240  DEL 16/11/2021 (DI CUI SPLIT PER EURO 341,81) - PROVE DI LABORATORIO NELL'AMBITO LAVORI DI ADEGUAMENTO SISMICO ED EFFICIENTAMENTO ENERGETICO SCUOLA SIBILLA ALERAMO;294;2;2;3;5;1
LUCCACARTA S.R.L.;01/02/2022;Altri beni e materiali di consumo n.a.c.;451,40;0,00;81,40;ZD9347274E;1;3;Acquisto di beni e servizi;1;2;999;Liquidazione Fattura Nr. 75/4  del 23/12/2021 (di cui Split per euro 81,40) - Fornitura di mascherine per visori realt� virtuale (Oculos) Museo Leonardiano;250;1;3;1;2;999
CARTOTECNICA ROCCHI DI ROCCHI CESARE E RENATO SNC;01/02/2022;Altri beni e materiali di consumo n.a.c.;918,66;0,00;165,66;ZEE343D30E;1;3;Acquisto di beni e servizi;1;2;999;Liquidazione Fattura Nr. 211  del 20/12/2021 (di cui Split per euro 165,66) - Fornitura di puzzles personalizzati per il Bookshop del Museo Leonardiano;256;1;3;1;2;999
ULTRAPROMEDIA SRL;01/02/2022;Altri beni e materiali di consumo n.a.c.;480,80;0,00;86,70;ZF633DE481;1;3;Acquisto di beni e servizi;1;2;999;Liquidazione Fattura Nr. 2021/11/2413  del 22/11/2021 (di cui Split per euro 86,70) - Fornitura di mascherine per oculos - Rif. ordine 6461094 Mepa - CIG: ZF633DE481;253;1;3;1;2;999
SPL SERVICE DI CARPONI MARCO;01/02/2022;Altre prestazioni professionali e specialistiche n.a.c.;1.769,00;0,00;319,00;Z6F33CC714;1;3;Acquisto di beni e servizi;2;11;999;Liquidazione Fattura Nr. 70 del 25/11/2021 - Fornitura generica (di cui Split per euro 319,00);261;1;3;2;11;999
TOSCANA SERVICE SRL;01/02/2022;Altri beni e materiali di consumo n.a.c.;62,77;0,00;2,99;Z2F332D04C;1;3;Acquisto di beni e servizi;1;2;999;Liquidazione Fattura Nr. P00189  del 27/10/2021 (di cui Split per euro 2,99) - FORNITURA DI TANICHE DI GEL IGIENIZZANTE MANI E MASCHERINE CHIRURGICHE PER IL MUSEO LEONARDIANO;252;1;3;1;2;999
TOSCANA SERVICE SRL;01/02/2022;Altri beni e materiali di consumo n.a.c.;313,13;0,00;14,91;Z2F332D04C;1;3;Acquisto di beni e servizi;1;2;999;Liquidazione Fattura Nr. P00189  del 27/10/2021 (di cui Split per euro 14,91) - FORNITURA DI TANICHE DI GEL IGIENIZZANTE MANI E MASCHERINE CHIRURGICHE PER IL MUSEO LEONARDIANO;258;1;3;1;2;999
GERSTAECKER ITALIA SRL;01/02/2022;Carta, cancelleria e stampati;806,05;0,00;145,35;Z8833D456F;1;3;Acquisto di beni e servizi;1;2;1;Liquidazione Fattura Nr. 1921400042  del 17/11/2021 al netto di Nota: N. 1921400046 del 19/11/2021 di 3,60 (di cui Split per euro 145,35) - FORNITURA DI MATERIALE PER LE BELLE ARTI DA DESTINARE AI LABORATORI DIDATTICI REALIZZATI DAL MUSEO L;248;1;3;1;2;1
OMNITEK STORE SRL;01/02/2022;Altri beni e materiali di consumo n.a.c.;535,86;0,00;96,63;Z4C33DF95B;1;3;Acquisto di beni e servizi;1;2;999;Liquidazione Fattura Nr. 6449/2021  del 19/11/2021 (di cui Split per euro 96,63) - Fornitura di colonnine formafila e supporti porta avvisi nel formato A3;251;1;3;1;2;999
ANTONELLI SRL;01/02/2022;Carburanti, combustibili e lubrificanti ;1.595,76;0,00;287,76;ZE333E91D4;1;3;Acquisto di beni e servizi;1;2;2;Liquidazione Fattura Nr. 1963/00  del 25/11/2021 (di cui Split per euro 287,76) - ACQUISTO DI PELLET PER L'IMPIANTO TERMICO A SERVIZIO DELLA CASA NATALE DI ANCHIANO;282;1;3;1;2;2
IDS SRL;01/02/2022;Altri beni e materiali di consumo n.a.c.;159,58;0,00;28,78;ZD533E108E;1;3;Acquisto di beni e servizi;1;2;999;Liquidazione Fattura Nr. 820/2021/PA  del 16/11/2021 (di cui Split per euro 28,78) - Fornitura di salviette disinfettanti per dispositivi realt� virtuale (oculos) Museo Leonardiano;249;1;3;1;2;999
2F MULTIMEDIA SRL;01/02/2022;Attrezzature n.a.c.;451,40;0,00;81,40;Z3E3431478;2;2;Investimenti fissi lordi e acquisto di terreni;1;5;999;Liquidazione Fattura Nr. FAC914  del 15/12/2021 (di cui Split per euro 81,40) - Fornitura di n. 1 visore per realt� virtuale ( oculos) per il Museo Leonardiano - DET.N. 178 DEL 6/12/2021;264;2;2;1;5;999
ARCA COOPERATIVA SOCIALE  RL;03/02/2022;Contratti di servizio di asilo nido;34.911,26;0,00;1.662,44;8388889A31;1;3;Acquisto di beni e servizi;2;15;10;Liquidazione Fattura Nr. 1897/E  del 20/12/2021 (di cui Split per euro 1.662,44) - Vendita Iva da versare a cura del cessionario o committente ai sensi dell'art. 17-ter del D.P.R. n. 633/1972 (scissione dei pagamenti);303;1;3;2;15;10
ARCA COOPERATIVA SOCIALE  RL;03/02/2022;Contratti di servizio di asilo nido;34.911,26;0,00;1.662,44;8388889A31;1;3;Acquisto di beni e servizi;2;15;10;Liquidazione Fattura Nr. 1899/E  del 20/12/2021 (di cui Split per euro 1.662,44) - Vendita Iva da versare a cura del cessionario o committente ai sensi dell'art. 17-ter del D.P.R. n. 633/1972 (scissione dei pagamenti);305;1;3;2;15;10
ARCA COOPERATIVA SOCIALE  RL;03/02/2022;Altri servizi diversi n.a.c.;22.519,36;0,00;1.072,35;;1;3;Acquisto di beni e servizi;2;99;999;Liquidazione Fattura Nr. 1901/E  del 20/12/2021 (di cui Split per euro 1.072,35) - Vendita Iva da versare a cura del cessionario o committente ai sensi dell'art. 17-ter del D.P.R. n. 633/1972 (scissione dei pagamenti);307;1;3;2;99;999
ARCA COOPERATIVA SOCIALE  RL;03/02/2022;Contratti di servizio di asilo nido;12.391,90;0,00;590,09;8388889A31;1;3;Acquisto di beni e servizi;2;15;10;Liquidazione Fattura Nr. 1901/E  del 20/12/2021 (di cui Split per euro 590,09) - Vendita Iva da versare a cura del cessionario o committente ai sensi dell'art. 17-ter del D.P.R. n. 633/1972 (scissione dei pagamenti);304;1;3;2;15;10
ARCA COOPERATIVA SOCIALE  RL;03/02/2022;Contratti di servizio di asilo nido;34.911,26;0,00;1.662,44;8388889A31;1;3;Acquisto di beni e servizi;2;15;10;Liquidazione Fattura Nr. 46/E  del 10/01/2022 (di cui Split per euro 1.662,44) - Vendita Iva da versare a cura del cessionario o committente ai sensi dell'art. 17-ter del D.P.R. n. 633/1972 (scissione dei pagamenti);306;1;3;2;15;10
UISP - UNIONE ITALIANA SPORT PER TUTTI COMITATO TERRITORIALE EMPOLI VALDELSA;03/02/2022;Altri servizi diversi n.a.c.;4.045,29;0,00;0,00;Z2F334E89D;1;3;Acquisto di beni e servizi;2;99;999;Liquidazione Fattura Nr. 11  del 11/01/2022 - fatturazione effettuata da soggetto che si avvale del regime di cui alla legge16/12/1991 n.398 non assoggetta a split payment ai sensi della circolare agenzia delle entrate n.15/E del 13/04/2015;314;1;3;2;99;999
UISP - UNIONE ITALIANA SPORT PER TUTTI COMITATO TERRITORIALE EMPOLI VALDELSA;03/02/2022;Altri servizi diversi n.a.c.;219,45;0,00;0,00;Z2F334E89D;1;3;Acquisto di beni e servizi;2;99;999;Liquidazione Fattura Nr. 12  del 12/01/2022 - fatturazione effettuata da soggetto che si avvale del regime di cui alla legge16/12/1991 n.398 non assoggetta a split payment ai sensi della circolare agenzia delle entrate n.15/E del 13/04/2015;315;1;3;2;99;999
POSTE ITALIANE SPA SOCIETA' CON SOCIO UNICO;03/02/2022;Spese postali;1.439,38;0,00;0,00;ZAB3170CF7;1;3;Acquisto di beni e servizi;2;16;2;Liquidazione Fattura Nr. 1021326360  del 20/12/2021 - 30027076-014 - POSTA EASY NOVEMBRE 2021;312;1;3;2;16;2
MASSAINI MASSIMILIANO;03/02/2022;Altri assegni e sussidi assistenziali;150,00;0,00;0,00;;1;4;Trasferimenti correnti;2;2;999;CONTRIBUTO CITTADINI ATTIVITA' SPORTIVE E RICREATIVE 2021 COVID;329;1;4;2;2;999
EDISON ENERGIA S.P.A.;03/02/2022;Energia elettrica;1.676,84;0,00;302,38;8498487554;1;3;Acquisto di beni e servizi;2;5;4;BONIFICO A FAVORE DI EDISON ENERGIA S.P.A.Liquidazione Fattura Nr. 5751333085  del 12/01/2022 (di cui Split per euro 302,38) - IT001E04919528;409;1;3;2;5;4
EDISON ENERGIA S.P.A.;03/02/2022;Energia elettrica;11,62;0,00;2,10;8498487554;1;3;Acquisto di beni e servizi;2;5;4;BONIFICO A FAVORE DI EDISON ENERGIA S.P.A.Liquidazione Fattura Nr. 5751333085  del 12/01/2022 (di cui Split per euro 2,10) - IT001E04919528;358;1;3;2;5;4
EDISON ENERGIA S.P.A.;03/02/2022;Energia elettrica;7,81;0,00;1,41;8498487554;1;3;Acquisto di beni e servizi;2;5;4;BONIFICO A FAVORE DI EDISON ENERGIA S.P.A.LIQUIDAZIONE FATTURA NR. 5751333085  DEL 12/01/2022 (DI CUI SPLIT PER EURO 1,41) - IT001E04919528;432;1;3;2;5;4
EDISON ENERGIA S.P.A.;03/02/2022;Energia elettrica;25,70;0,00;4,63;8498487554;1;3;Acquisto di beni e servizi;2;5;4;BONIFICO A FAVORE DI EDISON ENERGIA S.P.A.Liquidazione Fattura Nr. 5751333085  del 12/01/2022 (di cui Split per euro 4,63) - IT001E04919528;425;1;3;2;5;4
EDISON ENERGIA S.P.A.;03/02/2022;Energia elettrica;194,19;0,00;35,02;8498487554;1;3;Acquisto di beni e servizi;2;5;4;BONIFICO A FAVORE DI EDISON ENERGIA S.P.A.Liquidazione Fattura Nr. 5751335628  del 12/01/2022 (di cui Split per euro 35,02) - IT001E41412665;418;1;3;2;5;4
EDISON ENERGIA S.P.A.;03/02/2022;Energia elettrica;9,89;0,00;1,78;8498487554;1;3;Acquisto di beni e servizi;2;5;4;BONIFICO A FAVORE DI EDISON ENERGIA S.P.A.Liquidazione Fattura Nr. 5751335628  del 12/01/2022 (di cui Split per euro 1,78) - IT001E41412665;419;1;3;2;5;4
EDISON ENERGIA S.P.A.;03/02/2022;Energia elettrica;281,39;0,00;50,74;8498487554;1;3;Acquisto di beni e servizi;2;5;4;BONIFICO A FAVORE DI EDISON ENERGIA S.P.A.LIQUIDAZIONE FATTURA NR. 5751335628  DEL 12/01/2022 (DI CUI SPLIT PER EURO 50,74) - IT001E41412665;431;1;3;2;5;4
EDISON ENERGIA S.P.A.;03/02/2022;Energia elettrica;88,43;0,00;15,94;8498487554;1;3;Acquisto di beni e servizi;2;5;4;BONIFICO A FAVORE DI EDISON ENERGIA S.P.A.Liquidazione Fattura Nr. 5751335152  del 12/01/2022 (di cui Split per euro 15,94) - IT001E04919520;400;1;3;2;5;4
EDISON ENERGIA S.P.A.;03/02/2022;Energia elettrica;302,86;0,00;54,62;8498487554;1;3;Acquisto di beni e servizi;2;5;4;BONIFICO A FAVORE DI EDISON ENERGIA S.P.A.Liquidazione Fattura Nr. 5751335152  del 12/01/2022 (di cui Split per euro 54,62) - IT001E04919520;359;1;3;2;5;4
EDISON ENERGIA S.P.A.;03/02/2022;Energia elettrica;191,14;0,00;34,47;8498487554;1;3;Acquisto di beni e servizi;2;5;4;BONIFICO A FAVORE DI EDISON ENERGIA S.P.A.Liquidazione Fattura Nr. 5751335152  del 12/01/2022 (di cui Split per euro 34,47) - IT001E04919520;360;1;3;2;5;4
EDISON ENERGIA S.P.A.;03/02/2022;Energia elettrica;510,28;0,00;92,01;8498487554;1;3;Acquisto di beni e servizi;2;5;4;BONIFICO A FAVORE DI EDISON ENERGIA S.P.A.Liquidazione Fattura Nr. 5751335436  del 12/01/2022 (di cui Split per euro 92,01) - IT001E40889726;410;1;3;2;5;4
EDISON ENERGIA S.P.A.;03/02/2022;Energia elettrica;11,94;0,00;2,16;8498487554;1;3;Acquisto di beni e servizi;2;5;4;BONIFICO A FAVORE DI EDISON ENERGIA S.P.A.Liquidazione Fattura Nr. 5751335436  del 12/01/2022 (di cui Split per euro 2,16) - IT001E40889726;356;1;3;2;5;4
EDISON ENERGIA S.P.A.;03/02/2022;Energia elettrica;460,84;0,00;83,10;8498487554;1;3;Acquisto di beni e servizi;2;5;4;BONIFICO A FAVORE DI EDISON ENERGIA S.P.A.Liquidazione Fattura Nr. 5751335792  del 12/01/2022 (di cui Split per euro 83,10) - IT001E04919521;405;1;3;2;5;4
EDISON ENERGIA S.P.A.;03/02/2022;Energia elettrica;366,78;0,00;66,14;8498487554;1;3;Acquisto di beni e servizi;2;5;4;BONIFICO A FAVORE DI EDISON ENERGIA S.P.A.Liquidazione Fattura Nr. 5751336373  del 12/01/2022 (di cui Split per euro 66,14) - IT001E04919524;351;1;3;2;5;4
EDISON ENERGIA S.P.A.;03/02/2022;Energia elettrica;105,39;0,00;19,00;8498487554;1;3;Acquisto di beni e servizi;2;5;4;BONIFICO A FAVORE DI EDISON ENERGIA S.P.A.Liquidazione Fattura Nr. 5751337269  del 12/01/2022 (di cui Split per euro 19,00) - IT001E04919544;434;1;3;2;5;4
EDISON ENERGIA S.P.A.;03/02/2022;Energia elettrica;158,08;0,00;28,51;8498487554;1;3;Acquisto di beni e servizi;2;5;4;BONIFICO A FAVORE DI EDISON ENERGIA S.P.A.Liquidazione Fattura Nr. 5751337269  del 12/01/2022 (di cui Split per euro 28,51) - IT001E04919544;435;1;3;2;5;4
EDISON ENERGIA S.P.A.;03/02/2022;Energia elettrica;532,26;0,00;95,99;8498487554;1;3;Acquisto di beni e servizi;2;5;4;BONIFICO A FAVORE DI EDISON ENERGIA S.P.A.Liquidazione Fattura Nr. 5751335158  del 12/01/2022 (di cui Split per euro 95,99) - IT001E04919534;447;1;3;2;5;4
EDISON ENERGIA S.P.A.;03/02/2022;Energia elettrica;37,37;0,00;6,73;8498487554;1;3;Acquisto di beni e servizi;2;5;4;BONIFICO A FAVORE DI EDISON ENERGIA S.P.A.Liquidazione Fattura Nr. 5751335158  del 12/01/2022 (di cui Split per euro 6,73) - IT001E04919534;406;1;3;2;5;4
EDISON ENERGIA S.P.A.;03/02/2022;Energia elettrica;11,59;0,00;2,09;8498487554;1;3;Acquisto di beni e servizi;2;5;4;BONIFICO A FAVORE DI EDISON ENERGIA S.P.A.Liquidazione Fattura Nr. 5751335158  del 12/01/2022 (di cui Split per euro 2,09) - IT001E04919534;355;1;3;2;5;4
EDISON ENERGIA S.P.A.;03/02/2022;Energia elettrica;563,68;0,00;101,65;8498487554;1;3;Acquisto di beni e servizi;2;5;4;BONIFICO A FAVORE DI EDISON ENERGIA S.P.A.Liquidazione Fattura Nr. 5751335246  del 12/01/2022 (di cui Split per euro 101,65) - IT001E40886806;399;1;3;2;5;4
EDISON ENERGIA S.P.A.;03/02/2022;Energia elettrica;240,04;0,00;43,29;8498487554;1;3;Acquisto di beni e servizi;2;5;4;BONIFICO A FAVORE DI EDISON ENERGIA S.P.A.Liquidazione Fattura Nr. 5751337501  del 12/01/2022 (di cui Split per euro 43,29) - IT001E04919529;424;1;3;2;5;4
EDISON ENERGIA S.P.A.;03/02/2022;Energia elettrica;199,42;0,00;35,96;8498487554;1;3;Acquisto di beni e servizi;2;5;4;BONIFICO A FAVORE DI EDISON ENERGIA S.P.A.Liquidazione Fattura Nr. 5751337979  del 12/01/2022 (di cui Split per euro 35,96) - IT001E04919519;347;1;3;2;5;4
EDISON ENERGIA S.P.A.;03/02/2022;Energia elettrica;728,01;0,00;131,28;8498487554;1;3;Acquisto di beni e servizi;2;5;4;BONIFICO A FAVORE DI EDISON ENERGIA S.P.A.Liquidazione Fattura Nr. 5751334625  del 12/01/2022 (di cui Split per euro 131,28) - IT001E43445285;420;1;3;2;5;4
EDISON ENERGIA S.P.A.;03/02/2022;Energia elettrica;44,59;0,00;8,04;8498487554;1;3;Acquisto di beni e servizi;2;5;4;BONIFICO A FAVORE DI EDISON ENERGIA S.P.A.Liquidazione Fattura Nr. 5751342137  del 12/01/2022 (di cui Split per euro 8,04) - IT001E04919543;361;1;3;2;5;4
EDISON ENERGIA S.P.A.;03/02/2022;Energia elettrica;599,62;0,00;108,13;8498487554;1;3;Acquisto di beni e servizi;2;5;4;BONIFICO A FAVORE DI EDISON ENERGIA S.P.A.Liquidazione Fattura Nr. 5751335087  del 12/01/2022 (di cui Split per euro 108,13) - IT001E04919538;382;1;3;2;5;4
EDISON ENERGIA S.P.A.;03/02/2022;Energia elettrica;11,36;0,00;2,05;8498487554;1;3;Acquisto di beni e servizi;2;5;4;BONIFICO A FAVORE DI EDISON ENERGIA S.P.A.Liquidazione Fattura Nr. 5751346112  del 12/01/2022 (di cui Split per euro 2,05) - IT001E40889318;343;1;3;2;5;4
EDISON ENERGIA S.P.A.;03/02/2022;Energia elettrica;35,53;0,00;6,41;8498487554;1;3;Acquisto di beni e servizi;2;5;4;BONIFICO A FAVORE DI EDISON ENERGIA S.P.A.Liquidazione Fattura Nr. 5751342729  del 12/01/2022 (di cui Split per euro 6,41) - IT001E04919530;342;1;3;2;5;4
EDISON ENERGIA S.P.A.;03/02/2022;Energia elettrica;37,25;0,00;6,72;8498487554;1;3;Acquisto di beni e servizi;2;5;4;BONIFICO A FAVORE DI EDISON ENERGIA S.P.A.Liquidazione Fattura Nr. 5751342619  del 12/01/2022 (di cui Split per euro 6,72) - IT001E04919532;341;1;3;2;5;4
EDISON ENERGIA S.P.A.;03/02/2022;Energia elettrica;77,35;0,00;13,95;8498487554;1;3;Acquisto di beni e servizi;2;5;4;BONIFICO A FAVORE DI EDISON ENERGIA S.P.A.Liquidazione Fattura Nr. 5751340516  del 12/01/2022 (di cui Split per euro 13,95) - IT001E04919527;348;1;3;2;5;4
EDISON ENERGIA S.P.A.;03/02/2022;Energia elettrica;11,05;0,00;1,99;8498487554;1;3;Acquisto di beni e servizi;2;5;4;BONIFICO A FAVORE DI EDISON ENERGIA S.P.A.Liquidazione Fattura Nr. 5751346390  del 12/01/2022 (di cui Split per euro 1,99) - IT001E04919522;357;1;3;2;5;4
EDISON ENERGIA S.P.A.;03/02/2022;Energia elettrica;18,63;0,00;3,36;8498487554;1;3;Acquisto di beni e servizi;2;5;4;BONIFICO A FAVORE DI EDISON ENERGIA S.P.A.LIQUIDAZIONE FATTURA NR. 5751344782  DEL 12/01/2022 (DI CUI SPLIT PER EURO 3,36) - IT001E43232056;429;1;3;2;5;4
EDISON ENERGIA S.P.A.;03/02/2022;Energia elettrica;31,31;0,00;5,65;8498487554;1;3;Acquisto di beni e servizi;2;5;4;BONIFICO A FAVORE DI EDISON ENERGIA S.P.A.LIQUIDAZIONE FATTURA NR. 5751343188  DEL 12/01/2022 (DI CUI SPLIT PER EURO 5,65) - IT001E43232057;430;1;3;2;5;4
EDISON ENERGIA S.P.A.;03/02/2022;Energia elettrica;14,99;0,00;2,70;8498487554;1;3;Acquisto di beni e servizi;2;5;4;BONIFICO A FAVORE DI EDISON ENERGIA S.P.A.Liquidazione Fattura Nr. 5751345292  del 12/01/2022 (di cui Split per euro 2,70) - IT001E41741369;349;1;3;2;5;4
EDISON ENERGIA S.P.A.;03/02/2022;Energia elettrica;27,10;0,00;4,89;8498487554;1;3;Acquisto di beni e servizi;2;5;4;BONIFICO A FAVORE DI EDISON ENERGIA S.P.A.LIQUIDAZIONE FATTURA NR. 5751343552  DEL 12/01/2022 (DI CUI SPLIT PER EURO 4,89) - IT001E41398842;428;1;3;2;5;4
EDISON ENERGIA S.P.A.;03/02/2022;Energia elettrica;11,05;0,00;1,99;8498487554;1;3;Acquisto di beni e servizi;2;5;4;BONIFICO A FAVORE DI EDISON ENERGIA S.P.A.Liquidazione Fattura Nr. 5751346393  del 12/01/2022 (di cui Split per euro 1,99) - IT001E04919533;350;1;3;2;5;4
EDISON ENERGIA S.P.A.;03/02/2022;Energia elettrica;19,29;0,00;3,48;8498487554;1;3;Acquisto di beni e servizi;2;5;4;BONIFICO A FAVORE DI EDISON ENERGIA S.P.A.Liquidazione Fattura Nr. 5751344707  del 12/01/2022 (di cui Split per euro 3,48) - IT001E04919526;426;1;3;2;5;4
EDISON ENERGIA S.P.A.;03/02/2022;Energia elettrica;26,99;0,00;4,87;8498487554;1;3;Acquisto di beni e servizi;2;5;4;BONIFICO A FAVORE DI EDISON ENERGIA S.P.A.LIQUIDAZIONE FATTURA NR. 5751343563  DEL 12/01/2022 (DI CUI SPLIT PER EURO 4,87) - IT001E43263124;427;1;3;2;5;4
EDISON ENERGIA S.P.A.;03/02/2022;Energia elettrica;62,92;0,00;11,35;8498487554;1;3;Acquisto di beni e servizi;2;5;4;BONIFICO A FAVORE DI EDISON ENERGIA S.P.A.Liquidazione Fattura Nr. 5751341151  del 12/01/2022 (di cui Split per euro 11,35) - IT001E04919535;383;1;3;2;5;4
EDISON ENERGIA S.P.A.;03/02/2022;Energia elettrica;914,31;0,00;164,88;8498487554;1;3;Acquisto di beni e servizi;2;5;4;BONIFICO A FAVORE DI EDISON ENERGIA S.P.A.Liquidazione Fattura Nr. 5751334153  del 12/01/2022 (di cui Split per euro 164,88) - IT001E04919516;393;1;3;2;5;4
EDISON ENERGIA S.P.A.;03/02/2022;Energia elettrica;13,37;0,00;2,41;8498487554;1;3;Acquisto di beni e servizi;2;5;4;BONIFICO A FAVORE DI EDISON ENERGIA S.P.A.Liquidazione Fattura Nr. 5751334153  del 12/01/2022 (di cui Split per euro 2,41) - IT001E04919516;353;1;3;2;5;4
EDISON ENERGIA S.P.A.;03/02/2022;Energia elettrica;85,17;0,00;15,36;8498487554;1;3;Acquisto di beni e servizi;2;5;4;BONIFICO A FAVORE DI EDISON ENERGIA S.P.A.Liquidazione Fattura Nr. 5751340254  del 12/01/2022 (di cui Split per euro 15,36) - IT001E04919540;439;1;3;2;5;4
EDISON ENERGIA S.P.A.;03/02/2022;Energia elettrica;21,31;0,00;3,84;8498487554;1;3;Acquisto di beni e servizi;2;5;4;BONIFICO A FAVORE DI EDISON ENERGIA S.P.A.Liquidazione Fattura Nr. 5751344478  del 12/01/2022 (di cui Split per euro 3,84) - IT001E04919518;354;1;3;2;5;4
EDISON ENERGIA S.P.A.;03/02/2022;Energia elettrica;61,87;0,00;11,16;8498487554;1;3;Acquisto di beni e servizi;2;5;4;BONIFICO A FAVORE DI EDISON ENERGIA S.P.A.Liquidazione Fattura Nr. 5751341192  del 12/01/2022 (di cui Split per euro 11,16) - IT001E04919517;352;1;3;2;5;4
EDISON ENERGIA S.P.A.;03/02/2022;Energia elettrica;845,81;0,00;152,53;8498487554;1;3;Acquisto di beni e servizi;2;5;4;BONIFICO A FAVORE DI EDISON ENERGIA S.P.A. Liquidazione Fattura Nr. 5751333024  del 12/01/2022 (di cui Split per euro 152,53) - IT001E04919531;440;1;3;2;5;4
EDISON ENERGIA S.P.A.;03/02/2022;Energia elettrica;567,02;0,00;102,24;8498487554;1;3;Acquisto di beni e servizi;2;5;4;BONIFICO A FAVORE DI EDISON ENERGIA S.P.A.Liquidazione Fattura Nr. 5751333024  del 12/01/2022 (di cui Split per euro 102,24) - IT001E04919531;421;1;3;2;5;4
EDISON ENERGIA S.P.A.;03/02/2022;Energia elettrica;101,52;0,00;18,31;8498487554;1;3;Acquisto di beni e servizi;2;5;4;BONIFICO A FAVORE DI EDISON ENERGIA S.P.A.Liquidazione Fattura Nr. 5751333024  del 12/01/2022 (di cui Split per euro 18,31) - IT001E04919531;423;1;3;2;5;4
EDISON ENERGIA S.P.A.;03/02/2022;Energia elettrica;147,56;0,00;26,61;8498487554;1;3;Acquisto di beni e servizi;2;5;4;BONIFICO A FAVORE DI EDISON ENERGIA S.P.A.Liquidazione Fattura Nr. 5751333024  del 12/01/2022 (di cui Split per euro 26,61) - IT001E04919531;381;1;3;2;5;4
EDISON ENERGIA S.P.A.;03/02/2022;Energia elettrica;122,30;0,00;22,05;8498487554;1;3;Acquisto di beni e servizi;2;5;4;BONIFICO A FAVORE DI EDISON ENERGIA S.P.A.Liquidazione Fattura Nr. 5751333024  del 12/01/2022 (di cui Split per euro 22,05) - IT001E04919531;392;1;3;2;5;4
EDISON ENERGIA S.P.A.;03/02/2022;Energia elettrica;5,26;0,00;0,95;8498487554;1;3;Acquisto di beni e servizi;2;5;4;BONIFICO A FAVORE DI EDISON ENERGIA S.P.A.Liquidazione Fattura Nr. 5751333024  del 12/01/2022 (di cui Split per euro 0,95) - IT001E04919531;407;1;3;2;5;4
EDISON ENERGIA S.P.A.;03/02/2022;Energia elettrica;8,33;0,00;1,50;8498487554;1;3;Acquisto di beni e servizi;2;5;4;BONIFICO A FAVORE DI EDISON ENERGIA S.P.A.Liquidazione Fattura Nr. 5751333024  del 12/01/2022 (di cui Split per euro 1,50) - IT001E04919531;408;1;3;2;5;4
EDISON ENERGIA S.P.A.;03/02/2022;Energia elettrica;566,43;0,00;102,15;8498487554;1;3;Acquisto di beni e servizi;2;5;4;BONIFICO A FAVORE DI EDISON ENERGIA S.P.A.Liquidazione Fattura Nr. 5751333423  del 12/01/2022 (di cui Split per euro 102,15) - IT001E04919523;346;1;3;2;5;4
EDISON ENERGIA S.P.A.;03/02/2022;Energia elettrica;813,52;0,00;146,69;8498487554;1;3;Acquisto di beni e servizi;2;5;4;BONIFICO A FAVORE DI EDISON ENERGIA S.P.A.Liquidazione Fattura Nr. 5751333423  del 12/01/2022 (di cui Split per euro 146,69) - IT001E04919523;362;1;3;2;5;4
EDISON ENERGIA S.P.A.;03/02/2022;Energia elettrica;388,40;0,00;70,04;8498487554;1;3;Acquisto di beni e servizi;2;5;4;BONIFICO A FAVORE DI EDISON ENERGIA S.P.A.Liquidazione Fattura Nr. 5751336238  del 12/01/2022 (di cui Split per euro 70,04) - IT001E04919536;344;1;3;2;5;4
EDISON ENERGIA S.P.A.;03/02/2022;Energia elettrica;219,37;0,00;39,56;8498487554;1;3;Acquisto di beni e servizi;2;5;4;BONIFICO A FAVORE DI EDISON ENERGIA S.P.A.Liquidazione Fattura Nr. 5751337720  del 12/01/2022 (di cui Split per euro 39,56) - IT001E04919525;345;1;3;2;5;4
EDISON ENERGIA S.P.A.;03/02/2022;Energia elettrica;137,48;0,00;24,79;8498487554;1;3;Acquisto di beni e servizi;2;5;4;BONIFICO A FAVORE DI EDISON ENERGIA S.P.A.Liquidazione Fattura Nr. 5751338926  del 12/01/2022 (di cui Split per euro 24,79) - IT001E04919515;380;1;3;2;5;4
EDISON ENERGIA S.P.A.;03/02/2022;Gas;590,60;0,00;28,12;89162702C5;1;3;Acquisto di beni e servizi;2;5;6;BONIFICO A FAVORE DI EDISON ENERGIA SPA.Liquidazione Fattura Nr. 5950253886  del 17/01/2022 (di cui Split per euro 28,12) - 15964204269553;416;1;3;2;5;6
EDISON ENERGIA S.P.A.;03/02/2022;Gas;885,90;0,00;42,19;89162702C5;1;3;Acquisto di beni e servizi;2;5;6;BONIFICO A FAVORE DI EDISON ENERGIA SPA.Liquidazione Fattura Nr. 5950253886  del 17/01/2022 (di cui Split per euro 42,19) - 15964204269553;417;1;3;2;5;6
EDISON ENERGIA S.P.A.;03/02/2022;Gas;1.719,28;0,00;81,87;89162702C5;1;3;Acquisto di beni e servizi;2;5;6;BONIFICO A FAVORE DI EDISON ENERGIA SPA.Liquidazione Fattura Nr. 5950253530  del 17/01/2022 (di cui Split per euro 81,87) - 15104203730639;396;1;3;2;5;6
EDISON ENERGIA S.P.A.;03/02/2022;Gas;937,63;0,00;44,65;89162702C5;1;3;Acquisto di beni e servizi;2;5;6;BONIFICO A FAVORE DI EDISON ENERGIA SPA.Liquidazione Fattura Nr. 5950253530  del 17/01/2022 (di cui Split per euro 44,65) - 15104203730639;397;1;3;2;5;6
EDISON ENERGIA S.P.A.;03/02/2022;Gas;2.147,52;0,00;102,26;89162702C5;1;3;Acquisto di beni e servizi;2;5;6;BONIFICO A FAVORE DI EDISON ENERGIA SPA.Liquidazione Fattura Nr. 5950253646  del 17/01/2022 (di cui Split per euro 102,26) - 15104203728332;375;1;3;2;5;6
EDISON ENERGIA S.P.A.;03/02/2022;Gas;414,94;0,00;19,76;89162702C5;1;3;Acquisto di beni e servizi;2;5;6;BONIFICO A FAVORE DI EDISON ENERGIA SPA.Liquidazione Fattura Nr. 5950254139  del 17/01/2022 (di cui Split per euro 19,76) - 15104203729242;437;1;3;2;5;6
EDISON ENERGIA S.P.A.;03/02/2022;Gas;622,40;0,00;29,64;89162702C5;1;3;Acquisto di beni e servizi;2;5;6;BONIFICO A FAVORE DI EDISON ENERGIA SPA.Liquidazione Fattura Nr. 5950254139  del 17/01/2022 (di cui Split per euro 29,64) - 15104203729242;438;1;3;2;5;6
EDISON ENERGIA S.P.A.;03/02/2022;Gas;2.766,96;0,00;131,76;89162702C5;1;3;Acquisto di beni e servizi;2;5;6;BONIFICO A FAVORE DI EDISON ENERGIA SPA.Liquidazione Fattura Nr. 5950253498  del 17/01/2022 (di cui Split per euro 131,76) - 15104203730736;374;1;3;2;5;6
EDISON ENERGIA S.P.A.;03/02/2022;Gas;300,00;0,00;14,29;89162702C5;1;3;Acquisto di beni e servizi;2;5;6;BONIFICO A FAVORE DI EDISON ENERGIA SPA.Liquidazione Fattura Nr. 5950254526  del 17/01/2022 (di cui Split per euro 14,29) - 15104203728281;373;1;3;2;5;6
EDISON ENERGIA S.P.A.;03/02/2022;Gas;308,63;0,00;14,69;89162702C5;1;3;Acquisto di beni e servizi;2;5;6;BONIFICO A FAVORE DI EDISON ENERGIA SPA.Liquidazione Fattura Nr. 5950254526  del 17/01/2022 (di cui Split per euro 14,69) - 15104203728281;339;1;3;2;5;6
EDISON ENERGIA S.P.A.;03/02/2022;Gas;36,32;0,00;1,73;89162702C5;1;3;Acquisto di beni e servizi;2;5;6;BONIFICO A FAVORE DI EDISON ENERGIA SPA.Liquidazione Fattura Nr. 5950254526  del 17/01/2022 (di cui Split per euro 1,73) - 15104203728281;444;1;3;2;5;6
EDISON ENERGIA S.P.A.;03/02/2022;Gas;300,00;0,00;14,28;89162702C5;1;3;Acquisto di beni e servizi;2;5;6;BONIFICO A FAVORE DI EDISON ENERGIA SPA.Liquidazione Fattura Nr. 5950253558  del 17/01/2022 (di cui Split per euro 14,28) - 15104203730640;389;1;3;2;5;6
EDISON ENERGIA S.P.A.;03/02/2022;Gas;2.189,19;0,00;104,25;89162702C5;1;3;Acquisto di beni e servizi;2;5;6;BONIFICO A FAVORE DI EDISON ENERGIA SPA.Liquidazione Fattura Nr. 5950253558  del 17/01/2022 (di cui Split per euro 104,25) - 15104203730640;443;1;3;2;5;6
EDISON ENERGIA S.P.A.;03/02/2022;Gas;45,22;0,00;2,15;89162702C5;1;3;Acquisto di beni e servizi;2;5;6;BONIFICO A FAVORE DI EDISON ENERGIA SPA.Liquidazione Fattura Nr. 5950255605  del 17/01/2022 (di cui Split per euro 2,15) - 15104203729241;340;1;3;2;5;6
EDISON ENERGIA S.P.A.;03/02/2022;Gas;307,63;0,00;14,65;89162702C5;1;3;Acquisto di beni e servizi;2;5;6;BONIFICO A FAVORE DI EDISON ENERGIA SPA.Liquidazione Fattura Nr. 5950255006  del 17/01/2022 (di cui Split per euro 14,65) - 15104203729400;441;1;3;2;5;6
EDISON ENERGIA S.P.A.;03/02/2022;Gas;300,00;0,00;14,33;89162702C5;1;3;Acquisto di beni e servizi;2;5;6;BONIFICO A FAVORE DI EDISON ENERGIA SPA.Liquidazione Fattura Nr. 5950253463  del 17/01/2022 (di cui Split per euro 14,33) - 15104203730554;445;1;3;2;5;6
EDISON ENERGIA S.P.A.;03/02/2022;Gas;160,30;0,00;12,24;89162702C5;1;3;Acquisto di beni e servizi;2;5;6;BONIFICO A FAVORE DI EDISON ENERGIA SPA.Liquidazione Fattura Nr. 5950253463  del 17/01/2022 (di cui Split per euro 12,24) - 15104203730554;442;1;3;2;5;6
EDISON ENERGIA S.P.A.;03/02/2022;Gas;2.493,90;0,00;114,11;89162702C5;1;3;Acquisto di beni e servizi;2;5;6;BONIFICO A FAVORE DI EDISON ENERGIA SPA.Liquidazione Fattura Nr. 5950253463  del 17/01/2022 (di cui Split per euro 114,11) - 15104203730554;446;1;3;2;5;6
EDISON ENERGIA S.P.A.;03/02/2022;Gas;1.373,70;0,00;65,41;89162702C5;1;3;Acquisto di beni e servizi;2;5;6;BONIFICO A FAVORE DI EDISON ENERGIA SPA.Liquidazione Fattura Nr. 5950253941  del 17/01/2022 (di cui Split per euro 65,41) - 15964204304490;337;1;3;2;5;6
EDISON ENERGIA S.P.A.;03/02/2022;Gas;474,31;0,00;22,59;89162702C5;1;3;Acquisto di beni e servizi;2;5;6;BONIFICO A FAVORE DI EDISON ENERGIA SPA.Liquidazione Fattura Nr. 5950254741  del 17/01/2022 (di cui Split per euro 22,59) - 15104203728249;376;1;3;2;5;6
EDISON ENERGIA S.P.A.;03/02/2022;Gas;894,86;0,00;42,61;89162702C5;1;3;Acquisto di beni e servizi;2;5;6;BONIFICO A FAVORE DI EDISON ENERGIA SPA.Liquidazione Fattura Nr. 5950254266  del 17/01/2022 (di cui Split per euro 42,61) - 15104203729253;338;1;3;2;5;6
CIR FOOD S.C. DIVISIONE EUDANIA;03/02/2022;Contratti di servizio per le mense scolastiche;27.884,88;0,00;1.072,50;7769463BAF;1;3;Acquisto di beni e servizi;2;15;6;Liquidazione Fattura Nr. 5200032310  del 27/12/2021 (di cui Split per euro 1.072,50) - Destinatario:0000100288,COMUNE DI VINCI,Piazza Leonardo 29,VINCI,50059,FI Trattenute DPR RIT 0,5 % ART. 4 C.3 DPR 207/2010 di 134,74- RIF2: SER.RIST.SCOL;298;1;3;2;15;6
RAHULIA ANGELA;03/02/2022;Altri assegni e sussidi assistenziali;150,00;0,00;0,00;;1;4;Trasferimenti correnti;2;2;999;CONTRIBUTO CITTADINI ATTIVITA' SPORTIVE E RICREATIVE 2021 COVID;332;1;4;2;2;999
DESIDERI PRISCILLA;03/02/2022;Altri assegni e sussidi assistenziali;150,00;0,00;0,00;;1;4;Trasferimenti correnti;2;2;999;CONTRIBUTO CITTADINI ATTIVITA' SPORTIVE E RICREATIVE 2021 COVID;321;1;4;2;2;999
BIANCALANI CAMILLA;03/02/2022;Altri assegni e sussidi assistenziali;300,00;0,00;0,00;;1;4;Trasferimenti correnti;2;2;999;CONTRIBUTO CITTADINI ATTIVITA' SPORTIVE E RICREATIVE 2021 COVID;317;1;4;2;2;999
TRAMACERE  PANCRAZIO;03/02/2022;Altri assegni e sussidi assistenziali;150,00;0,00;0,00;;1;4;Trasferimenti correnti;2;2;999;CONTRIBUTO CITTADINI ATTIVITA' SPORTIVE E RICREATIVE 2021 COVID;335;1;4;2;2;999
FAIELLA  RAFFAELLA;03/02/2022;Altri assegni e sussidi assistenziali;300,00;0,00;0,00;;1;4;Trasferimenti correnti;2;2;999;CONTRIBUTO CITTADINI ATTIVITA' SPORTIVE E RICREATIVE 2021 COVID;322;1;4;2;2;999
FRATERNITA MISERICORDIA DI VINCI;03/02/2022;Altri servizi ausiliari n.a.c.;3.550,00;0,00;0,00;ZCE2FCD73F;1;3;Acquisto di beni e servizi;2;13;999;Liquidazione Fattura Nr. FATTPA 60_21  del 31/12/2021 - Fornitura generica;310;1;3;2;13;999
CRISTOFORO SOC.COOP. SOCIALE ONLUS;03/02/2022;Altri servizi diversi n.a.c.;9.036,02;0,00;821,46;8589752796;1;3;Acquisto di beni e servizi;2;99;999;Liquidazione Fattura Nr. 2159. 20006/ 2021  del 30/12/2021 (di cui Split per euro 821,46) - FATTURA;297;1;3;2;99;999
ZIPOLI  DANIELE;03/02/2022;Altri assegni e sussidi assistenziali;150,00;0,00;0,00;;1;4;Trasferimenti correnti;2;2;999;CONTRIBUTO CITTADINI ATTIVITA' SPORTIVE E RICREATIVE 2021 COVID;336;1;4;2;2;999
FONDAZIONE TOSCANA SPETTACOLO ONLUS;03/02/2022;Trasferimenti correnti a Istituzioni Sociali Private ;5.000,00;0,00;0,00;;1;4;Trasferimenti correnti;4;1;1;Rassegna Piccolo Genio 2022 - Liquidazione quota compartecipazione ;313;1;4;4;1;1
FASTWEB SPA;03/02/2022;Telefonia fissa;685,85;0,00;123,69;Z1E2D7A299;1;3;Acquisto di beni e servizi;2;5;1;"Liquidazione Fattura Nr. PAE0051807  del 31/12/2021 (di cui Split per euro 123,69) - AFFIDAMENTO DIRETTO DEL SERVIZIO DI TELEFONIA FISSA E DI ALCUNE LINEE DATI MEDIANTE ADESIONE ALLA CONVENZIONE CONSIP DENOMINATA ""TELEFONIA FISSA 5"" PER LA ";363;1;3;2;5;1
FASTWEB SPA;03/02/2022;Telefonia fissa;55,37;0,00;9,98;Z1E2D7A299;1;3;Acquisto di beni e servizi;2;5;1;"Liquidazione Fattura Nr. PAE0051807  del 31/12/2021 (di cui Split per euro 9,98) - AFFIDAMENTO DIRETTO DEL SERVIZIO DI TELEFONIA FISSA E DI ALCUNE LINEE DATI MEDIANTE ADESIONE ALLA CONVENZIONE CONSIP DENOMINATA ""TELEFONIA FISSA 5"" PER LA DU";398;1;3;2;5;1
FASTWEB SPA;03/02/2022;Telefonia fissa;38,17;0,00;6,88;Z1E2D7A299;1;3;Acquisto di beni e servizi;2;5;1;"Liquidazione Fattura Nr. PAE0051807  del 31/12/2021 (di cui Split per euro 6,88) - AFFIDAMENTO DIRETTO DEL SERVIZIO DI TELEFONIA FISSA E DI ALCUNE LINEE DATI MEDIANTE ADESIONE ALLA CONVENZIONE CONSIP DENOMINATA ""TELEFONIA FISSA 5"" PER LA DU";390;1;3;2;5;1
FASTWEB SPA;03/02/2022;Telefonia fissa;15,51;0,00;2,80;Z1E2D7A299;1;3;Acquisto di beni e servizi;2;5;1;"Liquidazione Fattura Nr. PAE0051807  del 31/12/2021 (di cui Split per euro 2,80) - AFFIDAMENTO DIRETTO DEL SERVIZIO DI TELEFONIA FISSA E DI ALCUNE LINEE DATI MEDIANTE ADESIONE ALLA CONVENZIONE CONSIP DENOMINATA ""TELEFONIA FISSA 5"" PER LA DU";433;1;3;2;5;1
FASTWEB SPA;03/02/2022;Telefonia fissa;14,03;0,00;2,53;Z1E2D7A299;1;3;Acquisto di beni e servizi;2;5;1;"Liquidazione Fattura Nr. PAE0051807  del 31/12/2021 (di cui Split per euro 2,53) - AFFIDAMENTO DIRETTO DEL SERVIZIO DI TELEFONIA FISSA E DI ALCUNE LINEE DATI MEDIANTE ADESIONE ALLA CONVENZIONE CONSIP DENOMINATA ""TELEFONIA FISSA 5"" PER LA DU";377;1;3;2;5;1
FASTWEB SPA;03/02/2022;Telefonia fissa;11,71;0,00;2,11;Z1E2D7A299;1;3;Acquisto di beni e servizi;2;5;1;"Liquidazione Fattura Nr. PAE0051807  del 31/12/2021 (di cui Split per euro 2,11) - AFFIDAMENTO DIRETTO DEL SERVIZIO DI TELEFONIA FISSA E DI ALCUNE LINEE DATI MEDIANTE ADESIONE ALLA CONVENZIONE CONSIP DENOMINATA ""TELEFONIA FISSA 5"" PER LA DU";404;1;3;2;5;1
FASTWEB SPA;03/02/2022;Telefonia fissa;11,71;0,00;2,11;Z1E2D7A299;1;3;Acquisto di beni e servizi;2;5;1;"Liquidazione Fattura Nr. PAE0051807  del 31/12/2021 (di cui Split per euro 2,11) - AFFIDAMENTO DIRETTO DEL SERVIZIO DI TELEFONIA FISSA E DI ALCUNE LINEE DATI MEDIANTE ADESIONE ALLA CONVENZIONE CONSIP DENOMINATA ""TELEFONIA FISSA 5"" PER LA DU";422;1;3;2;5;1
INNOCENTI FABRIZIO;03/02/2022;Altri assegni e sussidi assistenziali;150,00;0,00;0,00;;1;4;Trasferimenti correnti;2;2;999;CONTRIBUTO CITTADINI ATTIVITA' SPORTIVE E RICREATIVE 2021 COVID;326;1;4;2;2;999
TIM S.P.A. DIREZIONE E COORDINAMENTO VIVENDI SA;03/02/2022;Telefonia mobile;185,97;0,00;33,39;Z692A72C5A;1;3;Acquisto di beni e servizi;2;5;2;Liquidazione Fattura Nr. 7X04161112  del 11/12/2021 (di cui Split per euro 33,39) - 1BIM 2022;371;1;3;2;5;2
TIM S.P.A. DIREZIONE E COORDINAMENTO VIVENDI SA;03/02/2022;Telefonia mobile;90,94;0,00;16,33;Z692A72C5A;1;3;Acquisto di beni e servizi;2;5;2;Liquidazione Fattura Nr. 7X04161112  del 11/12/2021 (di cui Split per euro 16,33) - 1BIM 2022;365;1;3;2;5;2
TIM S.P.A. DIREZIONE E COORDINAMENTO VIVENDI SA;03/02/2022;Telefonia mobile;42,06;0,00;7,55;Z692A72C5A;1;3;Acquisto di beni e servizi;2;5;2;Liquidazione Fattura Nr. 7X04161112  del 11/12/2021 (di cui Split per euro 7,55) - 1BIM 2022;370;1;3;2;5;2
TIM S.P.A. DIREZIONE E COORDINAMENTO VIVENDI SA;03/02/2022;Servizi di rete per trasmissione dati e VoIP e relativa manutenzione;12,37;0,00;2,22;Z692A72C5A;1;3;Acquisto di beni e servizi;2;19;4;Liquidazione Fattura Nr. 7X04161112  del 11/12/2021 (di cui Split per euro 2,22) - 1BIM 2022;411;1;3;2;19;4
TIM S.P.A. DIREZIONE E COORDINAMENTO VIVENDI SA;03/02/2022;Servizi di rete per trasmissione dati e VoIP e relativa manutenzione;86,19;0,00;14,19;Z112B35FF0;1;3;Acquisto di beni e servizi;2;19;4;Liquidazione Fattura Nr. 8L00610935  del 11/12/2021 (di cui Split per euro 14,19) - 1BIM 2022;388;1;3;2;19;4
TIM S.P.A. DIREZIONE E COORDINAMENTO VIVENDI SA;03/02/2022;Telefonia fissa;28,73;0,00;4,73;Z112B35FF0;1;3;Acquisto di beni e servizi;2;5;1;Liquidazione Fattura Nr. 8L00610935  del 11/12/2021 (di cui Split per euro 4,73) - 1BIM 2022;378;1;3;2;5;1
TIM S.P.A. DIREZIONE E COORDINAMENTO VIVENDI SA;03/02/2022;Servizi di rete per trasmissione dati e VoIP e relativa manutenzione;86,19;0,00;14,19;Z112B35FF0;1;3;Acquisto di beni e servizi;2;19;4;Liquidazione Fattura Nr. 8L00611551  del 11/12/2021 (di cui Split per euro 14,19) - 1BIM 2022;387;1;3;2;19;4
TIM S.P.A. DIREZIONE E COORDINAMENTO VIVENDI SA;03/02/2022;Telefonia fissa;28,73;0,00;4,73;Z112B35FF0;1;3;Acquisto di beni e servizi;2;5;1;Liquidazione Fattura Nr. 8L00611551  del 11/12/2021 (di cui Split per euro 4,73) - 1BIM 2022;379;1;3;2;5;1
TIM S.P.A. DIREZIONE E COORDINAMENTO VIVENDI SA;03/02/2022;Telefonia fissa;100,28;0,00;18,08;Z1515A9942;1;3;Acquisto di beni e servizi;2;5;1;Liquidazione Fattura Nr. 8L00611174  del 11/12/2021 (di cui Split per euro 18,08) - 1BIM 2022;364;1;3;2;5;1
TIM S.P.A. DIREZIONE E COORDINAMENTO VIVENDI SA;03/02/2022;Servizi di rete per trasmissione dati e VoIP e relativa manutenzione;318,38;0,00;46,38;Z02264C2B7;1;3;Acquisto di beni e servizi;2;19;4;Liquidazione Fattura Nr. 8L00612216  del 11/12/2021 (di cui Split per euro 46,38) - 1BIM 2022;395;1;3;2;19;4
TIM S.P.A. DIREZIONE E COORDINAMENTO VIVENDI SA;03/02/2022;Servizi di rete per trasmissione dati e VoIP e relativa manutenzione;112,24;0,00;20,24;Z4419D9E67;1;3;Acquisto di beni e servizi;2;19;4;Liquidazione Fattura Nr. 8L00609543  del 11/12/2021 (di cui Split per euro 20,24) - 1BIM 2022;436;1;3;2;19;4
TIM S.P.A. DIREZIONE E COORDINAMENTO VIVENDI SA;03/02/2022;Servizi di rete per trasmissione dati e VoIP e relativa manutenzione;114,92;0,00;18,92;Z112B35FF0;1;3;Acquisto di beni e servizi;2;19;4;Liquidazione Fattura Nr. 8L00613062  del 11/12/2021 (di cui Split per euro 18,92) - 1BIM 2022;391;1;3;2;19;4
TIM S.P.A. DIREZIONE E COORDINAMENTO VIVENDI SA;03/02/2022;Telefonia fissa;56,40;0,00;10,17;Z02264C2B7;1;3;Acquisto di beni e servizi;2;5;1;Liquidazione Fattura Nr. 8L00612085  del 11/12/2021 (di cui Split per euro 10,17) - 1BIM 2022;403;1;3;2;5;1
TIM S.P.A. DIREZIONE E COORDINAMENTO VIVENDI SA;03/02/2022;Telefonia fissa;46,00;0,00;8,30;Z02264C2B7;1;3;Acquisto di beni e servizi;2;5;1;Liquidazione Fattura Nr. 8L00612085  del 11/12/2021 (di cui Split per euro 8,30) - 1BIM 2022;402;1;3;2;5;1
TIM S.P.A. DIREZIONE E COORDINAMENTO VIVENDI SA;03/02/2022;Telefonia fissa;29,00;0,00;5,23;Z02264C2B7;1;3;Acquisto di beni e servizi;2;5;1;Liquidazione Fattura Nr. 8L00612085  del 11/12/2021 (di cui Split per euro 5,23) - 1BIM 2022;394;1;3;2;5;1
TIM S.P.A. DIREZIONE E COORDINAMENTO VIVENDI SA;03/02/2022;Servizi di rete per trasmissione dati e VoIP e relativa manutenzione;90,52;0,00;14,52;ZBB27E8244;1;3;Acquisto di beni e servizi;2;19;4;Liquidazione Fattura Nr. 8L00612228  del 11/12/2021 (di cui Split per euro 14,52) - 1BIM 2022;366;1;3;2;19;4
TIM S.P.A. DIREZIONE E COORDINAMENTO VIVENDI SA;03/02/2022;Servizi di rete per trasmissione dati e VoIP e relativa manutenzione;124,66;0,00;22,48;Z5915A5067;1;3;Acquisto di beni e servizi;2;19;4;Liquidazione Fattura Nr. 8L00609784  del 11/12/2021 (di cui Split per euro 22,48) - 1BIM 2022;386;1;3;2;19;4
TIM S.P.A. DIREZIONE E COORDINAMENTO VIVENDI SA;03/02/2022;Servizi di rete per trasmissione dati e VoIP e relativa manutenzione;225,36;0,00;40,64;Z4419D9E67;1;3;Acquisto di beni e servizi;2;19;4;Liquidazione Fattura Nr. 8L00611201  del 11/12/2021 (di cui Split per euro 40,64) - 1BIM 2022;367;1;3;2;19;4
TIM S.P.A. DIREZIONE E COORDINAMENTO VIVENDI SA;03/02/2022;Servizi di rete per trasmissione dati e VoIP e relativa manutenzione;225,36;0,00;40,64;Z4419D9E67;1;3;Acquisto di beni e servizi;2;19;4;Liquidazione Fattura Nr. 8L00611022  del 11/12/2021 (di cui Split per euro 40,64) - 1BIM 2022;368;1;3;2;19;4
TIM S.P.A. DIREZIONE E COORDINAMENTO VIVENDI SA;03/02/2022;Servizi di rete per trasmissione dati e VoIP e relativa manutenzione;124,66;0,00;22,48;Z360C4F27E;1;3;Acquisto di beni e servizi;2;19;4;Liquidazione Fattura Nr. 8L00611002  del 11/12/2021 (di cui Split per euro 22,48) - 1BIM 2022;369;1;3;2;19;4
TIM S.P.A. DIREZIONE E COORDINAMENTO VIVENDI SA;03/02/2022;Servizi di rete per trasmissione dati e VoIP e relativa manutenzione;307,98;0,00;55,54;Z1515A9942;1;3;Acquisto di beni e servizi;2;19;4;Liquidazione Fattura Nr. 4220622800013292  del 11/12/2021 (di cui Split per euro 55,54) - 1BIM 2022;412;1;3;2;19;4
TIM S.P.A. DIREZIONE E COORDINAMENTO VIVENDI SA;03/02/2022;Servizi di rete per trasmissione dati e VoIP e relativa manutenzione;43,04;0,00;7,76;Z5915A5067;1;3;Acquisto di beni e servizi;2;19;4;Liquidazione Fattura Nr. 8L00612418  del 11/12/2021 (di cui Split per euro 7,76) - 1BIM 2022;413;1;3;2;19;4
TIM S.P.A. DIREZIONE E COORDINAMENTO VIVENDI SA;03/02/2022;Servizi di rete per trasmissione dati e VoIP e relativa manutenzione;25,34;0,00;4,57;Z5915A5067;1;3;Acquisto di beni e servizi;2;19;4;Liquidazione Fattura Nr. 8L00612418  del 11/12/2021 (di cui Split per euro 4,57) - 1BIM 2022;414;1;3;2;19;4
TIM S.P.A. DIREZIONE E COORDINAMENTO VIVENDI SA;03/02/2022;Servizi di rete per trasmissione dati e VoIP e relativa manutenzione;65,84;0,00;11,87;Z02264C2B7;1;3;Acquisto di beni e servizi;2;19;4;Liquidazione Fattura Nr. 8L00612418  del 11/12/2021 (di cui Split per euro 11,87) - 1BIM 2022;385;1;3;2;19;4
TIM S.P.A. DIREZIONE E COORDINAMENTO VIVENDI SA;03/02/2022;Servizi di rete per trasmissione dati e VoIP e relativa manutenzione;100,00;0,00;18,03;Z02264C2B7;1;3;Acquisto di beni e servizi;2;19;4;Liquidazione Fattura Nr. 8L00610827  del 11/12/2021 (di cui Split per euro 18,03) - 1BIM 2022;415;1;3;2;19;4
TIM S.P.A. DIREZIONE E COORDINAMENTO VIVENDI SA;03/02/2022;Servizi di rete per trasmissione dati e VoIP e relativa manutenzione;90,10;0,00;12,07;Z02264C2B7;1;3;Acquisto di beni e servizi;2;19;4;Liquidazione Fattura Nr. 8L00610827  del 11/12/2021 (di cui Split per euro 12,07) - 1BIM 2022;384;1;3;2;19;4
TIM S.P.A. DIREZIONE E COORDINAMENTO VIVENDI SA;03/02/2022;Servizi di rete per trasmissione dati e VoIP e relativa manutenzione;750,30;0,00;135,30;ZF522267E6;1;3;Acquisto di beni e servizi;2;19;4;Liquidazione Fattura Nr. 6820211220002357  del 23/12/2021 (di cui Split per euro 135,30) - FATTURAZIONE CONTRATTO RETE DATI RTRT3 - 4' TRIMESTRE 2021;401;1;3;2;19;4
MINISTERO DELL'INTERNO DIREZIONE CENTRALE PER I SERVIZI DEMOGRAFICI;03/02/2022;Trasferimenti correnti a Ministeri;1.410,36;0,00;0,00;;1;4;Trasferimenti correnti;1;1;1;COMUNE DI VINCI, M059, CORRISPETTIVO PER RILASCIO N. 84 CIE PERIODO 1-15DICEMBRE 2021;311;1;4;1;1;1
GENOVESI LUMINARIE SRL;03/02/2022;Altri servizi diversi n.a.c.;9.808,80;0,00;1.768,80;Z0B3405865;1;3;Acquisto di beni e servizi;2;99;999;Liquidazione Fattura Nr. 31  del 12/01/2022 (di cui Split per euro 1.768,80) - Fornitura generica;308;1;3;2;99;999
SPINELLI SEBASTIAN;03/02/2022;Altri assegni e sussidi assistenziali;150,00;0,00;0,00;;1;4;Trasferimenti correnti;2;2;999;CONTRIBUTO CITTADINI ATTIVITA' SPORTIVE E RICREATIVE 2021 COVID;334;1;4;2;2;999
A2A ENERGIA SPA;03/02/2022;Energia elettrica;127,06;0,00;22,92;8498237705;1;3;Acquisto di beni e servizi;2;5;4;Liquidazione Fattura Nr. 822000026093  del 28/01/2022 (di cui Split per euro 22,92) - FORNITURA ENERGIA ELETTRICA periodo: 01.12.2021-31.12.2021 POD IT001E40095287 Contatore 000000000000446296 kWh 1039 Importi al netto della ritenuta di gar;301;1;3;2;5;4
A2A ENERGIA SPA;03/02/2022;Energia elettrica;26.540,99;0,00;4.786,08;8498237705;1;3;Acquisto di beni e servizi;2;5;4;Liquidazione Fattura Nr. 822000027016  del 28/01/2022 (di cui Split per euro 4.786,08) - FORNITURA ENERGIA ELETTRICA periodo: 01.03.2021-31.12.2021 kWh 169139 Importi al netto della ritenuta di garanzia del 0,5% ai sensi art.4 D.P.R.207/20;302;1;3;2;5;4
SYNLAB MED SRL A SOCIO UNICO;03/02/2022;Spese per accertamenti sanitari resi necessari dall'attivit� lavorativa;265,99;0,00;0,00;ZE926707A5;1;3;Acquisto di beni e servizi;2;18;1;LIQUIDAZIONE FATTURA NR. G21/00223  DEL 31/12/2021 - IMPEGNO DS02082/1/2019 CAPITOLO 716/2021;309;1;3;2;18;1
CHESI SAMANTA;03/02/2022;Altri assegni e sussidi assistenziali;150,00;0,00;0,00;;1;4;Trasferimenti correnti;2;2;999;CONTRIBUTO CITTADINI ATTIVITA' SPORTIVE E RICREATIVE 2021 COVID;319;1;4;2;2;999
B. & B. SERVICE SOCIETA' COOPERATIVA;03/02/2022;Contratti di servizio di trasporto scolastico;40.602,45;0,00;3.691,13;7784415E76;1;3;Acquisto di beni e servizi;2;15;2;Liquidazione Fattura Nr. 940/PA  del 17/12/2021 (di cui Split per euro 3.691,13) - PROCEDURA APERTA AI SENSI DELL'  ART 60 DLGS 50/2016) CON MODALIT� TELEMATICA PER AFFIDAMENTO APPALTO  DEI SERVIZI DI TRASPORTO SCOLASTICO DAL 15 OTTOBRE 201;296;1;3;2;15;2
GIACOMELLI  SANDRA;03/02/2022;Altri assegni e sussidi assistenziali;300,00;0,00;0,00;;1;4;Trasferimenti correnti;2;2;999;CONTRIBUTO CITTADINI ATTIVITA' SPORTIVE E RICREATIVE 2021 COVID;324;1;4;2;2;999
B. & B. SERVICE SOC. COOP.;03/02/2022;Contratti di servizio di trasporto scolastico;32.837,45;0,00;2.985,22;7784415E76;1;3;Acquisto di beni e servizi;2;15;2;Liquidazione Fattura Nr. 1009/PA  del 31/12/2021 (di cui Split per euro 2.985,22) - PROCEDURA APERTA AI SENSI DELL'  ART 60 DLGS 50/2016) CON MODALIT� TELEMATICA PER AFFIDAMENTO APPALTO  DEI SERVIZI DI TRASPORTO SCOLASTICO DAL 15 OTTOBRE 20;295;1;3;2;15;2
MASCAGNI FILIPPO;03/02/2022;Altri assegni e sussidi assistenziali;90,00;0,00;0,00;;1;4;Trasferimenti correnti;2;2;999;CONTRIBUTO CITTADINI  ATTIVITA' SPORTIVE E RICREATIVE 2021 COVID;328;1;4;2;2;999
MINISTERO PER LE PARI OPPORTUNITA' E LA FAMIGLIA PRESIDENZA DEL CONSIGLIO DEI MI;03/02/2022;Altri servizi diversi n.a.c.;25.105,71;0,00;0,00;;1;3;Acquisto di beni e servizi;2;99;999;DIPOFAM Centri estivi 2021- reso somme assegnate con DPCM 24 giugno 2021;316;1;3;2;99;999
EDIST ENGINEERING S.R.L.;03/02/2022;Servizi per i sistemi e relativa manutenzione;3.431,04;0,00;618,71;Z62345F4B3;1;3;Acquisto di beni e servizi;2;19;5;Liquidazione Fattura Nr. 20215310  del 31/12/2021 (di cui Split per euro 618,71) - Rif. ns offerta 2080-21 DEL 14/12/2021 VERSAMENTO IVA A VS CARICO EX DPR 633/72 ART. 17-TER;372;1;3;2;19;5
BERTINI CONTRACT SAS;03/02/2022;Altri beni e materiali di consumo n.a.c.;20.989,90;0,00;3.785,06;Z5E3304B12;1;3;Acquisto di beni e servizi;1;2;999;Liquidazione Fattura Nr. 18/001  del 20/12/2021 (di cui Split per euro 3.785,06) - AFFIDAMENTO REALIZZAZIONE, FORNITURA, POSA IN OPERA DI ALLESTIMENTI MUSEALI E SERVIZI CONNESSI PERIODO OTTOBRE-DICEMBRE 2021. CIG N. Z5E3304B12.;299;1;3;1;2;999
BERTINI CONTRACT SAS;03/02/2022;Altri servizi diversi n.a.c.;6.777,30;0,00;1.222,14;Z5E3304B12;1;3;Acquisto di beni e servizi;2;99;999;Liquidazione Fattura Nr. 18/001  del 20/12/2021 (di cui Split per euro 1.222,14) - AFFIDAMENTO REALIZZAZIONE, FORNITURA, POSA IN OPERA DI ALLESTIMENTI MUSEALI E SERVIZI CONNESSI PERIODO OTTOBRE-DICEMBRE 2021. CIG N. Z5E3304B12.;300;1;3;2;99;999
GAROSI DEBORAH;03/02/2022;Altri assegni e sussidi assistenziali;300,00;0,00;0,00;;1;4;Trasferimenti correnti;2;2;999;CONTRIBUTO CITTADINI ATTIVITA' SPORTIVE E RICREATIVE 2021 COVID;323;1;4;2;2;999
MAGGIORELLI MARTA;03/02/2022;Altri assegni e sussidi assistenziali;150,00;0,00;0,00;;1;4;Trasferimenti correnti;2;2;999;CONTRIBUTO CITTADINI ATTIVITA' SPORTIVE E RICREATIVE 2021 COVID;327;1;4;2;2;999
PITTARI AGNESE;03/02/2022;Altri assegni e sussidi assistenziali;150,00;0,00;0,00;;1;4;Trasferimenti correnti;2;2;999;CONTRIBUTO CITTADINI ATTIVITA' SPORTIVE E RICREATIVE 2021 COVID;331;1;4;2;2;999
MONTELLA GIUSEPPE;03/02/2022;Altri assegni e sussidi assistenziali;110,00;0,00;0,00;;1;4;Trasferimenti correnti;2;2;999;CONTRIBUTO CITTADINI ATTIVITA' SPORTIVE E RICREATIVE 2021 COVID;330;1;4;2;2;999
RICCIARDI PASQUALE;03/02/2022;Altri assegni e sussidi assistenziali;120,00;0,00;0,00;;1;4;Trasferimenti correnti;2;2;999;CONTRIBUTO CITTADINI ATTIVITA' SPORTIVE E RICREATIVE 2021 COVID;333;1;4;2;2;999
CANTINI MARCO;03/02/2022;Altri assegni e sussidi assistenziali;150,00;0,00;0,00;;1;4;Trasferimenti correnti;2;2;999;CONTRIBUTO CITTADINI ATTIVITA' SPORTIVE E RICREATIVE 2021 COVID;318;1;4;2;2;999
GIUSTI  ALESSIA;03/02/2022;Altri assegni e sussidi assistenziali;150,00;0,00;0,00;;1;4;Trasferimenti correnti;2;2;999;CONTRIBUTO CITTADINI ATTIVITA' SPORTIVE E RICREATIVE 2021 COVID;325;1;4;2;2;999
DANILE SONIA;03/02/2022;Altri assegni e sussidi assistenziali;215,00;0,00;0,00;;1;4;Trasferimenti correnti;2;2;999;CONTRIBUTO CITTADINI ATTIVITA' SPORTIVE E RICREATIVE 2021 COVID;320;1;4;2;2;999
ARCA COOPERATIVA SOCIALE  RL;04/02/2022;Contratti di servizio di asilo nido;4.950,89;0,00;235,76;8388889A31;1;3;Acquisto di beni e servizi;2;15;10;Liquidazione Fattura Nr. 1898/E  del 20/12/2021 (di cui Split per euro 235,76) - Vendita Iva da versare a cura del cessionario o committente ai sensi dell'art. 17-ter del D.P.R. n. 633/1972 (scissione dei pagamenti);471;1;3;2;15;10
ARCA COOPERATIVA SOCIALE  RL;04/02/2022;Contratti di servizio di asilo nido;4.950,89;0,00;235,76;8388889A31;1;3;Acquisto di beni e servizi;2;15;10;Liquidazione Fattura Nr. 1900/E  del 20/12/2021 (di cui Split per euro 235,76) - Vendita Iva da versare a cura del cessionario o committente ai sensi dell'art. 17-ter del D.P.R. n. 633/1972 (scissione dei pagamenti);469;1;3;2;15;10
ARCA COOPERATIVA SOCIALE  RL;04/02/2022;Contratti di servizio di asilo nido;4.950,89;0,00;235,76;8388889A31;1;3;Acquisto di beni e servizi;2;15;10;Liquidazione Fattura Nr. 1902/E  del 20/12/2021 (di cui Split per euro 235,76) - Vendita Iva da versare a cura del cessionario o committente ai sensi dell'art. 17-ter del D.P.R. n. 633/1972 (scissione dei pagamenti);470;1;3;2;15;10
ARCA COOPERATIVA SOCIALE  RL;04/02/2022;Contratti di servizio di asilo nido;4.950,89;0,00;235,76;8388889A31;1;3;Acquisto di beni e servizi;2;15;10;Liquidazione Fattura Nr. 47/E  del 10/01/2022 (di cui Split per euro 235,76) - Vendita Iva da versare a cura del cessionario o committente ai sensi dell'art. 17-ter del D.P.R. n. 633/1972 (scissione dei pagamenti);472;1;3;2;15;10
DAMAZ S.R.L. - INGROSSO CASALINGHI;04/02/2022;Altri beni e materiali di consumo n.a.c.;917,83;0,00;165,51;ZB13402BEA;1;3;Acquisto di beni e servizi;1;2;999;Liquidazione Fattura Nr. 31895P  del 14/12/2021 (di cui Split per euro 165,51) - prodotti igienico sanitari per edifici e mudei;450;1;3;1;2;999
DAMAZ S.R.L. - INGROSSO CASALINGHI;04/02/2022;Altri beni e materiali di consumo n.a.c.;358,18;0,00;64,59;ZB13402BEA;1;3;Acquisto di beni e servizi;1;2;999;Liquidazione Fattura Nr. 31895P  del 14/12/2021 (di cui Split per euro 64,59) - prodotti igienico sanitari per edifici e mudei;451;1;3;1;2;999
DAMAZ S.R.L. - INGROSSO CASALINGHI;04/02/2022;Altri beni e materiali di consumo n.a.c.;203,31;0,00;36,66;Z4733CA3C9;1;3;Acquisto di beni e servizi;1;2;999;Liquidazione Fattura Nr. 31896P  del 14/12/2021 (di cui Split per euro 36,66) - FATTURA ACCOMPAGNATORIA PUBBLICA AMMINIS Contributo CONAI assolto se dovuto;461;1;3;1;2;999
CENTRO STUDI ENTI LOCALI S.P.A.;04/02/2022;Altre prestazioni professionali e specialistiche n.a.c.;749,99;0,00;135,25;ZE82F837F7;1;3;Acquisto di beni e servizi;2;11;999;Liquidazione Fattura Nr. 934/AE  del 31/12/2021 al netto di Nota: N. 34/NAE del 31/12/2021 di 0,02 (di cui Split per euro 135,25) - Fattura vendita AE Split Pay;448;1;3;2;11;999
MATERIALI EDILI BALDACCI DI BALDACCI RENATO E C. SNC;04/02/2022;Altri beni e materiali di consumo n.a.c.;36,28;0,00;6,54;ZA232B00BE;1;3;Acquisto di beni e servizi;1;2;999;Liquidazione Fattura Nr. 1654/00  del 30/11/2021 (di cui Split per euro 6,54) - FORNITURA DI MATERIALI EDILI FINALIZZATI ALL'ESECUZIONE DI LAVORI DI MANUTENZIONE SU SCUOLE, EDIFICI E STRADE COMUNALI;460;1;3;1;2;999
MATERIALI EDILI BALDACCI DI BALDACCI RENATO E C. SNC;04/02/2022;Altri beni e materiali di consumo n.a.c.;195,58;0,00;35,27;ZA232B00BE;1;3;Acquisto di beni e servizi;1;2;999;LIQUIDAZIONE FATTURA NR. 1654/00  DEL 30/11/2021 (DI CUI SPLIT PER EURO 35,27) - FORNITURA DI MATERIALI EDILI FINALIZZATI ALL'ESECUZIONE DI LAVORI DI MANUTENZIONE SU SCUOLE, EDIFICI E STRADE COMUNALI;473;1;3;1;2;999
MATERIALI EDILI BALDACCI DI BALDACCI RENATO E C. SNC;04/02/2022;Altri beni e materiali di consumo n.a.c.;250,00;0,00;45,08;ZA232B00BE;1;3;Acquisto di beni e servizi;1;2;999;Liquidazione Fattura Nr. 1654/00  del 30/11/2021 (di cui Split per euro 45,08) - FORNITURA DI MATERIALI EDILI FINALIZZATI ALL'ESECUZIONE DI LAVORI DI MANUTENZIONE SU SCUOLE, EDIFICI E STRADE COMUNALI;449;1;3;1;2;999
MATERIALI EDILI BALDACCI DI BALDACCI RENATO E C. SNC;04/02/2022;Altri beni e materiali di consumo n.a.c.;229,77;0,00;41,43;Z1233E20A1;1;3;Acquisto di beni e servizi;1;2;999;LIQUIDAZIONE FATTURA NR. 1820/00  DEL 29/12/2021 (DI CUI SPLIT PER EURO 41,43) - ACQUISTO MATERIALI EDILI;467;1;3;1;2;999
CIR FOOD S.C. DIVISIONE EUDANIA;04/02/2022;Contratti di servizio per le mense scolastiche;4.677,30;0,00;179,90;7769463BAF;1;3;Acquisto di beni e servizi;2;15;6;Liquidazione Fattura Nr. 5200032311  del 27/12/2021 (di cui Split per euro 179,90) - Destinatario:0000531751,COMUNE DI VINCI CANONE GIORNALIEROPER MISURE CONTENIMENTO COVID,PIAZZA LEONARDO 29,VINCI,50059,FI Trattenute DPR RIT 0,5 % ART. 4 C;466;1;3;2;15;6
O.L.V. SRL IMPIANTI ELETTRICI CIVILI ED INDUSTRIALI;04/02/2022;Altri servizi diversi n.a.c.;1.484,74;0,00;267,74;ZC93406F2C;1;3;Acquisto di beni e servizi;2;99;999;Liquidazione Fattura Nr. 3  del 17/01/2022 (di cui Split per euro 267,74) - SERVIZIO DI ALLACCIAMENTO DELLE LUMINARIE NATALIZIE;476;1;3;2;99;999
CRISTOFORO SOC.COOP. SOCIALE ONLUS;04/02/2022;Altri servizi diversi n.a.c.;1.419,66;0,00;129,06;8589752796;1;3;Acquisto di beni e servizi;2;99;999;Liquidazione Fattura Nr. 2160. 20006/ 2021  del 30/12/2021 (di cui Split per euro 129,06) - FATTURA;464;1;3;2;99;999
CRISTOFORO SOC.COOP. SOCIALE ONLUS;04/02/2022;Servizi di mobilit� a terzi (bus navetta, ?);137,50;0,00;12,50;8589752796;1;3;Acquisto di beni e servizi;2;99;8;Liquidazione Fattura Nr. 2167. 20006/ 2021  del 31/12/2021 (di cui Split per euro 12,50) - FATTURA;465;1;3;2;99;8
B. & B. SERVICE SOCIETA' COOPERATIVA;04/02/2022;Contratti di servizio di trasporto scolastico;3.884,48;0,00;700,48;7784415E76;1;3;Acquisto di beni e servizi;2;15;2;Liquidazione Fattura Nr. 941/PA  del 17/12/2021 (di cui Split per euro 700,48) - CONTRATTO REP. N. 1529 DEL 9 OTTOBRE 2019 AVENTE AD OGGETTO APPALTO SERVIZI DI TRASPORTO SCOLASTICO PERIODO DAL 15 OTTOBRE 2019 AL 30 GIUGNO 2024 CIG 7784415E7;463;1;3;2;15;2
B. & B. SERVICE SOC. COOP.;04/02/2022;Contratti di servizio di trasporto scolastico;3.107,58;0,00;560,38;7784415E76;1;3;Acquisto di beni e servizi;2;15;2;Liquidazione Fattura Nr. 1010/PA  del 31/12/2021 (di cui Split per euro 560,38) - CONTRATTO REP. N. 1529 DEL 9 OTTOBRE 2019 AVENTE AD OGGETTO APPALTO SERVIZI DI TRASPORTO SCOLASTICO PERIODO DAL 15 OTTOBRE 2019 AL 30 GIUGNO 2024 CIG 7784415E;462;1;3;2;15;2
PENSIONE PER CANI CERTOSA S.A.S. DI NERI FRANCESCA & C.;04/02/2022;Contratti di servizio per la lotta al randagismo ;1.927,48;0,00;347,58;7951734A79;1;3;Acquisto di beni e servizi;2;15;11;Liquidazione Fattura Nr. FATTPA 1_22  del 01/01/2022 (di cui Split per euro 347,58) - Fornitura generica;477;1;3;2;15;11
L'OPEROSA SPA;04/02/2022;Servizi di pulizia e lavanderia;1.306,64;0,00;235,62;88141724D5;1;3;Acquisto di beni e servizi;2;13;2;Liquidazione Fattura Nr. 484/CMF  del 23/12/2021 (di cui Split per euro 235,62) - PULIZIA PALESTRE OTTOBRE 2021;457;1;3;2;13;2
L'OPEROSA SPA;04/02/2022;Servizi di pulizia e lavanderia;3.142,41;0,00;566,66;88141724D5;1;3;Acquisto di beni e servizi;2;13;2;Liquidazione Fattura Nr. 486/CMF  del 23/12/2021 (di cui Split per euro 566,66) - PULIZIE EDIFICI COMUNALI NOVEMBRE 2021;452;1;3;2;13;2
L'OPEROSA SPA;04/02/2022;Servizi di pulizia e lavanderia;335,16;0,00;60,44;88141724D5;1;3;Acquisto di beni e servizi;2;13;2;Liquidazione Fattura Nr. 486/CMF  del 23/12/2021 (di cui Split per euro 60,44) - PULIZIE EDIFICI COMUNALI NOVEMBRE 2021;454;1;3;2;13;2
L'OPEROSA SPA;04/02/2022;Servizi di pulizia e lavanderia;77,57;0,00;13,99;88141724D5;1;3;Acquisto di beni e servizi;2;13;2;Liquidazione Fattura Nr. 486/CMF  del 23/12/2021 (di cui Split per euro 13,99) - PULIZIE EDIFICI COMUNALI NOVEMBRE 2021;458;1;3;2;13;2
L'OPEROSA SPA;04/02/2022;Servizi di pulizia e lavanderia;1.443,97;0,00;260,39;88141724D5;1;3;Acquisto di beni e servizi;2;13;2;Liquidazione Fattura Nr. 487/CMF  del 23/12/2021 (di cui Split per euro 260,39) - FATTURA VENDITA REGISTRO 1 - RC - CMF;456;1;3;2;13;2
L'OPEROSA SPA;04/02/2022;Servizi di pulizia e lavanderia;335,16;0,00;60,44;88141724D5;1;3;Acquisto di beni e servizi;2;13;2;Liquidazione Fattura Nr. 483/CMF  del 23/12/2021 (di cui Split per euro 60,44) - PULIZIA EDIFICI COMUNALI OTTOBRE 2021;455;1;3;2;13;2
L'OPEROSA SPA;04/02/2022;Servizi di pulizia e lavanderia;3.142,41;0,00;566,66;88141724D5;1;3;Acquisto di beni e servizi;2;13;2;Liquidazione Fattura Nr. 483/CMF  del 23/12/2021 (di cui Split per euro 566,66) - PULIZIA EDIFICI COMUNALI OTTOBRE 2021;453;1;3;2;13;2
L'OPEROSA SPA;04/02/2022;Servizi di pulizia e lavanderia;77,57;0,00;13,99;88141724D5;1;3;Acquisto di beni e servizi;2;13;2;Liquidazione Fattura Nr. 483/CMF  del 23/12/2021 (di cui Split per euro 13,99) - PULIZIA EDIFICI COMUNALI OTTOBRE 2021;459;1;3;2;13;2
L'OPEROSA SPA;04/02/2022;Altri servizi diversi n.a.c.;2.852,71;0,00;514,42;Z8B331B730;1;3;Acquisto di beni e servizi;2;99;999;LIQUIDAZIONE FATTURA NR. 488/CMF  DEL 23/12/2021 (DI CUI SPLIT PER EURO 514,42) - SANIFICAZIONE GIORNALIERA COVID19 NOVEMBRE 2021;474;1;3;2;99;999
L'OPEROSA SPA;04/02/2022;Altri servizi diversi n.a.c.;2.852,71;0,00;514,42;Z8B331B730;1;3;Acquisto di beni e servizi;2;99;999;LIQUIDAZIONE FATTURA NR. 485/CMF  DEL 23/12/2021 (DI CUI SPLIT PER EURO 514,42) - SANIFICAZIONE GIORNALIERA COVID 19 MESE DI OTTOBRE 2021;475;1;3;2;99;999
DPS INFORMATICA S.N.C. DI PRESELLO GIANNI & C.;04/02/2022;Attrezzature n.a.c.;4.434,60;0,00;799,68;Z4C34A5A3B;2;2;Investimenti fissi lordi e acquisto di terreni;1;5;999;Liquidazione Fattura Nr. 113/FE  del 21/01/2022 (di cui Split per euro 799,68) - FORNITURA DI N. 5 TERMINALI PALMARI PER IL CONTROLLO ACCESSI DEL MUSEO LEONARDIANO;478;2;2;1;5;999
DPS INFORMATICA S.N.C. DI PRESELLO GIANNI & C.;04/02/2022;Altri beni e materiali di consumo n.a.c.;46,83;0,00;8,45;Z4C34A5A3B;1;3;Acquisto di beni e servizi;1;2;999;Liquidazione Fattura Nr. 113/FE  del 21/01/2022 (di cui Split per euro 8,45) - FORNITURA DI N. 5 TERMINALI PALMARI PER IL CONTROLLO ACCESSI DEL MUSEO LEONARDIANO;468;1;3;1;2;999
GIUNTI EDITORE S.P.A.;08/02/2022;Stampa e rilegatura;800,00;0,00;0,00;Z97347F21F;1;3;Acquisto di beni e servizi;2;13;4;"Liquidazione Fattura Nr. 2022100188  del 17/01/2022 al netto di Nota: N. 2022200031 del 19/01/2022 di 0,10 - Fornitura di n. 40 copie del catalogo della mostra ""Leonardoa Vinci. alle origini del genio2 in lingua italiana  ";485;1;3;2;13;4
VESCOVI RENZO SPA;08/02/2022;Altri beni e materiali di consumo n.a.c.;189,10;0,00;34,10;Z65312F982;1;3;Acquisto di beni e servizi;1;2;999;LIQUIDAZIONE FATTURA NR. 120/10  DEL 23/12/2021 (DI CUI SPLIT PER EURO 34,10) - FORNITURA CONGLOMERATO BITUMINOSO A FREDDO PER LAVORI DI MANUTENZIONE STRADE COMUNALI.;524;1;3;1;2;999
L'ELETTRICA S.P.A.;08/02/2022;Altri beni e materiali di consumo n.a.c.;200,00;0,00;36,07;Z7132D43BD;1;3;Acquisto di beni e servizi;1;2;999;Liquidazione Fattura Nr. 21/000637/PA  del 29/12/2021 (di cui Split per euro 36,07) - fornitura materiale elettrico;481;1;3;1;2;999
L'ELETTRICA S.P.A.;08/02/2022;Altri beni e materiali di consumo n.a.c.;700,00;0,00;126,23;Z7132D43BD;1;3;Acquisto di beni e servizi;1;2;999;Liquidazione Fattura Nr. 21/000637/PA  del 29/12/2021 (di cui Split per euro 126,23) - fornitura materiale elettrico;489;1;3;1;2;999
L'ELETTRICA S.P.A.;08/02/2022;Altri beni e materiali di consumo n.a.c.;53,89;0,00;9,71;Z7132D43BD;1;3;Acquisto di beni e servizi;1;2;999;LIQUIDAZIONE FATTURA NR. 21/000637/PA  DEL 29/12/2021 (DI CUI SPLIT PER EURO 9,71) - FORNITURA MATERIALE ELETTRICO;492;1;3;1;2;999
CENTRO  FORMAZIONE E CULTURA MUSICALE;08/02/2022;Trasferimenti correnti a Istituzioni Sociali Private ;1.500,00;60,00;0,00;;1;4;Trasferimenti correnti;4;1;1;EMERGENZA SANITARIA COVID-19 - BANDO PER  LA CONCESSIONE DI CONTRIBUTI ECONOMICI ALLE ASSOCIAZIONI CFCM SOSTEGNO;507;1;4;4;1;1
CIRCOLO ARCI TOIANO;08/02/2022;Trasferimenti correnti a Istituzioni Sociali Private ;1.500,00;0,00;0,00;;1;4;Trasferimenti correnti;4;1;1;EMERGENZA COVID - CONTRIBUTO ASSOCIAZIONI x solidariet� sociale;508;1;4;4;1;1
ELMAS S.R.L.;08/02/2022;Manutenzione ordinaria e riparazioni di impianti e macchinari;350,00;0,00;63,11;ZA133D7946;1;3;Acquisto di beni e servizi;2;9;4;LIQUIDAZIONE FATTURA NR. V5-0042  DEL 30/11/2021 (DI CUI SPLIT PER EURO 63,11) - INTERVENTI PER CONSEGNA PASSWORD DEL SOFTWARE TVCC INSTALLATO PRESSO LA BIGLIETTERIA DEL MUSEO LEONARDIANO E PRESSO IL PALASPORT ;521;1;3;2;9;4
ELMAS S.R.L.;08/02/2022;Manutenzione ordinaria e riparazioni di impianti e macchinari;77,00;0,00;13,89;ZA133D7946;1;3;Acquisto di beni e servizi;2;9;4;Liquidazione Fattura Nr. V5-0042  del 30/11/2021 (di cui Split per euro 13,89) - INTERVENTI PER CONSEGNA PASSWORD DEL SOFTWARE TVCC INSTALLATO PRESSO LA BIGLIETTERIA DEL MUSEO LEONARDIANO E PRESSO IL PALASPORT ;523;1;3;2;9;4
GIRAFOGLIO DI VAGLINI ANDREA;08/02/2022;Pubblicazioni;4.615,82;0,00;0,00;Z7B3489E00;1;3;Acquisto di beni e servizi;1;1;2;Liquidazione Fattura Nr. 1/PA  del 01/01/2022 - Fornitura generica;518;1;3;1;1;2
SCOTTI VEICOLI INDUSTRIALI S.P.A.;08/02/2022;Manutenzione ordinaria e riparazioni di mezzi di trasporto ad uso civile, di sicurezza e ordine pubblico;1.273,23;0,00;229,60;Z7E3430D35;1;3;Acquisto di beni e servizi;2;9;1;Liquidazione Fattura Nr. 640119 / 5000  del 03/12/2021 (di cui Split per euro 229,60) - revisione e riparazione mezzi;517;1;3;2;9;1
SCOTTI VEICOLI INDUSTRIALI S.P.A.;08/02/2022;Manutenzione ordinaria e riparazioni di mezzi di trasporto ad uso civile, di sicurezza e ordine pubblico;381,02;0,00;54,46;Z7E3430D35;1;3;Acquisto di beni e servizi;2;9;1;Liquidazione Fattura Nr. 640127 / 5000  del 18/12/2021 (di cui Split per euro 54,46) - revisione e riparazione vari mezzi;516;1;3;2;9;1
UNICOOP FIRENZE SOCIETA' COOPERATIVA;08/02/2022;Generi alimentari;2.750,00;0,00;0,00;;1;3;Acquisto di beni e servizi;1;2;11;LIQUIDAZIONE FATTURA NR. PA2100840  DEL 23/12/2021 - BUONI SPESA NOV'21;526;1;3;1;2;11
BARTALUCCI SAS DI BARTALUCCI ELENA E BARTALUCCI MONICA;08/02/2022;Altri servizi ausiliari n.a.c.;13,69;0,00;2,47;Z6931B65A8;1;3;Acquisto di beni e servizi;2;13;999;Liquidazione Fattura Nr. 525/P  del 21/12/2021 (di cui Split per euro 2,47) - trascrizione CC del 17/11/2021;510;1;3;2;13;999
BARTALUCCI SAS DI BARTALUCCI ELENA E BARTALUCCI MONICA;08/02/2022;Altri servizi ausiliari n.a.c.;10,37;0,00;1,87;Z6931B65A8;1;3;Acquisto di beni e servizi;2;13;999;Liquidazione Fattura Nr. 16/P  del 20/01/2022 (di cui Split per euro 1,87) - trascrizione CC del 29 novembre 2021;511;1;3;2;13;999
BARTALUCCI SAS DI BARTALUCCI ELENA E BARTALUCCI MONICA;08/02/2022;Altri servizi ausiliari n.a.c.;15,76;0,00;2,84;Z6931B65A8;1;3;Acquisto di beni e servizi;2;13;999;Liquidazione Fattura Nr. 23/P  del 22/01/2022 (di cui Split per euro 2,84) - trascrizione CC del 30 dicembre 2021;512;1;3;2;13;999
ETRURIA P.A. SRL;08/02/2022;Altri servizi diversi n.a.c.;62,85;0,00;11,33;ZF330EA1B1;1;3;Acquisto di beni e servizi;2;99;999;Liquidazione Fattura Nr. 2479/00000  del 29/12/2021 (di cui Split per euro 11,33) - AFFIDAMENTO DIRETTO  DEL SERVIZIO DI BOLLETTAZIONE DEI SERVIZI COMUNALI PER LA PRIMA INFANZIA, SERVIZI SCOLASTICI ED EXTRASCOLASTCI  EX ART. 36 COMMA 2 LETT;483;1;3;2;99;999
ETRURIA P.A. SRL;08/02/2022;Stampati specialistici;353,80;0,00;63,80;Z2133965DF;1;3;Acquisto di beni e servizi;1;2;14;Liquidazione Fattura Nr. 2536/00000 del 31/12/2021 - DETERMINA n. 203 DEL 28/10/2021 FORNITURA DI FOGLI DI STATO CIVILE E RACCOGLITORI ANNO 2022  (di cui Split per euro 63,80);480;1;3;1;2;14
CO&SO EMPOLI - CONS. DI COOP. SOCIALI - SOCIETA' COOPERATIVA;08/02/2022;Altre spese per contratti di servizio pubblico;22.841,73;0,00;1.087,70;820729386F;1;3;Acquisto di beni e servizi;2;15;999;Liquidazione Fattura Nr. 001274-2C0  del 30/11/2021 (di cui Split per euro 1.087,70) - Fatt. regime sciss.pag.;498;1;3;2;15;999
CO&SO EMPOLI - CONS. DI COOP. SOCIALI - SOCIETA' COOPERATIVA;08/02/2022;Altre spese per contratti di servizio pubblico;3.895,12;0,00;702,40;7551132F3D;1;3;Acquisto di beni e servizi;2;15;999;Liquidazione Fattura Nr. 001348-2C0  del 22/12/2021 (di cui Split per euro 702,40) - Servizi turistici mese di novembre 2021;490;1;3;2;15;999
CO&SO EMPOLI - CONS. DI COOP. SOCIALI - SOCIETA' COOPERATIVA;08/02/2022;Altre spese per contratti di servizio pubblico;25.442,99;0,00;0,00;7551132F3D;1;3;Acquisto di beni e servizi;2;15;999;Liquidazione Fattura Nr. 001347-2C0  del 22/12/2021 - Servizi museali mese di novembre 2021;496;1;3;2;15;999
CO&SO EMPOLI - CONS. DI COOP. SOCIALI - SOCIETA' COOPERATIVA;08/02/2022;Altre spese per contratti di servizio pubblico;1.703,22;0,00;307,14;7551132F3D;1;3;Acquisto di beni e servizi;2;15;999;Liquidazione Fattura Nr. 001349-2C0  del 22/12/2021 (di cui Split per euro 307,14) - Pulizie mese di novembre 2021;488;1;3;2;15;999
CO&SO EMPOLI - CONS. DI COOP. SOCIALI - SOCIETA' COOPERATIVA;08/02/2022;Altre spese per contratti di servizio pubblico;2.680,47;0,00;127,64;;1;3;Acquisto di beni e servizi;2;15;999;Liquidazione Fattura Nr. 001354-2C0  del 22/12/2021 (di cui Split per euro 127,64) - Fatt. regime sciss.pag.;501;1;3;2;15;999
CO&SO EMPOLI - CONS. DI COOP. SOCIALI - SOCIETA' COOPERATIVA;08/02/2022;Altre spese per contratti di servizio pubblico;21.616,01;0,00;1.029,34;820729386F;1;3;Acquisto di beni e servizi;2;15;999;Liquidazione Fattura Nr. 001354-2C0  del 22/12/2021 (di cui Split per euro 1.029,34) - Fatt. regime sciss.pag.;499;1;3;2;15;999
CO&SO EMPOLI - CONS. DI COOP. SOCIALI - SOCIETA' COOPERATIVA;08/02/2022;Altre spese per contratti di servizio pubblico;18.153,20;0,00;864,44;820729386F;1;3;Acquisto di beni e servizi;2;15;999;Liquidazione Fattura Nr. 001464-2C0  del 31/12/2021 (di cui Split per euro 864,44) - Fatt. regime sciss.pag.;500;1;3;2;15;999
CO&SO EMPOLI - CONS. DI COOP. SOCIALI - SOCIETA' COOPERATIVA;08/02/2022;Altre spese per contratti di servizio pubblico;32.963,97;0,00;0,00;7551132F3D;1;3;Acquisto di beni e servizi;2;15;999;Liquidazione Fattura Nr. 000018-2C0  del 25/01/2022 - Servizi museali - mese di dicembre 2021;497;1;3;2;15;999
BORGHINI E CINOTTI SRL;08/02/2022;Fabbricati ad uso scolastico;48.724,09;0,00;8.786,31;8897214542;2;2;Investimenti fissi lordi e acquisto di terreni;1;9;3;Liquidazione Fattura Nr. 39/PA  del 31/12/2021 (di cui Split per euro 8.786,31) - EFFICIENTAMENTO IMPIANTO ILLUMINAZIONE SCUOLA SECONDARIA DI PRIMO GRADO DI SOVIGLIANA - CERTIFICATO DI PAGAMENTO N. 1;502;2;2;1;9;3
CITTA' METROPOLITANA DI FIRENZE;08/02/2022;Altri servizi diversi n.a.c.;4,67;0,00;0,00;;1;3;Acquisto di beni e servizi;2;99;999;QUOTA PARTE INCENTIVO PER AA OPF SANIFICAZIONE GENNAIO 2022 CIG Z263487C4E RTI L'OPEROSA;527;1;3;2;99;999
FONDAZIONE TOSCANA SPETTACOLO ONLUS;08/02/2022;Quote di associazioni;570,00;0,00;0,00;;1;3;Acquisto di beni e servizi;2;99;3;QUOTA ADESIONE ANNO 2021;520;1;3;2;99;3
FONDAZIONE TOSCANA SPETTACOLO ONLUS;08/02/2022;Trasferimenti correnti a Istituzioni Sociali Private ;462,91;0,00;0,00;;1;4;Trasferimenti correnti;4;1;1;QUOTA ADESIONE 2021;522;1;4;4;1;1
ASSOCIAZIONE LA VALIGIA BLU;08/02/2022;Trasferimenti correnti a Istituzioni Sociali Private ;450,00;0,00;0,00;;1;4;Trasferimenti correnti;4;1;1;"ASS. LA VALIGIA BLU RICHIESTA CONTRIBUTO PER L'EVENTO ""LA BUONA, LA BRUTTA E LA CATTIVA DECLINAZIONI AL FEMMINILE DA ROSSINI AI GIORNI NOSTRI 01/07/2021 - VINCI, CONCESSIONE  CONTRIBUTO";509;1;4;4;1;1
MY BOSS WAS;08/02/2022;Manutenzione ordinaria e riparazioni di altri beni materiali;671,00;0,00;121,00;Z0E33CC572;1;3;Acquisto di beni e servizi;2;9;11;"Liquidazione Fattura Nr. 81  del 19/11/2021 (di cui Split per euro 121,00) - Intervento di manutenzione all'installazione immersiva ""Ebbe nome Lionardo"" - CIG.Z0E33CC572";487;1;3;2;9;11
3G ITALIA SRL;08/02/2022;Attrezzature n.a.c.;3.218,36;0,00;580,36;ZD63406AD5;2;2;Investimenti fissi lordi e acquisto di terreni;1;5;999;Liquidazione Fattura Nr. 253/PS  del 10/12/2021 (di cui Split per euro 580,36) - fornitura transenne, sacchi e cavalletti;494;2;2;1;5;999
TRECCANI RETI S.P.A.;08/02/2022;Giornali e riviste;550,00;0,00;0,00;Z2C3494DC8;1;3;Acquisto di beni e servizi;1;1;1;Liquidazione Fattura Nr. 2021522821 del 29/12/2021 - RIF. CONTRATTO: CL943505 IMPEGNO DS05199 SUB. 1 CAP. 3260/0 PER BIBLIOTECA COMUNALE LEONARDIANA DI VINCI;519;1;3;1;1;1
L.A. S.R.L.;08/02/2022;Equipaggiamento;200,00;0,00;36,07;Z943379D93;1;3;Acquisto di beni e servizi;1;2;3;"Liquidazione Fattura Nr. 36/PA  del 29/12/2021 (di cui Split per euro 36,07) - ""ACQUISTO D.P.I. INVERNALI""";514;1;3;1;2;3
L.A. S.R.L.;08/02/2022;Equipaggiamento;174,91;0,00;31,54;Z943379D93;1;3;Acquisto di beni e servizi;1;2;3;"Liquidazione Fattura Nr. 36/PA  del 29/12/2021 (di cui Split per euro 31,54) - ""ACQUISTO D.P.I. INVERNALI""";515;1;3;1;2;3
L.A. S.R.L.;08/02/2022;Equipaggiamento;256,55;0,00;46,26;ZBC346A007;1;3;Acquisto di beni e servizi;1;2;3;Liquidazione Fattura Nr. 44/PA  del 29/12/2021 (di cui Split per euro 46,26) - ACQUISTO D.P.I. . SOCCORSO;513;1;3;1;2;3
EREDI LEPORATTI GUIDO S.A.S. DI FIORETTA PACINI;08/02/2022;Contratti di servizio di trasporto pubblico;2.837,12;0,00;257,92;Z113232DC8;1;3;Acquisto di beni e servizi;2;15;1;LIQUIDAZIONE FATTURA NR. 25/21  DEL 30/12/2021 (DI CUI SPLIT PER EURO 257,92) - FATTURA TPL MENSILITA' DICEMBRE 2021;525;1;3;2;15;1
ASSISERVICE SRL;08/02/2022;Organi istituzionali dell'amministrazione - Rimborsi ;4.237,10;0,00;0,00;;1;3;Acquisto di beni e servizi;2;1;2;RIMBORSO GENNAIO/APRILE 2021 E INTEGRAZIONE ANNI 2019/2020/2021;503;1;3;2;1;2
CUSTOMIZE SRL;08/02/2022;Altri beni e materiali di consumo n.a.c.;239,40;0,00;43,17;ZCB3404A74;1;3;Acquisto di beni e servizi;1;2;999;Liquidazione Fattura Nr. 1523  del 14/12/2021 al netto di Nota: N. 2 del 12/01/2022 di 70,27 (di cui Split per euro 43,17) - Fornitura di calamite personalizzate per il Bookshop del Museo Leonardiano;484;1;3;1;2;999
CUSTOMIZE SRL;08/02/2022;Altri beni e materiali di consumo n.a.c.;80,00;0,00;14,43;ZCB3404A74;1;3;Acquisto di beni e servizi;1;2;999;Liquidazione Fattura Nr. 1523  del 14/12/2021 al netto di Nota: N. 2 del 12/01/2022 di 70,27 (di cui Split per euro 14,43) - Fornitura di calamite personalizzate per il Bookshop del Museo Leonardiano;486;1;3;1;2;999
ANAS SPA;08/02/2022;Contributi agli investimenti a Anas S.p.A.;300.000,00;0,00;0,00;;2;3;Contributi agli investimenti;1;1;8;Liquidazione Fattura Nr. 0074003435  del 10/12/2021 - Acc di programma ANAS-Comune di Vinci;495;2;3;1;1;8
QUERCI PROGETTAZIOE E FORNITURE GRANDI CUCINE;08/02/2022;Altri servizi diversi n.a.c.;1.105,32;0,00;199,32;ZC0346A507;1;3;Acquisto di beni e servizi;2;99;999;Liquidazione Fattura Nr. 31/PA  del 29/12/2021 (di cui Split per euro 199,32) - C/O ASILO NIDO D'INFANZIA PICCINO PICCIO' - VIA DELLA LIBERTA' 58 - LOC.VITOLINI -VINCI (FI) - NS. OFFERTA NR. 250.21 DEL 07/12/2021 - COD. IMPEGNO DS01260/1 -D;493;1;3;2;99;999
LOW COST SERVICE SRL;08/02/2022;Manutenzione ordinaria e riparazioni di beni immobili di valore culturale, storico ed artistico;190,93;0,00;34,43;Z63343C810;1;3;Acquisto di beni e servizi;2;9;9;Liquidazione Fattura Nr. 1706A  del 13/12/2021 (di cui Split per euro 34,43) - Fornitura generica;482;1;3;2;9;9
ALBERO DELLA VITA ODV;08/02/2022;Trasferimenti correnti a Istituzioni Sociali Private ;500,00;0,00;0,00;;1;4;Trasferimenti correnti;4;1;1;EMERGENZA SANITARIA COVID-19 - BANDO PER  LA CONCESSIONE DI CONTRIBUTI ECONOMICI ALLE ASSOCIAZIONI - ALBERO DELLA VITA SOSTEGNO;504;1;4;4;1;1
MINISTERO DELLO SVILUPPO ECONOMICO DIR. GEN. PER I SERVIZI DI COMUNICAZIONE ELET;08/02/2022;Altre spese sostenute per utilizzo di beni di terzi n.a.c.;1.094,17;0,00;0,00;;1;3;Acquisto di beni e servizi;2;7;999;PRAT.N.401887/CAP - CONTRIBUTO ANNO 2022;491;1;3;2;7;999
ATLETICA VINCI A.S.D.;08/02/2022;Trasferimenti correnti a Istituzioni Sociali Private ;500,00;0,00;0,00;;1;4;Trasferimenti correnti;4;1;1;EMERGENZA SANITARIA COVID-19 - BANDO PER  LA CONCESSIONE DI CONTRIBUTI ECONOMICI ALLE ASSOCIAZIONI ASD ATLETICA VINCI SOSTEGNO 2021;506;1;4;4;1;1
ASSOCIAZIONE PRO LOCO VINCI;08/02/2022;Trasferimenti correnti a Istituzioni Sociali Private ;1.000,00;0,00;0,00;;1;4;Trasferimenti correnti;4;1;1;EMERGENZA EPIDEMIOLOGICA DA COVID-19 - BANDO PER  LA CONCESSIONE DI CONTRIBUTI ECONOMICI ALLE ASSOCIAZIONI - IMPEGNO DI SPESA;505;1;4;4;1;1
COOP. CULTURALE LIBRERIA RINASCITA;09/02/2022;Pubblicazioni;5.448,75;0,00;0,00;;1;3;Acquisto di beni e servizi;1;1;2;Liquidazione Fattura Nr. 326-21  del 15/12/2021 - Cod. Imp. DS01149/1;542;1;3;1;1;2
ILES  S.R.L.;09/02/2022;Altri beni e materiali di consumo n.a.c.;1.191,12;0,00;214,79;Z023202FEA;1;3;Acquisto di beni e servizi;1;2;999;LIQUIDAZIONE FATTURA NR. 2021V2000314  DEL 30/11/2021 (DI CUI SPLIT PER EURO 214,79) - ADEGUAMENTO IMPIANTI SEMAFORICI DI VINCI  E SPICCHIO ;556;1;3;1;2;999
ILES  S.R.L.;09/02/2022;Manutenzione ordinaria e riparazioni di impianti e macchinari;1.000,00;0,00;180,33;Z023202FEA;1;3;Acquisto di beni e servizi;2;9;4;Liquidazione Fattura Nr. 2021V2000314  del 30/11/2021 (di cui Split per euro 180,33) - ADEGUAMENTO IMPIANTI SEMAFORICI DI VINCI  E SPICCHIO ;553;1;3;2;9;4
ILES  S.R.L.;09/02/2022;Manutenzione ordinaria e riparazioni di impianti e macchinari;1.000,00;0,00;180,33;Z48318AD74;1;3;Acquisto di beni e servizi;2;9;4;Liquidazione Fattura Nr. 2021V2000315  del 30/11/2021 (di cui Split per euro 180,33) - INTERVENTI DI MANUTENZIONE SUGLI IMPIANTI SEMAFORICI DI VINCI, TRA VIA GIOVANNI XXIII - VIA MATTEOTTI - VIA LAMPORECCHIANA E SPICCHIO, TRA VIA SANZIO E V;554;1;3;2;9;4
ILES  S.R.L.;09/02/2022;Altri beni e materiali di consumo n.a.c.;930,85;0,00;167,86;Z48318AD74;1;3;Acquisto di beni e servizi;1;2;999;LIQUIDAZIONE FATTURA NR. 2021V2000315  DEL 30/11/2021 (DI CUI SPLIT PER EURO 167,86) - INTERVENTI DI MANUTENZIONE SUGLI IMPIANTI SEMAFORICI DI VINCI, TRA VIA GIOVANNI XXIII - VIA MATTEOTTI - VIA LAMPORECCHIANA E SPICCHIO, TRA VIA SANZIO E V;557;1;3;1;2;999
M.F.M. SRL;09/02/2022;Generi alimentari;750,00;0,00;86,23;;1;3;Acquisto di beni e servizi;1;2;11;LIQUIDAZIONE FATTURA NR. 02201  DEL 15/12/2021 (DI CUI SPLIT PER EURO 86,23) - BUONI ALIMENTARI COVID ASSOCIAZIONI;567;1;3;1;2;11
M.F.M. SRL;09/02/2022;Generi alimentari;4.000,00;0,00;354,01;;1;3;Acquisto di beni e servizi;1;2;11;LIQUIDAZIONE FATTURA NR. 02393  DEL 28/12/2021 (DI CUI SPLIT PER EURO 354,01) - BUONI ALIMENTARI COVID PER ASSOCIAZIONI;568;1;3;1;2;11
BAZAR CINELLI  DI CINELLI ILARIA E PAOLO;09/02/2022;Pubblicazioni;5.898,40;0,00;0,00;;1;3;Acquisto di beni e servizi;1;1;2;Liquidazione Fattura Nr. 16  del 30/12/2021 - fattura cedole librarie scuola primaria comune di Vinci a.s 2021-22;541;1;3;1;1;2
PRATESI LORENZO S.R.L.;09/02/2022;Altre spese sostenute per utilizzo di beni di terzi n.a.c.;1.114,76;0,00;201,02;ZCB3466C2F;1;3;Acquisto di beni e servizi;2;7;999;Liquidazione Fattura Nr. 2610  del 21/12/2021 (di cui Split per euro 201,02) - COPERTURA PROVVISORIA DEGLI ACCESSI AI LOCALI IN VIA MONTALBANO ;555;1;3;2;7;999
STEME OFFICINA MECCANICA DI ROBERTO DESIDERI,ENZO LEPORATTI & C. S.A.S.;09/02/2022;Manutenzione ordinaria e riparazioni di mezzi di trasporto ad uso civile, di sicurezza e ordine pubblico;1.185,77;0,00;213,83;ZF9325D8F3;1;3;Acquisto di beni e servizi;2;9;1;Liquidazione Fattura Nr. 504  del 20/12/2021 (di cui Split per euro 213,83) - tagliando trattorino rasaerba;535;1;3;2;9;1
COLORIFICIO CAPPELLI  DI STEFANO CAPPELLI;09/02/2022;Altri beni e materiali di consumo n.a.c.;93,05;0,00;16,77;Z8B2CFC1BD;1;3;Acquisto di beni e servizi;1;2;999;LIQUIDAZIONE FATTURA NR. 3488  DEL 30/11/2021 (DI CUI SPLIT PER EURO 16,77) - FORNITURA MATERIALI PER VERNICIATURA ;552;1;3;1;2;999
COLORIFICIO CAPPELLI  DI STEFANO CAPPELLI;09/02/2022;Altri beni e materiali di consumo n.a.c.;110,55;0,00;19,94;Z8B2CFC1BD;1;3;Acquisto di beni e servizi;1;2;999;LIQUIDAZIONE FATTURA NR. 3488  DEL 30/11/2021 (DI CUI SPLIT PER EURO 19,94) - FORNITURA MATERIALI PER VERNICIATURA ;538;1;3;1;2;999
COLORIFICIO CAPPELLI  DI STEFANO CAPPELLI;09/02/2022;Altri beni e materiali di consumo n.a.c.;200,00;0,00;36,07;Z8B2CFC1BD;1;3;Acquisto di beni e servizi;1;2;999;LIQUIDAZIONE FATTURA NR. 3488  DEL 30/11/2021 (DI CUI SPLIT PER EURO 36,07) - FORNITURA MATERIALI PER VERNICIATURA ;539;1;3;1;2;999
CENTRO L.I.F.E.;09/02/2022;Altri servizi diversi n.a.c.;3.575,82;0,00;644,82;ZC230F1ACF;1;3;Acquisto di beni e servizi;2;99;999;Liquidazione Fattura Nr. 2  del 17/01/2022 (di cui Split per euro 644,82) - DETERMINA A CONTRARRE  E AFFIDAMENTO DIRETTO EX ART.36 COMMA 2 LETT. A) DLGS 50/2016 DEL SERVIZIO DI GESTIONE SPORTELLO LAVORO - ASSOCIAZIONE SENZA SCOPO DI LUCRO C;565;1;3;2;99;999
CEROFOLINI S.R.L.;09/02/2022;Altri servizi diversi n.a.c.;305,00;0,00;55,00;Z4034A2AE0;1;3;Acquisto di beni e servizi;2;99;999;LIQUIDAZIONE FATTURA NR. 90/06  DEL 30/12/2021 (DI CUI SPLIT PER EURO 55,00) - SANIFICAZIONE STRAORDINARIA COVID DEL 29/12/2021 COC;569;1;3;2;99;999
CEROFOLINI S.R.L.;09/02/2022;Altri servizi diversi n.a.c.;262,30;0,00;47,30;Z1534A0BAD;1;3;Acquisto di beni e servizi;2;99;999;LIQUIDAZIONE FATTURA NR. 89/06  DEL 30/12/2021 (DI CUI SPLIT PER EURO 47,30) - SANIFICAZIONE STRAORDINARIA COVID DEL 28/12/2021 (FATTA IL 29) SOVIG. E ALCUNI LOCALI P.C.;570;1;3;2;99;999
CEROFOLINI S.R.L.;09/02/2022;Servizi di pulizia e lavanderia;256,20;0,00;46,20;ZD233632D8;1;3;Acquisto di beni e servizi;2;13;2;Liquidazione Fattura Nr. 1/06  del 04/01/2022 (di cui Split per euro 46,20) - SANIFICAZIONE GUANO SOVIGLIANA DEL 30/12/2021;532;1;3;2;13;2
CEROFOLINI S.R.L.;09/02/2022;Altri servizi diversi n.a.c.;427,00;0,00;77,00;Z2334A9F94;1;3;Acquisto di beni e servizi;2;99;999;LIQUIDAZIONE FATTURA NR. 3/06  DEL 20/01/2022 (DI CUI SPLIT PER EURO 77,00) - SANIFICAZIONE STRAORDINARIA DEL 31/12/2021;571;1;3;2;99;999
LATINI  CLAUDIO;09/02/2022;Altre prestazioni professionali e specialistiche n.a.c.;888,16;140,00;0,00;Z642AF0AD9;1;3;Acquisto di beni e servizi;2;11;999;LIQUIDAZIONE FATTURA NR. 23012022  DEL 22/12/2021 - REDAZIONE DUVRI SERVIZI EDUCATIVI INFANZIA E EXTRASCOLASTICI A VILLA REGHINI;563;1;3;2;11;999
PROMOCULTURA SOCIETA' COOPERATIVA A.R.L..;09/02/2022;Altre spese per servizi amministrativi;1.957,19;0,00;352,94;Z263065B88;1;3;Acquisto di beni e servizi;2;16;999;Liquidazione Fattura Nr. 103-E-2021  del 31/12/2021 (di cui Split per euro 352,94) - Servizio archivio di deposito mesi di dicembre 2021;531;1;3;2;16;999
S.I.A.E. SOCIET� ITALIANA DEGLI AUTORI ED EDITORI;09/02/2022;Altre spese per relazioni pubbliche, convegni e mostre, pubblicit� n.a.c;58,07;0,00;10,47;;1;3;Acquisto di beni e servizi;2;2;999;Liquidazione Fattura Nr. 1621022260  del 21/12/2021 (di cui Split per euro 10,47) - LIBARAZIONE - TERRAZZA CASA DEL POPOLO SOVIG PER.02/09/2021 Prosa / Cabaret 060410820210 ;528;1;3;2;2;999
SPEMA S.N.C. - ALLESTIMENTI SU VEICOLI INDUSTRIALI;09/02/2022;Manutenzione ordinaria e riparazioni di mezzi di trasporto ad uso civile, di sicurezza e ordine pubblico;249,02;0,00;44,90;Z65314B79F;1;3;Acquisto di beni e servizi;2;9;1;Liquidazione Fattura Nr. 1330  del 22/12/2021 (di cui Split per euro 44,90) - VERIFICA PERIODICA DI GRU E PIATTAFORMA COMET E INTERVENTI DI MANUTENZIONE ORDINARIA SU VARI MEZZI;534;1;3;2;9;1
SPEMA S.N.C. - ALLESTIMENTI SU VEICOLI INDUSTRIALI;09/02/2022;Manutenzione ordinaria e riparazioni di mezzi di trasporto ad uso civile, di sicurezza e ordine pubblico;926,02;0,00;166,99;Z65314B79F;1;3;Acquisto di beni e servizi;2;9;1;Liquidazione Fattura Nr. 1330  del 22/12/2021 (di cui Split per euro 166,99) - VERIFICA PERIODICA DI GRU E PIATTAFORMA COMET E INTERVENTI DI MANUTENZIONE ORDINARIA SU VARI MEZZI;537;1;3;2;9;1
CENTRO SERVIZI SOC.COOP.SOCIALE;09/02/2022;Altri servizi diversi n.a.c.;761,00;0,00;36,24;;1;3;Acquisto di beni e servizi;2;99;999;Liquidazione Fattura Nr. 1/PA  del 13/01/2022 (di cui Split per euro 36,24) - FONDO DI SVILUPPO E COESIONE (FSC) ? AVVISO PUBBLICO FINALIZZATO AL SOSTEGNO DELL'ACCOGLIENZA DEI BAMBINI NEI SERVIZI PER LA PRIMA INFANZIA (3-36 MESI) A.E. 2021/;566;1;3;2;99;999
SCALA GROUP S.P.A.;09/02/2022;Altre spese sostenute per utilizzo di beni di terzi n.a.c.;134,20;0,00;24,20;Z452FDFAC7;1;3;Acquisto di beni e servizi;2;7;999;Liquidazione Fattura Nr. 3974 del 31/12/2021 - Miscellanea - Pubblicazione  Omaggio a Leonardo (CIG: Z452FDFAC7) (di cui Split per euro 24,20);550;1;3;2;7;999
SOC.ING.MAGNANI SRL;09/02/2022;Altri beni e materiali di consumo n.a.c.;181,83;0,00;32,79;Z83312765E;1;3;Acquisto di beni e servizi;1;2;999;LIQUIDAZIONE FATTURA NR. 56/10  DEL 30/11/2021 (DI CUI SPLIT PER EURO 32,79) - FORNITURA STABILIZZATO PER MANUTENZIONE STRADE VICINALI;559;1;3;1;2;999
SOC.ING.MAGNANI SRL;09/02/2022;Altri beni e materiali di consumo n.a.c.;721,17;0,00;130,05;Z83312765E;1;3;Acquisto di beni e servizi;1;2;999;LIQUIDAZIONE FATTURA NR. 59/10  DEL 30/12/2021 AL NETTO DI NOTA: N. 03/10 DEL 27/01/2022 DI 131,76 (DI CUI SPLIT PER EURO 130,05) - FORNITURA STABILIZZATO PER MANUTENZIONE STRADE VICINALI ;560;1;3;1;2;999
STUDIO LEGALE FALORNI - DE MEO S.S.;09/02/2022;Patrocinio legale;9.754,99;1.510,00;0,00;ZBF231143A;1;3;Acquisto di beni e servizi;2;11;6;LIQUIDAZIONE FATTURA NR. FPA 13/22  DEL 11/01/2022 - COMUNE DI VINCI/RT ED ALTRI T.S.ACQUE PUBBLICHE - SALDO;529;1;3;2;11;6
IL PICCOLO PRINCIPE SOC. COOP. SOC. ONLUS;09/02/2022;Altri servizi diversi n.a.c.;1.125,00;0,00;53,57;Z752A76488;1;3;Acquisto di beni e servizi;2;99;999;LIQUIDAZIONE FATTURA NR. 000088-2C0  DEL 31/12/2021 (DI CUI SPLIT PER EURO 53,57) - FATT. REGIME SCISS.PAG.;543;1;3;2;99;999
MESTICHERIA FERRAMENTA SELMI SNC;09/02/2022;Altri beni e materiali di consumo n.a.c.;427,00;0,00;77,00;Z9D32A317F;1;3;Acquisto di beni e servizi;1;2;999;LIQUIDAZIONE FATTURA NR. 5/1  DEL 27/12/2021 (DI CUI SPLIT PER EURO 77,00) - FORNITURA MATERIALE DI FERRAMENTA;558;1;3;1;2;999
MESTICHERIA FERRAMENTA SELMI SNC;09/02/2022;Altri beni e materiali di consumo n.a.c.;274,88;0,00;49,57;Z9D32A317F;1;3;Acquisto di beni e servizi;1;2;999;Liquidazione Fattura Nr. 5/1  del 27/12/2021 (di cui Split per euro 49,57) - Fornitura materiale di ferramenta;540;1;3;1;2;999
VIVAI PIANTE GIULIANI SSA;09/02/2022;Attrezzature n.a.c.;2.231,90;0,00;334,90;ZB1346295E;2;2;Investimenti fissi lordi e acquisto di terreni;1;5;999;Liquidazione Fattura Nr. 8/PA  del 30/12/2021 (di cui Split per euro 334,90) - ACQUISTO PIANTE E AMMENDANTI DA COLLOCARE PRESSO VARIE AREE A VERDE DISLOCATE SUL TERRITORIO COMUNALE_DETERMINA A CONTRARRE E AFFIDAMENTO DITTA VIVAI PIANTE GIUL;572;2;2;1;5;999
VIVAI PIANTE GIULIANI SSA;09/02/2022;Altri beni e materiali di consumo n.a.c.;786,12;0,00;71,47;Z133147C43;1;3;Acquisto di beni e servizi;1;2;999;LIQUIDAZIONE FATTURA NR. 3/PA  DEL 12/01/2022 (DI CUI SPLIT PER EURO 71,47) - ACQUISTO PIANTE E AMMENDANTI PER LAVORI DI MANUTENZIONE DI AREE A VERDE;561;1;3;1;2;999
VIVAI PIANTE GIULIANI SSA;09/02/2022;Manutenzione ordinaria e riparazioni di beni immobili;270,50;0,00;24,59;Z133147C43;1;3;Acquisto di beni e servizi;2;9;8;Liquidazione Fattura Nr. 3/PA  del 12/01/2022 (di cui Split per euro 24,59) - ACQUISTO PIANTE E AMMENDANTI PER LAVORI DI MANUTENZIONE DI AREE A VERDE;562;1;3;2;9;8
TIPOGRAFICA PISTOIESE SRL;09/02/2022;Altri beni e materiali di consumo n.a.c.;1.496,94;0,00;269,94;ZDD2B64154;1;3;Acquisto di beni e servizi;1;2;999;"Liquidazione Fattura Nr. FPA 431/21  del 30/12/2021 (di cui Split per euro 269,94) - STAMPA DI N. 1.550 LIBRETTI DI 32 PAGINE F.TO 14.8X21 ""LEONARDO E L'ARCHITETTURA"" STAMPA IN QUADRICROMIA RILEGATI A QUADERNO CON DOPPIA SPILLATURA METALLIC";545;1;3;1;2;999
VOX SPA;09/02/2022;Noleggi di impianti e macchinari;45,14;0,00;8,14;ZB03387FC4;1;3;Acquisto di beni e servizi;2;7;8;Liquidazione Fattura Nr. 1/FE  del 24/01/2022 (di cui Split per euro 8,14) - Noleggio radioguide museo mese di dicembre 2021;551;1;3;2;7;8
MENINI ROMOLO NOLEGGI SRL;09/02/2022;Altri servizi diversi n.a.c.;4.371,26;0,00;788,26;ZF0346A633;1;3;Acquisto di beni e servizi;2;99;999;Liquidazione Fattura Nr. 59/PA  del 20/12/2021 (di cui Split per euro 788,26) - Fattura Differita;564;1;3;2;99;999
FUTURA SRL;09/02/2022;Altri servizi diversi n.a.c.;616,10;0,00;111,10;ZE630D3F2E;1;3;Acquisto di beni e servizi;2;99;999;Liquidazione Fattura Nr. 683  del 30/12/2021 (di cui Split per euro 111,10) - Stoccaggio arredi e materiali Museo Leonardiano - mese di dicembre 2021;549;1;3;2;99;999
LIGUIGLI FINE ARTS SERVICE DI LIGUIGLI NICOLA & C. SAS;09/02/2022;Altri servizi ausiliari n.a.c.;883,57;0,00;159,33;Z3530E1E15;1;3;Acquisto di beni e servizi;2;13;999;Liquidazione Fattura Nr. EP/9  del 26/01/2022 (di cui Split per euro 159,33) - Deposito mese di gennaio 2022;547;1;3;2;13;999
LIGUIGLI FINE ARTS SERVICE DI LIGUIGLI NICOLA & C. SAS;09/02/2022;Altri servizi ausiliari n.a.c.;883,57;0,00;159,33;Z3530E1E15;1;3;Acquisto di beni e servizi;2;13;999;Liquidazione Fattura Nr. EP/8  del 26/01/2022 (di cui Split per euro 159,33) - Deposito mese di dicembre 2021;546;1;3;2;13;999
3 EMME SRLS;09/02/2022;Manutenzione ordinaria e riparazioni di mezzi di trasporto ad uso civile, di sicurezza e ordine pubblico;968,99;0,00;174,74;Z67315A183;1;3;Acquisto di beni e servizi;2;9;1;Liquidazione Fattura Nr. 315/21  del 14/12/2021 (di cui Split per euro 174,74) - TAGLIANDI E INTERVENTI DI RIPARAZIONE SUI TRATTORI JOHN DEERE TARGATI BS8722W E ABA818 E SUL MINIESCAVATORE CATERPILLAR CAT 302.7;536;1;3;2;9;1
3 EMME SRLS;09/02/2022;Manutenzione ordinaria e riparazioni di mezzi di trasporto ad uso civile, di sicurezza e ordine pubblico;739,62;0,00;133,37;Z67315A183;1;3;Acquisto di beni e servizi;2;9;1;Liquidazione Fattura Nr. 315/21  del 14/12/2021 (di cui Split per euro 133,37) - TAGLIANDI E INTERVENTI DI RIPARAZIONE SUI TRATTORI JOHN DEERE TARGATI BS8722W E ABA818 E SUL MINIESCAVATORE CATERPILLAR CAT 302.7;533;1;3;2;9;1
MAPPO GEOGNOSTICA SRL;09/02/2022;Incarichi professionali per la realizzazione di investimenti;9.385,30;0,00;1.692,43;ZD431977E8;2;2;Investimenti fissi lordi e acquisto di terreni;3;5;1;LIQUIDAZIONE FATTURA NR. 11  DEL 24/01/2022 (DI CUI SPLIT PER EURO 1.692,43) - FRANA VIA SAN DONATO E VIA MOLIN DEI FRATI ? ESECUZIONE DI SONDAGGI.;573;2;2;3;5;1
ULTRAPROMEDIA SRL;09/02/2022;Altri beni e materiali di consumo n.a.c.;544,39;0,00;98,17;ZBD348A210;1;3;Acquisto di beni e servizi;1;2;999;Liquidazione Fattura Nr. 232H  del 24/01/2022 (di cui Split per euro 98,17) - Fornitura di scala telescopica e scaletta pieghevole per il Museo Leonardiano - Ordine 6563023 - CIG: ZBD348A210 - Det. n. 201 del 27/12/2021;548;1;3;1;2;999
DREAM ENTERTAINMENT SRL;09/02/2022;Carta, cancelleria e stampati;357,90;0,00;64,54;Z69348F64B;1;3;Acquisto di beni e servizi;1;2;1;Liquidazione Fattura Nr. E000053/2022 del 17/01/2022 - Fornitura dvd per biblioteca leonardiana (di cui Split per euro 64,54);544;1;3;1;2;1
GIOVANNINI CORINNA;09/02/2022;Patrocinio legale;1.564,28;246,58;0,00;;1;3;Acquisto di beni e servizi;2;11;6;LIQUIDAZIONE FATTURA NR. 1PA  DEL 17/01/2022 - RICORSI R.G.R 221/2021,224/2021 E 227/2021- IMPEGNO DI SPESA PER LIQUIDAZIONE CTU;530;1;3;2;11;6
C.I.S.  INTELLIGENT SYSTEM S.R.L.;10/02/2022;Materiale informatico;2.971,92;0,00;535,92;ZA53494F05;1;3;Acquisto di beni e servizi;1;2;6;Liquidazione Fattura Nr. 2/PA  del 19/01/2022 (di cui Split per euro 535,92) - ACQUISTO DI N.2 TABLET PER RILEVAZIONE COVID E DI TELEFONI VOIP - MEPA;633;1;3;1;2;6
UISP - UNIONE ITALIANA SPORT PER TUTTI COMITATO TERRITORIALE EMPOLI VALDELSA;10/02/2022;Trasferimenti correnti a Istituzioni Sociali Private ;5.000,00;0,00;0,00;;1;4;Trasferimenti correnti;4;1;1;"Liquidazione contributo parziale per progetto ""Sani stili di vita per Vinci""";646;1;4;4;1;1
KUWAIT PETROLEUM ITALIA S.P.A.;10/02/2022;Carburanti, combustibili e lubrificanti ;536,75;0,00;96,79;9010548B6D;1;3;Acquisto di beni e servizi;1;2;2;Liquidazione Fattura Nr. PJ04962323  del 31/01/2022 (di cui Split per euro 96,79) - Fornitura generica;635;1;3;1;2;2
KUWAIT PETROLEUM ITALIA S.P.A.;10/02/2022;Carburanti, combustibili e lubrificanti ;341,51;0,00;61,58;9010548B6D;1;3;Acquisto di beni e servizi;1;2;2;Liquidazione Fattura Nr. PJ04962323  del 31/01/2022 (di cui Split per euro 61,58) - Fornitura generica;636;1;3;1;2;2
KUWAIT PETROLEUM ITALIA S.P.A.;10/02/2022;Carburanti, combustibili e lubrificanti ;982,37;0,00;177,15;9010548B6D;1;3;Acquisto di beni e servizi;1;2;2;Liquidazione Fattura Nr. PJ04962323  del 31/01/2022 (di cui Split per euro 177,15) - Fornitura generica;637;1;3;1;2;2
POSTE ITALIANE SPA SOCIETA' CON SOCIO UNICO;10/02/2022;Altre spese per servizi amministrativi;595,63;0,00;107,41;Z0C263E6D8;1;3;Acquisto di beni e servizi;2;16;999;LIQUIDAZIONE FATTURA NR. 3220050813  DEL 31/01/2022 (DI CUI SPLIT PER EURO 107,41) - NOTIFICHE NOVEMBRE 2021;591;1;3;2;16;999
POSTE ITALIANE SPA SOCIETA' CON SOCIO UNICO;10/02/2022;Altre spese per servizi amministrativi;665,17;0,00;119,95;Z0C263E6D8;1;3;Acquisto di beni e servizi;2;16;999;LIQUIDAZIONE FATTURA NR. 3220053259  DEL 31/01/2022 (DI CUI SPLIT PER EURO 119,95) - NOTIFICHE DICEMBRE 2021;590;1;3;2;16;999
GIOVANI CALCIO VINCI - ASSOCIAZIONE SPORTIVA DILETTANTISTICA;10/02/2022;Trasferimenti correnti a Istituzioni Sociali Private ;10.000,00;0,00;0,00;;1;4;Trasferimenti correnti;4;1;1;"Liquidazione contributo relativo a ""Bando per la concessione di contributi econominici alle a.s.d. concessionarie della gestione degli impianti sportivi del Comune di Vinci"" approvato con Deliberazione di Giunta n. 220/2021 ";645;1;4;4;1;1
SINTESI S.R.L. - SISTEMI INTEGRATI PER UFFICIO;10/02/2022;Postazioni di lavoro;2.124,02;0,00;383,02;ZB63481DC6;2;2;Investimenti fissi lordi e acquisto di terreni;1;7;2;Liquidazione Fattura Nr. 54/E  del 29/12/2021 (di cui Split per euro 383,02) - FATTURE VENDITA ENTI P.;650;2;2;1;7;2
SINTESI S.R.L. - SISTEMI INTEGRATI PER UFFICIO;10/02/2022;Manutenzione ordinaria e riparazioni di macchine per ufficio ;3.673,88;0,00;662,50;Z572FFB2F5;1;3;Acquisto di beni e servizi;2;9;6;Liquidazione Fattura Nr. 1/E  del 25/01/2022 (di cui Split per euro 662,50) - SERVIZIO DI MANUTENZIONE ED ASSISTENZA A COSTO COPIA/STAMPA DELLE MACCHINE MULTIFUNZIONE DELL'ENTE PER IL PERIODO 01.01.2021_31.12.2023-DETERMINA A CONTRARRE E DI;638;1;3;2;9;6
CIR FOOD S.C. DIVISIONE EUDANIA;10/02/2022;Contratti di servizio per le mense scolastiche;21.365,34;0,00;821,74;7769463BAF;1;3;Acquisto di beni e servizi;2;15;6;Liquidazione Fattura Nr. 5200034322  del 31/12/2021 (di cui Split per euro 821,74) - Destinatario:0000100288,COMUNE DI VINCI,Piazza Leonardo 29,VINCI,50059,FI Trattenute DPR RIT 0,5 % ART. 4 C.3 DPR 207/2010 di 103,23- RIF2: SER.RIST.SCOLAS;643;1;3;2;15;6
CIR FOOD S.C. DIVISIONE EUDANIA;10/02/2022;Contratti di servizio per le mense scolastiche;3.741,84;0,00;143,92;7769463BAF;1;3;Acquisto di beni e servizi;2;15;6;Liquidazione Fattura Nr. 5200034321  del 31/12/2021 (di cui Split per euro 143,92) - Destinatario:0000700011,COMUNE VINCI,Piazza Leonardo .,VINCI,50059,FI Trattenute DPR RIT 0,5 % ART. 4 C.3 DPR 207/2010 di 18,08- RIF2: Mese di Dicembre 202;642;1;3;2;15;6
VITOLINI  CALCIO  A.S.D.;10/02/2022;Trasferimenti correnti a Istituzioni Sociali Private ;10.000,00;0,00;0,00;;1;4;Trasferimenti correnti;4;1;1;"Liquidazione contributo relativo a ""Bando per la concessione di contributi economici alle a.s.d. concessionarie della gestione degli impianti sportivi del Comune di Vinci"" approvato con Deliberazione di Giunta n. 220/2021";647;1;4;4;1;1
SIDEA  ITALIA SRL;10/02/2022;Manutenzione ordinaria e riparazioni di beni immobili;5.368,00;0,00;968,00;Z823071CF8;1;3;Acquisto di beni e servizi;2;9;8;LIQUIDAZIONE FATTURA NR. 235/PA  DEL 31/12/2021 (DI CUI SPLIT PER EURO 968,00) - MANUTENZIONE FONTANELLI_II SEMESTRE 2021;649;1;3;2;9;8
CONVERGE S.P.A.;10/02/2022;Noleggi di hardware;48,20;0,00;8,69;Z9D1DC27F4;1;3;Acquisto di beni e servizi;2;7;4;Liquidazione Fattura Nr. 22300608  del 31/01/2022 (di cui Split per euro 8,69) - NOLEGGIO DI DUE MACCHINE MULTIFUNZIONE MEDIANTE ADESIONE A CONVENZIONE CONSIP - DETERMINA DI AFFIDAMENTO;639;1;3;2;7;4
TIM S.P.A. DIREZIONE E COORDINAMENTO VIVENDI SA;10/02/2022;Servizi di rete per trasmissione dati e VoIP e relativa manutenzione;11,00;0,00;1,98;Z02264C2B7;1;3;Acquisto di beni e servizi;2;19;4;Liquidazione Fattura Nr. 8L00612085  del 11/12/2021 (di cui Split per euro 1,98) - 1BIM 2022;644;1;3;2;19;4
TIM S.P.A. DIREZIONE E COORDINAMENTO VIVENDI SA;10/02/2022;Servizi di rete per trasmissione dati e VoIP e relativa manutenzione;4,00;0,00;0,72;Z02264C2B7;1;3;Acquisto di beni e servizi;2;19;4;Liquidazione Fattura Nr. 8L00612085  del 11/12/2021 (di cui Split per euro 0,72) - 1BIM 2022;641;1;3;2;19;4
TINGHI MOTORS SRL;10/02/2022;Altre spese sostenute per utilizzo di beni di terzi n.a.c.;2.391,20;0,00;431,20;Z2F33158C7;1;3;Acquisto di beni e servizi;2;7;999;LIQUIDAZIONE FATTURA NR. SP21/00033  DEL 31/12/2021 (DI CUI SPLIT PER EURO 431,20) - NOLEGGIO AUTO ELETTRICA RENAULT ZOE TG.FR634K ;648;1;3;2;7;999
ESSEGI STAMPA DI GIACOMELLI SIMONE;10/02/2022;Carta, cancelleria e stampati;829,60;0,00;149,60;ZE134D9C92;1;3;Acquisto di beni e servizi;1;2;1;Liquidazione Fattura Nr. 7  del 24/01/2022 (di cui Split per euro 149,60) - FORNITURA CARTELLINE  IN QUATTRO COLORI CON STAMPA LOGO E DICITURA DELL'ENTE IN NERO-DETERMINA A CONTRARRE E DI AFFIDAMENTO DIRETTO CIG;634;1;3;1;2;1
ERARIO DELLO STATO PER PAGAMENTO I.V.A.;14/02/2022;Versamenti IVA a debito per le gestioni commerciali;5.240,59;0,00;0,00;;1;10;Altre spese correnti;3;1;1;LIQUIDAZIONI IVA COMMERCIALE ANNO 2022 MESE  GENNAIO;651;1;10;3;1;1
PERSONALE DIPENDENTE SEDE;15/02/2022;Organi istituzionali dell'amministrazione - indennit�;58,88;0,00;0,00;;1;3;Acquisto di beni e servizi;2;1;1;stipendio 01;659;1;3;2;1;1
PERSONALE DIPENDENTE SEDE;15/02/2022;Organi istituzionali dell'amministrazione - indennit�;33,62;0,00;0,00;;1;3;Acquisto di beni e servizi;2;1;1;stipendio 01;660;1;3;2;1;1
AMMINISTRATORI COMUNALI;15/02/2022;Organi istituzionali dell'amministrazione - indennit�;8.186,81;0,00;0,00;;1;3;Acquisto di beni e servizi;2;1;1;stipendio 01;654;1;3;2;1;1
AMMINISTRATORI COMUNALI;15/02/2022;Organi istituzionali dell'amministrazione - indennit�;2.553,16;0,00;0,00;;1;3;Acquisto di beni e servizi;2;1;1;stipendio 01;655;1;3;2;1;1
AMMINISTRATORI COMUNALI;15/02/2022;Organi istituzionali dell'amministrazione - indennit�;1.050,09;0,00;0,00;;1;3;Acquisto di beni e servizi;2;1;1;stipendio 01;656;1;3;2;1;1
ASSOCIAZIONE CIVILE CASA DEL POPOLO VINCI;17/02/2022;Trasferimenti correnti a Istituzioni Sociali Private ;1.500,00;0,00;0,00;;1;4;Trasferimenti correnti;4;1;1;contributo covid 2021 sostegno associazioni;938;1;4;4;1;1
CEROFOLINI S.R.L.;17/02/2022;Beni immobili n.a.c.;3.464,80;0,00;624,80;Z5832E6EE8;2;2;Investimenti fissi lordi e acquisto di terreni;1;9;999;Liquidazione Fattura Nr. 59/06  del 12/10/2021 (di cui Split per euro 624,80) - Pulizia locali a seguito intervento anticendio Villa Reghini lotto 2;935;2;2;1;9;999
CEROFOLINI S.R.L.;17/02/2022;Altri servizi diversi n.a.c.;85,40;0,00;15,40;Z0C34FAA8A;1;3;Acquisto di beni e servizi;2;99;999;LIQUIDAZIONE FATTURA NR. 5/06  DEL 02/02/2022 (DI CUI SPLIT PER EURO 15,40) - SANIFICAZIONE 27/01/22;931;1;3;2;99;999
CEROFOLINI S.R.L.;17/02/2022;Altri servizi diversi n.a.c.;85,40;0,00;15,40;Z8334FCA9D;1;3;Acquisto di beni e servizi;2;99;999;LIQUIDAZIONE FATTURA NR. 6/06  DEL 02/02/2022 (DI CUI SPLIT PER EURO 15,40) - SANIFICAZIONE 28/01/22;932;1;3;2;99;999
C.C.N. VINCINCENTRO;17/02/2022;Trasferimenti correnti a Istituzioni Sociali Private ;252,00;0,00;0,00;;1;4;Trasferimenti correnti;4;1;1;contributo sostegno associazioni covid 2021;939;1;4;4;1;1
UNICOOP FIRENZE SOCIETA' COOPERATIVA;17/02/2022;Generi alimentari;655,00;0,00;0,00;;1;3;Acquisto di beni e servizi;1;2;11;LIQUIDAZIONE FATTURA NR. 0002000158  DEL 25/01/2022 - RIMBORSO BUONI SPESA EMERGENZA COVID-19 MESE DI DICEMBRE 2021;951;1;3;1;2;11
UNICOOP FIRENZE SOCIETA' COOPERATIVA;17/02/2022;Altri assegni e sussidi assistenziali;1.595,00;0,00;0,00;;1;4;Trasferimenti correnti;2;2;999;LIQUIDAZIONE FATTURA NR. 0002000158  DEL 25/01/2022 - RIMBORSO BUONI SPESA EMERGENZA COVID-19 MESE DI DICEMBRE 2021;950;1;4;2;2;999
SERVICE S.R.L .;17/02/2022;Manutenzione ordinaria e riparazioni di mezzi di trasporto ad uso civile, di sicurezza e ordine pubblico;1.000,00;0,00;180,33;Z7433D392E;1;3;Acquisto di beni e servizi;2;9;1;Liquidazione Fattura Nr. 1246  del 30/12/2021 (di cui Split per euro 180,33) - LAVORI DI CARROZZERIA SU VARI MEZZI ;920;1;3;2;9;1
SERVICE S.R.L .;17/02/2022;Manutenzione ordinaria e riparazioni di mezzi di trasporto ad uso civile, di sicurezza e ordine pubblico;36,71;0,00;6,62;Z7433D392E;1;3;Acquisto di beni e servizi;2;9;1;Liquidazione Fattura Nr. 1246  del 30/12/2021 (di cui Split per euro 6,62) - LAVORI DI CARROZZERIA SU VARI MEZZI ;921;1;3;2;9;1
SERVICE S.R.L .;17/02/2022;Manutenzione ordinaria e riparazioni di mezzi di trasporto ad uso civile, di sicurezza e ordine pubblico;220,26;0,00;39,72;Z7433D392E;1;3;Acquisto di beni e servizi;2;9;1;Liquidazione Fattura Nr. 1247  del 30/12/2021 (di cui Split per euro 39,72) - LAVORI DI CARROZZERIA SU VARI MEZZI ;922;1;3;2;9;1
SERVICE S.R.L .;17/02/2022;Manutenzione ordinaria e riparazioni di mezzi di trasporto ad uso civile, di sicurezza e ordine pubblico;485,32;0,00;87,52;ZB93471AC2;1;3;Acquisto di beni e servizi;2;9;1;Liquidazione Fattura Nr. 1248  del 30/12/2021 (di cui Split per euro 87,52) - LAVORI DI CARROZZERIA SU VARI MEZZI;923;1;3;2;9;1
SERVICE S.R.L .;17/02/2022;Manutenzione ordinaria e riparazioni di mezzi di trasporto ad uso civile, di sicurezza e ordine pubblico;217,77;0,00;39,27;ZB93471AC2;1;3;Acquisto di beni e servizi;2;9;1;Liquidazione Fattura Nr. 1249  del 30/12/2021 (di cui Split per euro 39,27) - LAVORI DI CARROZZERIA SU VARI MEZZI;924;1;3;2;9;1
ESKIMO COOP. SOCIALE ONLUS;17/02/2022;Altre spese per contratti di servizio pubblico;98,98;0,00;0,00;7172254B3A;1;3;Acquisto di beni e servizi;2;15;999;Liquidazione Fattura Nr. FATTPA 18_22  del 17/01/2022 - Fornitura generica;952;1;3;2;15;999
ESKIMO COOP. SOCIALE ONLUS;17/02/2022;Altre spese per contratti di servizio pubblico;475,08;0,00;0,00;7172254B3A;1;3;Acquisto di beni e servizi;2;15;999;Liquidazione Fattura Nr. FATTPA 18_22  del 17/01/2022 - Fornitura generica;953;1;3;2;15;999
ESKIMO COOP. SOCIALE ONLUS;17/02/2022;Altre spese per contratti di servizio pubblico;750,53;0,00;0,00;7172254B3A;1;3;Acquisto di beni e servizi;2;15;999;Liquidazione Fattura Nr. FATTPA 18_22  del 17/01/2022 - Fornitura generica;954;1;3;2;15;999
ESKIMO COOP. SOCIALE ONLUS;17/02/2022;Altre spese per contratti di servizio pubblico;3,98;0,00;0,00;7172254B3A;1;3;Acquisto di beni e servizi;2;15;999;LIQUIDAZIONE FATTURA NR. FATTPA 18_22  DEL 17/01/2022 - FORNITURA GENERICA;956;1;3;2;15;999
ESKIMO COOP. SOCIALE ONLUS;17/02/2022;Altre spese per contratti di servizio pubblico;39,59;0,00;0,00;7172254B3A;1;3;Acquisto di beni e servizi;2;15;999;Liquidazione Fattura Nr. FATTPA 18_22  del 17/01/2022 - Fornitura generica;955;1;3;2;15;999
ESKIMO COOP. SOCIALE ONLUS;17/02/2022;Altre spese per contratti di servizio pubblico;813,45;0,00;73,95;86042270BE;1;3;Acquisto di beni e servizi;2;15;999;Liquidazione Fattura Nr. FATTPA 19_22  del 19/01/2022 (di cui Split per euro 73,95) - SERVIZI EDUCATIVI INTEGRATIVI PER L'INFANZIA E DEI SERVIZI EXTRASCOLASTICI DAL 28 GENNAIO 2021 AL 30 GIUGNO 2021 DETERMINA A CONTRARRE E AFFIDAMENTO DIRET;933;1;3;2;15;999
CO&SO EMPOLI - CONS. DI COOP. SOCIALI - SOCIETA' COOPERATIVA;17/02/2022;Altre spese per contratti di servizio pubblico;3.734,49;0,00;673,43;7551132F3D;1;3;Acquisto di beni e servizi;2;15;999;Liquidazione Fattura Nr. 000019-2C0  del 25/01/2022 (di cui Split per euro 673,43) - Servizi turistici - mese di dicembre 2021;927;1;3;2;15;999
CO&SO EMPOLI - CONS. DI COOP. SOCIALI - SOCIETA' COOPERATIVA;17/02/2022;Altre spese per contratti di servizio pubblico;2.006,02;0,00;361,74;7551132F3D;1;3;Acquisto di beni e servizi;2;15;999;Liquidazione Fattura Nr. 000020-2C0  del 25/01/2022 (di cui Split per euro 361,74) - Servizio pulizie Museo - mese di dicembre 2021;925;1;3;2;15;999
UNIONE DEI COMUNI CIRCONDARIO EMPOLESE VALDELSA;17/02/2022;Trasferimenti correnti a Unioni di Comuni;225,00;0,00;0,00;;1;4;Trasferimenti correnti;1;2;5;RIMBORSO SPESE UNIONE PER CONTRIBUTO TASSA ANAC;943;1;4;1;2;5
A.N.A.C. - AUTORITA' NAZIONALE ANTICORRUZIONE;17/02/2022;Trasferimenti correnti a altre Amministrazioni Centrali n.a.c.;150,00;0,00;0,00;;1;4;Trasferimenti correnti;1;1;999;Pagamento contributo anac 3 quadrimestre 2021;944;1;4;1;1;999
FOTOCLUB VINCI;17/02/2022;Trasferimenti correnti a Istituzioni Sociali Private ;467,70;0,00;0,00;;1;4;Trasferimenti correnti;4;1;1;contributo sostegno covid 2021 associazioni;941;1;4;4;1;1
PRO LOCO S.AMATO;17/02/2022;Trasferimenti correnti a Istituzioni Sociali Private ;1.500,00;0,00;0,00;;1;4;Trasferimenti correnti;4;1;1;contributo sostegno covid 2021 associazioni;942;1;4;4;1;1
ALIA SERVIZI AMBIENTALI S.P.A.;17/02/2022;Contratti di servizio per la raccolta rifiuti;279.698,10;0,00;25.427,10;4726694F44;1;3;Acquisto di beni e servizi;2;15;4;Liquidazione Fattura Nr. 0000132096  del 31/01/2022 (di cui Split per euro 25.427,10) -  Determina 2 del 17.01.2022  Iva da versare a cura del cessionario o committente ai sensi dell'art.17 -ter del D.P.R. nr.633/1972 Scissione pagamenti;929;1;3;2;15;4
COMITATO CARNEVALE SULLE DUE RIVE;17/02/2022;Trasferimenti correnti a Istituzioni Sociali Private ;500,00;0,00;0,00;;1;4;Trasferimenti correnti;4;1;1;contributo sostegno associazioni covid 2021;940;1;4;4;1;1
EREDI LEPORATTI GUIDO S.A.S. DI FIORETTA PACINI;17/02/2022;Contratti di servizio di trasporto pubblico;2.571,25;0,00;233,75;Z573403ECC;1;3;Acquisto di beni e servizi;2;15;1;Liquidazione Fattura Nr. 01/22  del 30/01/2022 (di cui Split per euro 233,75) - FATTURA TPL MENSILITA' GENNAIO 2022;928;1;3;2;15;1
NUOVA SA.CA. SRL UNIPERSONALE;17/02/2022;Altri acquisti di servizi sanitari n.a.c.;555,10;0,00;100,10;ZA62FC6198;1;3;Acquisto di beni e servizi;2;18;999;Liquidazione Fattura Nr. 7/2  del 14/02/2022 (di cui Split per euro 100,10) - Vendita Iva da versare a cura del cessionario o committente ai sensi dell'art. 17-ter del D.P.R. n. 633/1972 (scissione dei pagamenti);930;1;3;2;18;999
FUTURA SRL;17/02/2022;Altri servizi diversi n.a.c.;659,90;0,00;119,00;ZE630D3F2E;1;3;Acquisto di beni e servizi;2;99;999;Liquidazione Fattura Nr. 32  del 31/01/2022 (di cui Split per euro 119,00) - Stoccaggio arredi e materiali Museo Leonardiano - mese di gennaio 2022;926;1;3;2;99;999
GALLI TORRINI SRL;17/02/2022;pubblicit�;7.625,00;0,00;1.375,00;Z763370D34;1;3;Acquisto di beni e servizi;2;2;4;Liquidazione Fattura Nr. FPA 10/21  del 31/12/2021 (di cui Split per euro 1.375,00) - ufficio stampa ottobre/dicembre 2021;919;1;3;2;2;4
RIFUGIO VALDIFLORA;17/02/2022;Trasferimenti correnti a Istituzioni Sociali Private ;610,00;0,00;110,00;ZEA345DD8C;1;4;Trasferimenti correnti;4;1;1;Liquidazione Fattura Nr. PA18  del 10/02/2022 (di cui Split per euro 110,00) - Fornitura generica;934;1;4;4;1;1
ASSOCIAZIONE CASA DEL POPOLO IL PIASTRINO;17/02/2022;Trasferimenti correnti a Istituzioni Sociali Private ;904,39;0,00;0,00;;1;4;Trasferimenti correnti;4;1;1;contributo sostegno covid 2021 associazioni;937;1;4;4;1;1
A.S.D. BUNNY CLUB C/O SCARDIGLI LICIA;17/02/2022;Trasferimenti correnti a Istituzioni Sociali Private ;500,00;0,00;0,00;;1;4;Trasferimenti correnti;4;1;1;contributo sostegno covid 2021 associazioni;936;1;4;4;1;1
PROVVEDI STEFANO & C. SNC;21/02/2022;Altri beni e materiali di consumo n.a.c.;69,50;0,00;0,00;;1;3;Acquisto di beni e servizi;1;2;999;PAGAMENTO BUONO ECONOMALE NR. 200115 - ACQUISTO BENI E PICCOLA ATTREZZATURA-ACQUISTO DUE CUCITRICI GRANDI DIMENSIONI PER RILEGATURE;971;1;3;1;2;999
BAZAR CINELLI  DI CINELLI ILARIA E PAOLO;21/02/2022;Carta, cancelleria e stampati;17,00;0,00;0,00;;1;3;Acquisto di beni e servizi;1;2;1;PAGAMENTO BUONO ECONOMALE NR. 200090 - STAMPATI, CANCELLERIA E MATERIALE VARIO PER UFFICI-ACQUISTO MATERIALE DI CANCELLERIA VARIO;973;1;3;1;2;1
BAZAR CINELLI  DI CINELLI ILARIA E PAOLO;21/02/2022;Carta, cancelleria e stampati;8,00;0,00;0,00;;1;3;Acquisto di beni e servizi;1;2;1;PAGAMENTO BUONO ECONOMALE NR. 200093 - STAMPATI, CANCELLERIA E MATERIALE VARIO PER MUSEI-ACQUISTO SACCHETTI CON SOFFIETTO PER PICCOLI GADGET IN VENDITA AL MUSEO;993;1;3;1;2;1
BAZAR CINELLI  DI CINELLI ILARIA E PAOLO;21/02/2022;Carta, cancelleria e stampati;5,50;0,00;0,00;;1;3;Acquisto di beni e servizi;1;2;1;PAGAMENTO BUONO ECONOMALE NR. 200094 - STAMPATI CANCELLERIA E MATERIALE VARIO PER BIBLIOTECHE-ACQUISTO NASTRO DI CARTA E ADESIVO PER BIBLIOTECA ;987;1;3;1;2;1
BAZAR CINELLI  DI CINELLI ILARIA E PAOLO;21/02/2022;Carta, cancelleria e stampati;170,60;0,00;0,00;;1;3;Acquisto di beni e servizi;1;2;1;PAGAMENTO BUONO ECONOMALE NR. 200095 - STAMPATI, CANCELLERIA E MATERIALE VARIO PER UFFICI-ACQUISTI VARI TIMBRI URGENTI PER GLI UFFICI;974;1;3;1;2;1
BAZAR CINELLI  DI CINELLI ILARIA E PAOLO;21/02/2022;Carta, cancelleria e stampati;25,10;0,00;0,00;;1;3;Acquisto di beni e servizi;1;2;1;PAGAMENTO BUONO ECONOMALE NR. 200107 - STAMPATI, CANCELLERIA E MATERIALE VARIO PER UFFICI-ACQUISTO PILE, CUTTER E SPILLI CARTOGRAFICI;975;1;3;1;2;1
BAZAR CINELLI  DI CINELLI ILARIA E PAOLO;21/02/2022;Carta, cancelleria e stampati;19,00;0,00;0,00;;1;3;Acquisto di beni e servizi;1;2;1;PAGAMENTO BUONO ECONOMALE NR. 200109 - STAMPATI, CANCELLERIA E MATERIALE VARIO PER UFFICI-ACQUISTO PILE PER TELECOMANDI E COLLA STICK;976;1;3;1;2;1
BAZAR CINELLI  DI CINELLI ILARIA E PAOLO;21/02/2022;Carta, cancelleria e stampati;8,00;0,00;0,00;;1;3;Acquisto di beni e servizi;1;2;1;PAGAMENTO BUONO ECONOMALE NR. 200114 - STAMPATI, CANCELLERIA E MATERIALE VARIO PER UFFICI-ACQUISTO DUE TAMPONI PER TIMBRI;977;1;3;1;2;1
BAZAR CINELLI  DI CINELLI ILARIA E PAOLO;21/02/2022;Beni per attivit� di rappresentanza ;1,60;0,00;0,00;;1;3;Acquisto di beni e servizi;1;2;9;PAGAMENTO BUONO ECONOMALE NR. 200116 - BENI PER ATTIVIT� DI RAPPRESENTANZA-ACQUISTO BIGLIETTI DI AUGURI;961;1;3;1;2;9
BAZAR CINELLI  DI CINELLI ILARIA E PAOLO;21/02/2022;Carta, cancelleria e stampati;77,00;0,00;0,00;;1;3;Acquisto di beni e servizi;1;2;1;PAGAMENTO BUONO ECONOMALE NR. 200127 - STAMPATI, CANCELLERIA E MATERIALE VARIO PER UFFICI-ACQUISTO AGENDE;978;1;3;1;2;1
DAMAZ S.R.L. - INGROSSO CASALINGHI;21/02/2022;Altri beni e materiali di consumo n.a.c.;132,80;0,00;0,00;;1;3;Acquisto di beni e servizi;1;2;999;PAGAMENTO BUONO ECONOMALE NR. 200128 - MATERIALE IGIENICO-SANITARIO E PULIZIA SEDI ISTITUZIONALI-ACQUISTO DISPENSER SAPONE E SAPONE LAVAMANI LT 5;965;1;3;1;2;999
UFFICIO TECNICA  S.A.S. DI PINI LAURA & C.;21/02/2022;Carta, cancelleria e stampati;57,60;0,00;0,00;;1;3;Acquisto di beni e servizi;1;2;1;PAGAMENTO BUONO ECONOMALE NR. 200121 - STAMPATI, CANCELLERIA E MATERIALE VARIO PER UFFICI-ACQUISTI QUATTRO TIMBRI INTESTAZIONE DELL'ENTE CORRETTA;983;1;3;1;2;1
MAZZONI FERRO S.R.L.;21/02/2022;Manutenzione ordinaria e riparazioni di mezzi di trasporto ad uso civile, di sicurezza e ordine pubblico;150,00;0,00;0,00;;1;3;Acquisto di beni e servizi;2;9;1;PAGAMENTO BUONO ECONOMALE NR. 200124 - MANUTENZIONI VEICOLI DEDICATI ALLA VIABILIT� E PUBBLICA ILLUMINAZIONE-ROTTAMAZIONE TRE CICLOMOTORI;985;1;3;2;9;1
SINTESI S.R.L. - SISTEMI INTEGRATI PER UFFICIO;21/02/2022;Altri beni e materiali di consumo n.a.c.;66,00;0,00;0,00;;1;3;Acquisto di beni e servizi;1;2;999;PAGAMENTO BUONO ECONOMALE NR. 200091 - ACQUISTO BENI E PICCOLA ATTREZZATURA-ACQUISTO ALBERINI PER SOSTITUZIONE DI QUELLI ROTTI ALL'URP DI VINCI;972;1;3;1;2;999
SINTESI S.R.L. - SISTEMI INTEGRATI PER UFFICIO;21/02/2022;Carta, cancelleria e stampati;213,05;0,00;0,00;;1;3;Acquisto di beni e servizi;1;2;1;PAGAMENTO BUONO ECONOMALE NR. 200100 - STAMPATI, CANCELLERIA E MATERIALE VARIO PER UFFICI-ACQUISTO CARTA URGENTE PER UFFICI URP;979;1;3;1;2;1
SINTESI S.R.L. - SISTEMI INTEGRATI PER UFFICIO;21/02/2022;Carta, cancelleria e stampati;213,50;0,00;0,00;;1;3;Acquisto di beni e servizi;1;2;1;PAGAMENTO BUONO ECONOMALE NR. 200108 - STAMPATI, CANCELLERIA E MATERIALE VARIO PER UFFICI-ACQUISTO CARTA A4 PER GLI UFFICI;980;1;3;1;2;1
SINTESI S.R.L. - SISTEMI INTEGRATI PER UFFICIO;21/02/2022;Carta, cancelleria e stampati;183,00;0,00;0,00;;1;3;Acquisto di beni e servizi;1;2;1;PAGAMENTO BUONO ECONOMALE NR. 200111 - STAMPATI, CANCELLERIA E MATERIALE VARIO PER UFFICI-ACQUISTO CALCOLATRICE E TONER PER STAMPANTE STATO CIVILE;981;1;3;1;2;1
TABACCHERIA LEONARDO;21/02/2022;Carta, cancelleria e stampati;9,00;0,00;0,00;;1;3;Acquisto di beni e servizi;1;2;1;PAGAMENTO BUONO ECONOMALE NR. 200105 - ACQUISTO CARTA, CANCELLERIA E STAMPATI PER GLI UFFICI TECNICI-ACQUISTO PILE PER TELECOMANDI SEDI MUSEALE ANCHIANO;964;1;3;1;2;1
TABACCHERIA LEONARDO;21/02/2022;Carta, cancelleria e stampati;30,00;0,00;0,00;;1;3;Acquisto di beni e servizi;1;2;1;PAGAMENTO BUONO ECONOMALE NR. 200120 - STAMPATI, CANCELLERIA E MATERIALE VARIO PER MUSEI-ACQUISTO SIM PER ALLARME DI UNA SEDE DEL SISTEMA MUSEALE ;998;1;3;1;2;1
B & B UFFICIO SRL;21/02/2022;Carta, cancelleria e stampati;24,50;0,00;0,00;;1;3;Acquisto di beni e servizi;1;2;1;PAGAMENTO BUONO ECONOMALE NR. 200099 - ACQUISTO BENI GESTIONE SERVIZIO NAVETTA-ACQUISTO BLOCCHETTI DI RICEVUTE FISCALI PER TPL;1000;1;3;1;2;1
B & B UFFICIO SRL;21/02/2022;Carta, cancelleria e stampati;38,90;0,00;0,00;;1;3;Acquisto di beni e servizi;1;2;1;PAGAMENTO BUONO ECONOMALE NR. 200125 - STAMPATI CANCELLERIA E MATERIALE VARIO PER BIBLIOTECHE-ACQUISTO DUE LIBRI PER LEONARDIANA;986;1;3;1;2;1
MARVOGLI STEFANIA;21/02/2022;Carta, cancelleria e stampati;22,60;0,00;0,00;;1;3;Acquisto di beni e servizi;1;2;1;PAGAMENTO BUONO ECONOMALE NR. 200117 - STAMPATI, CANCELLERIA E MATERIALE VARIO PER MUSEI-MATERIALE PER DIDATTICA MUSEALE PERIODO NATALIZIO;994;1;3;1;2;1
MARVOGLI STEFANIA;21/02/2022;Carta, cancelleria e stampati;6,95;0,00;0,00;;1;3;Acquisto di beni e servizi;1;2;1;PAGAMENTO BUONO ECONOMALE NR. 200118 - STAMPATI, CANCELLERIA E MATERIALE VARIO PER MUSEI-ACQUISTO MATERIALE PER DIDATTICA MUSEALE PERIODO NATALIZIO;995;1;3;1;2;1
MARVOGLI STEFANIA;21/02/2022;Carta, cancelleria e stampati;18,00;0,00;0,00;;1;3;Acquisto di beni e servizi;1;2;1;PAGAMENTO BUONO ECONOMALE NR. 200119 - STAMPATI, CANCELLERIA E MATERIALE VARIO PER MUSEI-ACQUISTO MATERIALE PER DIDATTICA MUSEALE PERIODO NATALIZIO;996;1;3;1;2;1
OBI ITALIA SRL;21/02/2022;Altri beni e materiali di consumo n.a.c.;39,80;0,00;0,00;;1;3;Acquisto di beni e servizi;1;2;999;PAGAMENTO BUONO ECONOMALE NR. 200097 - ACQUISTO BENI PER ORGANI ISTITUZIONALI-ACQUISTO 4 PICCOLE CORNICI PER ASSEGNAZIONE ONORIFICIENZE;962;1;3;1;2;999
AZ S.A.S. DI MARINAI M. & C. CONCESSIONARIO BUFFETTI;21/02/2022;Altri beni e materiali di consumo n.a.c.;35,00;0,00;0,00;;1;3;Acquisto di beni e servizi;1;2;999;PAGAMENTO BUONO ECONOMALE NR. 200102 - ACQUISTO BENI E PICCOLA ATTREZZATURA-ACQUISTO ALIMENTATORE PER PC PORTATILE IN QUANTO ROTTO;966;1;3;1;2;999
TOSCANA DATA SERVICE;21/02/2022;Carta, cancelleria e stampati;219,60;0,00;0,00;;1;3;Acquisto di beni e servizi;1;2;1;PAGAMENTO BUONO ECONOMALE NR. 200096 - STAMPATI, CANCELLERIA E MATERIALE VARIO PER UFFICI- INTERVENTO SU FISCALIZZATORE;982;1;3;1;2;1
TOSCANA DATA SERVICE;21/02/2022;Carta, cancelleria e stampati;292,00;0,00;0,00;;1;3;Acquisto di beni e servizi;1;2;1;PAGAMENTO BUONO ECONOMALE NR. 200129 - STAMPATI, CANCELLERIA E MATERIALE VARIO PER MUSEI-INTERVENTO URGENTE SU FISCALIZZATORE DELLA BIGLIETTERIA;999;1;3;1;2;1
BRICO IO SPA;21/02/2022;Carta, cancelleria e stampati;100,35;0,00;0,00;;1;3;Acquisto di beni e servizi;1;2;1;PAGAMENTO BUONO ECONOMALE NR. 200098 - STAMPATI CANCELLERIA E MATERIALE VARIO PER BIBLIOTECHE-ACQUISTO PICCOLO SCALEO E ADATTATORI TRIPLO ;989;1;3;1;2;1
BRICO IO SPA;21/02/2022;Carta, cancelleria e stampati;79,84;0,00;0,00;;1;3;Acquisto di beni e servizi;1;2;1;PAGAMENTO BUONO ECONOMALE NR. 200123 - STAMPATI CANCELLERIA E MATERIALE VARIO PER BIBLIOTECHE-ACQUISTO DVD SLIM PER SEDE LEONARDIANA;990;1;3;1;2;1
FARMACIA G.T. SCATOLA SRL;21/02/2022;Altri beni e materiali di consumo n.a.c.;29,50;0,00;0,00;;1;3;Acquisto di beni e servizi;1;2;999;PAGAMENTO BUONO ECONOMALE NR. 200110 - ACQUISTO BENI E PICCOLA ATTREZZATURA-ACQUISTO TERMOETRO DIGITALE PER MISURAZIONE TEMPERATURE;969;1;3;1;2;999
EURO MERCATONE DI WU AIYUN;21/02/2022;Carta, cancelleria e stampati;29,65;0,00;0,00;;1;3;Acquisto di beni e servizi;1;2;1;PAGAMENTO BUONO ECONOMALE NR. 200126 - STAMPATI CANCELLERIA E MATERIALE VARIO PER BIBLIOTECHE-MATERIALE DI CANCELLERIA PER DIDATTICA DELLA BIBLIOTECA;991;1;3;1;2;1
V.A.M.A.R. SNC;21/02/2022;Manutenzione ordinaria e riparazioni di mezzi di trasporto ad uso civile, di sicurezza e ordine pubblico;52,00;0,00;0,00;;1;3;Acquisto di beni e servizi;2;9;1;PAGAMENTO BUONO ECONOMALE NR. 200112 - MANUTENZIONE VEICOLI DEDICATI AI SERVIZI SPORT E TEMPO LIBERO-ACQUISTO RICAMBI PER DECESPUGLIATORI;984;1;3;2;9;1
PAPER PACK SERVICE DI CASINI ELIA;21/02/2022;Carta, cancelleria e stampati;77,60;0,00;0,00;;1;3;Acquisto di beni e servizi;1;2;1;PAGAMENTO BUONO ECONOMALE NR. 200092 - STAMPATI, CANCELLERIA E MATERIALE VARIO PER MUSEI-ACQUISTO SACCHETTI VARIE MISURE PER BOOK SHOP MUSEO;997;1;3;1;2;1
BNF DEPARTEMENT DE LA REPRODUCTION;21/02/2022;Carta, cancelleria e stampati;5,00;0,00;0,00;;1;3;Acquisto di beni e servizi;1;2;1;PAGAMENTO BUONO ECONOMALE NR. 200101 - STAMPATI CANCELLERIA E MATERIALE VARIO PER BIBLIOTECHE-DIRITTI DI IMMAGINE SU LEONARDO DA VINCI;988;1;3;1;2;1
ITALIACELL SRL;21/02/2022;Altri beni e materiali di consumo n.a.c.;25,00;0,00;0,00;;1;3;Acquisto di beni e servizi;1;2;999;PAGAMENTO BUONO ECONOMALE NR. 200103 - ACQUISTO BENI E PICCOLA ATTREZZATURA-ACQUISTO SIM PER COLLEGAMENTO SISTEMA ALLARME SEDE MUSEALE;970;1;3;1;2;999
C.A.R.E. SERVICE SAS;21/02/2022;Altri beni e materiali di consumo n.a.c.;66,00;0,00;0,00;;1;3;Acquisto di beni e servizi;1;2;999;PAGAMENTO BUONO ECONOMALE NR. 200104 - ACQUISTO BENI E PICCOLA ATTREZZATURA-ACQUISTO TRE STUFETTE A INFRAROSSI PER SEDE DISTACCATA;967;1;3;1;2;999
C.A.R.E. SERVICE SAS;21/02/2022;Altri beni e materiali di consumo n.a.c.;23,90;0,00;0,00;;1;3;Acquisto di beni e servizi;1;2;999;PAGAMENTO BUONO ECONOMALE NR. 200113 - ACQUISTO BENI E PICCOLA ATTREZZATURA-ACQUISTO STUFETTA PER STANZA PORTIERATO;968;1;3;1;2;999
GOLDEN TREE SRL;21/02/2022;Carta, cancelleria e stampati;71,40;0,00;0,00;;1;3;Acquisto di beni e servizi;1;2;1;PAGAMENTO BUONO ECONOMALE NR. 200122 - STAMPATI CANCELLERIA E MATERIALE VARIO PER BIBLIOTECHE-ACQUISTO MATERIALE DIDATTICO PER BIBLIOTECHE;992;1;3;1;2;1
PERSONALE DIPENDENTE SEDE;24/02/2022;indennit� di missione e di trasferta;29,10;0,00;0,00;;1;3;Acquisto di beni e servizi;2;2;2;Stipendio 02;1094;1;3;2;2;2
PERSONALE DIPENDENTE SEDE;24/02/2022;indennit� di missione e di trasferta;9,40;0,00;0,00;;1;3;Acquisto di beni e servizi;2;2;2;Stipendio 02;1066;1;3;2;2;2
PERSONALE DIPENDENTE SEDE;24/02/2022;Organi istituzionali dell'amministrazione - Rimborsi ;253,40;0,00;0,00;;1;3;Acquisto di beni e servizi;2;1;2;Stipendio 02;1004;1;3;2;1;2
PERSONALE DIPENDENTE SEDE;24/02/2022;indennit� di missione e di trasferta;25,40;0,00;0,00;;1;3;Acquisto di beni e servizi;2;2;2;Stipendio 02;1109;1;3;2;2;2
AMMINISTRATORI COMUNALI;24/02/2022;Organi istituzionali dell'amministrazione - indennit�;8.186,78;0,00;0,00;;1;3;Acquisto di beni e servizi;2;1;1;stipendio 02;1002;1;3;2;1;1
POSTE ITALIANE SPA SOCIETA' CON SOCIO UNICO;28/02/2022;Spese postali;1.231,10;0,00;0,00;ZAB3170CF7;1;3;Acquisto di beni e servizi;2;16;2;Liquidazione Fattura Nr. 1022014131  del 01/02/2022 - 30027076-014 posta easy affrancatura dicembre 2021;1272;1;3;2;16;2
POSTE ITALIANE SPA SOCIETA' CON SOCIO UNICO;28/02/2022;Spese postali;73,50;0,00;0,00;ZAB3170CF7;1;3;Acquisto di beni e servizi;2;16;2;Liquidazione Fattura Nr. 1022014213  del 01/02/2022 - 30027076-015 pick up ottobre 2021;1273;1;3;2;16;2
POSTE ITALIANE SPA SOCIETA' CON SOCIO UNICO;28/02/2022;Spese postali;77,00;0,00;0,00;ZAB3170CF7;1;3;Acquisto di beni e servizi;2;16;2;Liquidazione Fattura Nr. 1022013874  del 01/02/2022 - 30027076-015 pickup settembre 21;1274;1;3;2;16;2
POSTE ITALIANE SPA SOCIETA' CON SOCIO UNICO;28/02/2022;Spese postali;73,50;0,00;0,00;ZAB3170CF7;1;3;Acquisto di beni e servizi;2;16;2;Liquidazione Fattura Nr. 1022014634  del 01/02/2022 - 30027076-015 pick up novembre 2021;1275;1;3;2;16;2
POSTE ITALIANE SPA SOCIETA' CON SOCIO UNICO;28/02/2022;Spese postali;77,00;0,00;0,00;ZAB3170CF7;1;3;Acquisto di beni e servizi;2;16;2;Liquidazione Fattura Nr. 1022015509  del 01/02/2022 - 30027076-015 pickup dicembre 2021;1276;1;3;2;16;2
U.P.I.E. DI MARLIN RICCARDO & C. SNC;03/03/2022;Giornali e riviste;830,00;0,00;0,00;ZE2338D9B8;1;3;Acquisto di beni e servizi;1;1;1;Liquidazione Fattura Nr. 003 del 01/01/2022 - Fornitura generica;1278;1;3;1;1;1
CENTRO STUDI DISCIPLINE ORIENTALI;10/03/2022;Trasferimenti correnti a Istituzioni Sociali Private ;200,00;0,00;0,00;;1;4;Trasferimenti correnti;4;1;1;"PROGETTO GIOCO SPORT A.S. 2019/2020 - CONTRIBUTO PER IL PROGETTO ""IL NIDO DELLA FENICE"" A CENTRO STUDI DISCIPLINE ORIENTALI";1291;1;4;4;1;1
ISTITUTO COMPRENSIVO DI VINCI;10/03/2022;Trasferimenti correnti a Ministero dell'Istruzione - Istituzioni scolastiche;7.000,00;0,00;0,00;;1;4;Trasferimenti correnti;1;1;2;CONTRIBUTI COMUNALI PER L'ORGANIZZAZIONE DELL'ISTITUTO COMPRENSIVO DI VINCI A.S. 2018/2019 - 3� PARTE;1286;1;4;1;1;2
ISTITUTO COMPRENSIVO DI VINCI;10/03/2022;Trasferimenti correnti a Ministero dell'Istruzione - Istituzioni scolastiche;3.500,00;0,00;0,00;;1;4;Trasferimenti correnti;1;1;2;CONTRIBUTI COMUNALI PER SPESE DI ORGANIZZAZIONE DELL'ISTITUTO COMPRENSIVO DI VINCI A.S. 2019/2020 - 2� PARTE;1285;1;4;1;1;2
ISTITUTO COMPRENSIVO DI VINCI;10/03/2022;Trasferimenti correnti a altre Amministrazioni Locali n.a.c.;2.500,00;0,00;0,00;;1;4;Trasferimenti correnti;1;2;999;"CONTRIBUTI COMUNALI PROGETTO ""EDUCARE ALLA PACE"" DELL'IST. COMPRENSIVO DI VINCI A.S. 2019/2020 - 2� PARTE";1290;1;4;1;2;999
ISTITUTO COMPRENSIVO DI VINCI;10/03/2022;Trasferimenti correnti a Ministero dell'Istruzione - Istituzioni scolastiche;3.500,00;0,00;0,00;;1;4;Trasferimenti correnti;1;1;2;CONTRIBUTI COMUNALI PER SPESE DI ORGANIZZAZIONE DELL'ISTITUTO COMPRENSIVO DI VINCI A.S. 2020/2021 - 2� PARTE;1287;1;4;1;1;2
ISTITUTO COMPRENSIVO DI VINCI;10/03/2022;Trasferimenti correnti a Ministero dell'Istruzione - Istituzioni scolastiche;5.000,00;0,00;0,00;;1;4;Trasferimenti correnti;1;1;2;"PROGETTO ""OFFICINA DEL SUCCESSO"" A SOSTEGNO DEL DISAGIO SCOLASTICO - CONTRIBUTO COMUNALE 2020/2021 SECONDA E ULTIMA PARTE";1288;1;4;1;1;2
MELANI MITA;10/03/2022;Altri assegni e sussidi assistenziali;150,00;0,00;0,00;;1;4;Trasferimenti correnti;2;2;999;CONTRIBUTO CITTADINI ATTIVITA' SPORTIVE E RICREATIVE 2021 COVID;1312;1;4;2;2;999
DI BELLA  RAFFAELLA;10/03/2022;Altri assegni e sussidi assistenziali;275,25;0,00;0,00;;1;4;Trasferimenti correnti;2;2;999;CONTRIBUTO CITTADINI ATTIVITA' SPORTIVE E RICREATIVE 2021 COVID;1309;1;4;2;2;999
MAZZANTI MONICA IN QUALITA' DI AGENTE CONTABILE - ECONOMO COMUNALE;10/03/2022;Altre spese per servizi amministrativi;1.397,00;0,00;0,00;;1;3;Acquisto di beni e servizi;2;16;999;Acquisto marche da bollo per recupero straordinario loculi cimitero Sovigliana;1282;1;3;2;16;999
ASSOCIAZIONE PORTE APERTE  APS-ONLUS;10/03/2022;Altri servizi diversi n.a.c.;2.836,20;0,00;0,00;Z943325778;1;3;Acquisto di beni e servizi;2;99;999;LIQUIDAZIONE FATTURA NR. FATTPA 1_22  DEL 20/02/2022 - SERVIZIO DI PORTIERATO NOVEMBRE-DICEMBRE 2021. - ESIGIBILITA IMMEDIATA PER REGIME FISCALE IVA 398/1991;1321;1;3;2;99;999
ASSOCIAZIONE PORTE APERTE  APS-ONLUS;10/03/2022;Altri servizi diversi n.a.c.;373,32;0,00;0,00;ZF0339B33C;1;3;Acquisto di beni e servizi;2;99;999;LIQUIDAZIONE FATTURA NR. FATTPA 2_22  DEL 20/02/2022 - ORE AGGIUNTIVE FINE ANNO 2021. ESIGIBILITA IMMEDIATA PER REGIME FISCALE IVA 398/1991;1320;1;3;2;99;999
ASSOCIAZIONE PORTE APERTE  APS-ONLUS;10/03/2022;Altri servizi diversi n.a.c.;592,19;0,00;0,00;ZE433D1A94;1;3;Acquisto di beni e servizi;2;99;999;LIQUIDAZIONE FATTURA NR. FATTPA 3_22  DEL 20/02/2022 - ALTRE ORE AGGIUNTIVE FINE ANNO 2021- ESIGIBILITA IMMEDIATA PER REGIME FISCALE IVA 398/1991;1319;1;3;2;99;999
CECCHI  SIMONE;10/03/2022;Altri assegni e sussidi assistenziali;241,50;0,00;0,00;;1;4;Trasferimenti correnti;2;2;999;CONTRIBUTO CITTADINI ATTIVITA' SPORTIVE E RICREATIVE 2021 COVID;1305;1;4;2;2;999
MINISTERO DELL'INTERNO DIREZIONE CENTRALE PER I SERVIZI DEMOGRAFICI;10/03/2022;Trasferimenti correnti a Ministeri;1.595,05;0,00;0,00;;1;4;Trasferimenti correnti;1;1;1;COMUNE DI VINCI, M059, CORRISPETTIVO PER RILASCIO N. 95 CIE PERIODO 16-31 DICEMBRE 2021;1284;1;4;1;1;1
MICHELUCCI LEONARDO;10/03/2022;Altri assegni e sussidi assistenziali;300,00;0,00;0,00;;1;4;Trasferimenti correnti;2;2;999;CONTRIBUTO CITTADINI ATTIVITA' SPORTIVE E RICREATIVE 2021 COVID;1313;1;4;2;2;999
NOCERINO LIBERTO;10/03/2022;Altri assegni e sussidi assistenziali;250,00;0,00;0,00;;1;4;Trasferimenti correnti;2;2;999;CONTRIBUTO CITTADINI ATTIVITA' SPORTIVE E RICREATIVE 2021 COVID;1315;1;4;2;2;999
SANTINI CHRISTIAN;10/03/2022;Altri assegni e sussidi assistenziali;46,50;0,00;0,00;;1;4;Trasferimenti correnti;2;2;999;CONTRIBUTO CITTADINI ATTIVITA' SPORTIVE E RICREATIVE 2021 COVID;1317;1;4;2;2;999
DEGLI INNOCENTI ELENA;10/03/2022;Altri assegni e sussidi assistenziali;300,00;0,00;0,00;;1;4;Trasferimenti correnti;2;2;999;CONTRIBUTO CITTADINI ATTIVITA' SPORTIVE E RICREATIVE 2021 COVID;1308;1;4;2;2;999
CHIAPPINI  ALESSANDRA;10/03/2022;Altri assegni e sussidi assistenziali;150,00;0,00;0,00;;1;4;Trasferimenti correnti;2;2;999;CONTRIBUTO CITTADINI ATTIVITA' SPORTIVE E RICREATIVE 2021 COVID;1306;1;4;2;2;999
L' ANGOLO SNC DI CARBONCINI BIANCAMARIA;10/03/2022;Pubblicazioni;155,02;0,00;0,00;;1;3;Acquisto di beni e servizi;1;1;2;Liquidazione Fattura Nr. 01/00002  del 14/01/2022 - Fattura - scissione dei pagamenti;1289;1;3;1;1;2
MASTRULLO PAOLA;10/03/2022;Altri assegni e sussidi assistenziali;250,00;0,00;0,00;;1;4;Trasferimenti correnti;2;2;999;CONTRIBUTO CITTADINI ATTIVITA' SPORTIVE E RICREATIVE 2021 COVID;1310;1;4;2;2;999
CHIAVACCI SARA;10/03/2022;Altri assegni e sussidi assistenziali;150,00;0,00;0,00;;1;4;Trasferimenti correnti;2;2;999;CONTRIBUTO CITTADINI ATTIVITA' SPORTIVE E RICREATIVE 2021 COVID;1307;1;4;2;2;999
TERMINAL VIDEO ITALIA S.R.L.;10/03/2022;Pubblicazioni;202,12;0,00;0,00;Z4C3212E31;1;3;Acquisto di beni e servizi;1;1;2;Liquidazione Fattura Nr. 22002582 del 26/01/2022 - Fornitura libri per biblioteca leonardiana;1292;1;3;1;1;2
TERMINAL VIDEO ITALIA S.R.L.;10/03/2022;Pubblicazioni;99,85;0,00;0,00;Z4C3212E31;1;3;Acquisto di beni e servizi;1;1;2;Liquidazione Fattura Nr. 22003198 del 31/01/2022 - Fornitura libri per biblioteca leonardiana;1293;1;3;1;1;2
TERMINAL VIDEO ITALIA S.R.L.;10/03/2022;Pubblicazioni;146,24;0,00;0,00;Z4C3212E31;1;3;Acquisto di beni e servizi;1;1;2;Liquidazione Fattura Nr. 22003617 del 02/02/2022 - Fornitura generica;1294;1;3;1;1;2
TERMINAL VIDEO ITALIA S.R.L.;10/03/2022;Pubblicazioni;141,50;0,00;0,00;Z4C3212E31;1;3;Acquisto di beni e servizi;1;1;2;Liquidazione Fattura Nr. 22004227 del 08/02/2022 - Fornitura generica;1295;1;3;1;1;2
TERMINAL VIDEO ITALIA S.R.L.;10/03/2022;Pubblicazioni;142,94;0,00;0,00;Z4C3212E31;1;3;Acquisto di beni e servizi;1;1;2;Liquidazione Fattura Nr. 22005840 del 21/02/2022 - Fornitura libri per biblioteca leonardiana;1296;1;3;1;1;2
TERMINAL VIDEO ITALIA S.R.L.;10/03/2022;Pubblicazioni;180,89;0,00;0,00;Z4C3212E31;1;3;Acquisto di beni e servizi;1;1;2;Liquidazione Fattura Nr. 22006813 del 28/02/2022 - Fornitura libri per biblioteca leonardiana;1297;1;3;1;1;2
BOSSO VINCENZO;10/03/2022;Altri assegni e sussidi assistenziali;300,00;0,00;0,00;;1;4;Trasferimenti correnti;2;2;999;CONTRIBUTO CITTADINI ATTIVITA' SPORTIVE E RICREATIVE 2021 COVID;1300;1;4;2;2;999
CANNETI SILVIA;10/03/2022;Altri assegni e sussidi assistenziali;150,00;0,00;0,00;;1;4;Trasferimenti correnti;2;2;999;CONTRIBUTO CITTADINI ATTIVITA' SPORTIVE E RICREATIVE 2021 COVID;1301;1;4;2;2;999
CATALANO RAFFAELE;10/03/2022;Altri assegni e sussidi assistenziali;140,00;0,00;0,00;;1;4;Trasferimenti correnti;2;2;999;CONTRIBUTO CITTADINI ATTIVITA' SPORTIVE E RICREATIVE 2021 COVID;1303;1;4;2;2;999
RENAUDI ANTONIO;10/03/2022;Altri assegni e sussidi assistenziali;298,57;0,00;0,00;;1;4;Trasferimenti correnti;2;2;999;CONTRIBUTO CITTADINI ATTIVITA' SPORTIVE E RICREATIVE 2021 COVID;1316;1;4;2;2;999
CAVERNI GIANLUCA;10/03/2022;Altri assegni e sussidi assistenziali;450,00;0,00;0,00;;1;4;Trasferimenti correnti;2;2;999;CONTRIBUTO CITTADINI ATTIVITA' SPORTIVE E RICREATIVE 2021 COVID;1304;1;4;2;2;999
BERTI RAFFAELLA;10/03/2022;Altri assegni e sussidi assistenziali;150,00;0,00;0,00;;1;4;Trasferimenti correnti;2;2;999;CONTRIBUTO CITTADINI ATTIVITA' SPORTIVE E RICREATIVE 2021 COVID;1299;1;4;2;2;999
MORI GIOVANNI;10/03/2022;Altri assegni e sussidi assistenziali;150,00;0,00;0,00;;1;4;Trasferimenti correnti;2;2;999;CONTRIBUTO CITTADINI ATTIVITA' SPORTIVE E RICREATIVE 2021 COVID;1314;1;4;2;2;999
CARFAGNO GIOVANNI;10/03/2022;Altri assegni e sussidi assistenziali;150,00;0,00;0,00;;1;4;Trasferimenti correnti;2;2;999;CONTRIBUTO CITTADINI ATTIVITA' SPORTIVE E RICREATIVE 2021 COVID;1302;1;4;2;2;999
MAZZEI FILIPPO;10/03/2022;Altri assegni e sussidi assistenziali;150,00;0,00;0,00;;1;4;Trasferimenti correnti;2;2;999;CONTRIBUTO CITTADINI ATTIVITA' SPORTIVE E RICREATIVE 2021 COVID;1311;1;4;2;2;999
ASSOCIAZIONE PRO LOCO VINCI;10/03/2022;Trasferimenti correnti a Istituzioni Sociali Private ;4.200,00;0,00;0,00;;1;4;Trasferimenti correnti;4;1;1;PRO LOCO VINCI SOUND CONTRIBUTO 2021;1279;1;4;4;1;1
ASSOCIAZIONE PRO LOCO VINCI;10/03/2022;Trasferimenti correnti a Istituzioni Sociali Private ;1.500,00;0,00;0,00;;1;4;Trasferimenti correnti;4;1;1;PRO LOCO A FILO D' OLIO CONRTIBUTO 2021;1280;1;4;4;1;1
ASSOCIAZIONE PRO LOCO VINCI;10/03/2022;Trasferimenti correnti a Istituzioni Sociali Private ;500,00;0,00;0,00;;1;4;Trasferimenti correnti;4;1;1;PRO LOCO CONTRIBUTO VERSO ECOVINCI 2021;1281;1;4;4;1;1
VANNI DANIELE;10/03/2022;Altri assegni e sussidi assistenziali;300,00;0,00;0,00;;1;4;Trasferimenti correnti;2;2;999;CONTRIBUTO CITTADINI ATTIVITA' SPORTIVE E RICREATIVE 2021 COVID;1318;1;4;2;2;999
ARCA COOPERATIVA SOCIALE  RL;11/03/2022;Contratti di servizio di asilo nido;11.952,49;0,00;569,17;8388889A31;1;3;Acquisto di beni e servizi;2;15;10;Liquidazione Fattura Nr. 178/E  del 31/01/2022 (di cui Split per euro 569,17) - Vendita Iva da versare a cura del cessionario o committente ai sensi dell'art. 17-ter del D.P.R. n. 633/1972 (scissione dei pagamenti);1327;1;3;2;15;10
ARCA COOPERATIVA SOCIALE  RL;11/03/2022;Contratti di servizio di asilo nido;26.195,02;0,00;1.247,38;8388889A31;1;3;Acquisto di beni e servizi;2;15;10;Liquidazione Fattura Nr. 177/E  del 31/01/2022 (di cui Split per euro 1.247,38) - Vendita Iva da versare a cura del cessionario o committente ai sensi dell'art. 17-ter del D.P.R. n. 633/1972 (scissione dei pagamenti);1328;1;3;2;15;10
O.L.V. SRL IMPIANTI ELETTRICI CIVILI ED INDUSTRIALI;11/03/2022;Altre spese per contratti di servizio pubblico;17.659,00;0,00;3.184,41;8649571BC8;1;3;Acquisto di beni e servizi;2;15;999;Liquidazione Fattura Nr. 35  del 16/02/2022 (di cui Split per euro 3.184,41) - OPERAZIONI CIMITERIALI E SERVIZIO ILLUMINAZIONE VOTIVA;1330;1;3;2;15;999
O.L.V. SRL IMPIANTI ELETTRICI CIVILI ED INDUSTRIALI;11/03/2022;Altre spese per contratti di servizio pubblico;7.037,01;0,00;1.268,97;88801947E8;1;3;Acquisto di beni e servizi;2;15;999;Liquidazione Fattura Nr. 36  del 16/02/2022 (di cui Split per euro 1.268,97) - OPERAZIONI CIMITERIALI E SERVIZIO ILLUMINAZIONE VOTIVA;1331;1;3;2;15;999
CRISTOFORO SOC.COOP. SOCIALE ONLUS;11/03/2022;Altri servizi diversi n.a.c.;6.892,36;0,00;626,58;8589752796;1;3;Acquisto di beni e servizi;2;99;999;Liquidazione Fattura Nr. 188. 20006/ 2022  del 31/01/2022 (di cui Split per euro 626,58) - FATTURA;1324;1;3;2;99;999
ALIA SERVIZI AMBIENTALI S.P.A.;11/03/2022;Contratti di servizio per la raccolta rifiuti;279.698,10;0,00;25.427,10;4726694F44;1;3;Acquisto di beni e servizi;2;15;4;LIQUIDAZIONE FATTURA NR. 0000132326  DEL 28/02/2022 (DI CUI SPLIT PER EURO 25.427,10) -  DETERMINA 2 DEL 17.01.2022  IVA DA VERSARE A CURA DEL CESSIONARIO O COMMITTENTE AI SENSI DELL'ART.17 -TER DEL D.P.R. NR.633/1972 SCISSIONE PAGAMENTI;1326;1;3;2;15;4
IL PICCOLO PRINCIPE SOC. COOP. SOC. ONLUS;11/03/2022;Altri servizi diversi n.a.c.;6.957,56;0,00;331,31;754997761D;1;3;Acquisto di beni e servizi;2;99;999;Liquidazione Fattura Nr. 000001-2C0  del 24/01/2022 (di cui Split per euro 331,31) - Fatt. regime sciss.pag.;1329;1;3;2;99;999
BIBLIOTHEQUE DE L'INSTITUT DE FRANCE;11/03/2022;Altre licenze;40,00;0,00;0,00;;1;3;Acquisto di beni e servizi;2;7;7;Liquidazione Fattura Nr. 31012201bif del 31/01/2022 - IMMAGINE;1325;1;3;2;7;7
FARALLI GIULIANO;11/03/2022;Compensi agli organi istituzionali di revisione, di controllo ed altri incarichi istituzionali dell'amministrazione;11.963,52;1.885,80;0,00;;1;3;Acquisto di beni e servizi;2;1;8;LIQUIDAZIONE FATTURA NR. 1/PA  DEL 19/01/2022 - REVISORE DEI CONTI ANNO 2021;1323;1;3;2;1;8
GENERALI ITALIA SPA;14/03/2022;Altri premi di assicurazione contro i danni;600,00;0,00;0,00;Z6E33F55C3;1;10;Altre spese correnti;4;1;999;" COPERTURA ASSICURATIVA DA CHIODO A CHIODO DI 2 ROBOT PER L''ESPOSIZIONE DAL TITOLO ""A VIEW FROM WITHIN"", IN COLLABORAZIONE CON L'ISTITUTO DI INTELLIGENZA MECCANICA DELLA SCUOLA SUPERIORE SANT'ANNA DI PISA";1332;1;10;4;1;999
UISP - UNIONE ITALIANA SPORT PER TUTTI COMITATO TERRITORIALE EMPOLI VALDELSA;16/03/2022;Altri servizi diversi n.a.c.;3.072,35;0,00;0,00;Z2F334E89D;1;3;Acquisto di beni e servizi;2;99;999;Liquidazione Fattura Nr. 24  del 24/02/2022 - fatturazione effettuata da soggetto che si avvale del regime di cui alla legge16/12/1991 n.398 non assoggetta a split payment ai sensi della circolare agenzia delle entrate n.15/E del 13/04/2015;1380;1;3;2;99;999
KUWAIT PETROLEUM ITALIA S.P.A.;16/03/2022;Carburanti, combustibili e lubrificanti ;536,02;0,00;96,66;9010548B6D;1;3;Acquisto di beni e servizi;1;2;2;Liquidazione Fattura Nr. PJ05082761  del 28/02/2022 (di cui Split per euro 96,66) - Fornitura generica;1351;1;3;1;2;2
KUWAIT PETROLEUM ITALIA S.P.A.;16/03/2022;Carburanti, combustibili e lubrificanti ;460,66;0,00;83,07;9010548B6D;1;3;Acquisto di beni e servizi;1;2;2;Liquidazione Fattura Nr. PJ05082761  del 28/02/2022 (di cui Split per euro 83,07) - Fornitura generica;1352;1;3;1;2;2
KUWAIT PETROLEUM ITALIA S.P.A.;16/03/2022;Carburanti, combustibili e lubrificanti ;1.305,40;0,00;235,40;9010548B6D;1;3;Acquisto di beni e servizi;1;2;2;Liquidazione Fattura Nr. PJ05082761  del 28/02/2022 (di cui Split per euro 235,40) - Fornitura generica;1353;1;3;1;2;2
ERARIO DELLO STATO PER PAGAMENTO I.V.A.;16/03/2022;Versamenti IVA a debito per le gestioni commerciali;18.137,77;0,00;0,00;;1;10;Altre spese correnti;3;1;1;LIQUIDAZIONI IVA COMMERCIALE ANNO 2022 MESE FEBBRAIO;1458;1;10;3;1;1
EDISON ENERGIA S.P.A.;16/03/2022;Gas;800,80;0,00;38,13;89162702C5;1;3;Acquisto di beni e servizi;2;5;6;BONIFICO A FAVORE DI EDISON ENERGIA S.P.A.LIQUIDAZIONE FATTURA NR. 5950256864  DEL 22/02/2022 (DI CUI SPLIT PER EURO 38,13) - 15964204269553;1382;1;3;2;5;6
EDISON ENERGIA S.P.A.;16/03/2022;Gas;1.201,19;0,00;57,20;89162702C5;1;3;Acquisto di beni e servizi;2;5;6;BONIFICO A FAVORE DI EDISON ENERGIA S.P.A.LIQUIDAZIONE FATTURA NR. 5950256864  DEL 22/02/2022 (DI CUI SPLIT PER EURO 57,20) - 15964204269553;1381;1;3;2;5;6
EDISON ENERGIA S.P.A.;16/03/2022;Gas;1.431,96;0,00;68,19;89162702C5;1;3;Acquisto di beni e servizi;2;5;6;BONIFICO A FAVORE DI EDISON ENERGIA S.P.A.Liquidazione Fattura Nr. 5950256860  del 22/02/2022 (di cui Split per euro 68,19) - 15104203729253;1336;1;3;2;5;6
EDISON ENERGIA S.P.A.;16/03/2022;Gas;1.821,10;0,00;87,72;89162702C5;1;3;Acquisto di beni e servizi;2;5;6;BONIFICO A FAVORE DI EDISON ENERGIA S.P.A.Liquidazione Fattura Nr. 5950256863  del 22/02/2022 (di cui Split per euro 87,72) - 15104203728332;1356;1;3;2;5;6
EDISON ENERGIA S.P.A.;16/03/2022;Gas;1.884,23;0,00;88,72;89162702C5;1;3;Acquisto di beni e servizi;2;5;6;BONIFICO A FAVORE DI EDISON ENERGIA S.P.A.Liquidazione Fattura Nr. 5950256863  del 22/02/2022 (di cui Split per euro 88,72) - 15104203728332;1365;1;3;2;5;6
EDISON ENERGIA S.P.A.;16/03/2022;Gas;3.558,93;0,00;169,47;89162702C5;1;3;Acquisto di beni e servizi;2;5;6;BONIFICO A FAVORE DI EDISON ENERGIA S.P.A.Liquidazione Fattura Nr. 5950256866  del 22/02/2022 (di cui Split per euro 169,47) - 15104203730640;1364;1;3;2;5;6
EDISON ENERGIA S.P.A.;16/03/2022;Gas;2.267,41;0,00;107,97;89162702C5;1;3;Acquisto di beni e servizi;2;5;6;BONIFICO A FAVORE DI EDISON ENERGIA S.P.A.Liquidazione Fattura Nr. 5950256854  del 22/02/2022 (di cui Split per euro 107,97) - 15964204304490;1335;1;3;2;5;6
EDISON ENERGIA S.P.A.;16/03/2022;Gas;769,18;0,00;36,63;89162702C5;1;3;Acquisto di beni e servizi;2;5;6;BONIFICO A FAVORE DI EDISON ENERGIA S.P.A.Liquidazione Fattura Nr. 5950256855  del 22/02/2022 (di cui Split per euro 36,63) - 15104203728249;1355;1;3;2;5;6
EDISON ENERGIA S.P.A.;16/03/2022;Gas;625,14;0,00;29,77;89162702C5;1;3;Acquisto di beni e servizi;2;5;6;BONIFICO A FAVORE DI EDISON ENERGIA S.P.A.Liquidazione Fattura Nr. 5950256862  del 22/02/2022 (di cui Split per euro 29,77) - 15104203729242;1447;1;3;2;5;6
EDISON ENERGIA S.P.A.;16/03/2022;Gas;937,71;0,00;44,65;89162702C5;1;3;Acquisto di beni e servizi;2;5;6;BONIFICO A FAVORE DI EDISON ENERGIA S.P.A.Liquidazione Fattura Nr. 5950256862  del 22/02/2022 (di cui Split per euro 44,65) - 15104203729242;1446;1;3;2;5;6
EDISON ENERGIA S.P.A.;16/03/2022;Gas;4.633,30;0,00;220,63;89162702C5;1;3;Acquisto di beni e servizi;2;5;6;BONIFICO A FAVORE DI EDISON ENERGIA S.P.A.Liquidazione Fattura Nr. 5950256859  del 22/02/2022 (di cui Split per euro 220,63) - 15104203730736;1366;1;3;2;5;6
EDISON ENERGIA S.P.A.;16/03/2022;Gas;4.446,75;0,00;211,75;89162702C5;1;3;Acquisto di beni e servizi;2;5;6;BONIFICO A FAVORE DI EDISON ENERGIA S.P.A.Liquidazione Fattura Nr. 5950256857  del 22/02/2022 (di cui Split per euro 211,75) - 15104203730639;1368;1;3;2;5;6
EDISON ENERGIA S.P.A.;16/03/2022;Gas;87,43;0,00;4,16;89162702C5;1;3;Acquisto di beni e servizi;2;5;6;BONIFICO A FAVORE DI EDISON ENERGIA S.P.A.Liquidazione Fattura Nr. 5950256858  del 22/02/2022 (di cui Split per euro 4,16) - 15104203729241;1334;1;3;2;5;6
EDISON ENERGIA S.P.A.;16/03/2022;Gas;1.020,93;0,00;48,62;89162702C5;1;3;Acquisto di beni e servizi;2;5;6;BONIFICO A FAVORE DI EDISON ENERGIA S.P.A.Liquidazione Fattura Nr. 5950256865  del 22/02/2022 (di cui Split per euro 48,62) - 15104203728281;1357;1;3;2;5;6
EDISON ENERGIA S.P.A.;16/03/2022;Gas;4.938,32;0,00;235,16;89162702C5;1;3;Acquisto di beni e servizi;2;5;6;BONIFICO A FAVORE DI EDISON ENERGIA S.P.A.Liquidazione Fattura Nr. 5950256861  del 22/02/2022 (di cui Split per euro 235,16) - 15104203730554;1452;1;3;2;5;6
EDISON ENERGIA S.P.A.;16/03/2022;Gas;1.354,09;0,00;64,48;89162702C5;1;3;Acquisto di beni e servizi;2;5;6;BONIFICO A FAVORE DI EDISON ENERGIA S.P.A.Liquidazione Fattura Nr. 5950256856  del 22/02/2022 (di cui Split per euro 64,48) - 15104203729400;1449;1;3;2;5;6
CENTRO SERVIZI SOC.COOP.SOCIALE;16/03/2022;Altri servizi diversi n.a.c.;761,00;0,00;36,24;;1;3;Acquisto di beni e servizi;2;99;999;Liquidazione Fattura Nr. 2/PA  del 07/02/2022 (di cui Split per euro 36,24) - FONDO DI SVILUPPO E COESIONE (FSC) ? AVVISO PUBBLICO FINALIZZATO AL SOSTEGNO DELL'ACCOGLIENZA DEI BAMBINI NEI SERVIZI PER LA PRIMA INFANZIA (3-36 MESI) A.E. 2021/;1454;1;3;2;99;999
O.L.V. SRL IMPIANTI ELETTRICI CIVILI ED INDUSTRIALI;16/03/2022;Altre spese per contratti di servizio pubblico;3.451,99;0,00;622,49;834119188F;1;3;Acquisto di beni e servizi;2;15;999;Liquidazione Fattura Nr. 34  del 16/02/2022 (di cui Split per euro 622,49) - OPERAZIONI CIMITERIALI E SERVIZIO ILLUMINAZIONE VOTIVA;1455;1;3;2;15;999
FRANCO COSIMO PANINI EDITORE SPA;16/03/2022;Altri beni e materiali di consumo n.a.c.;59,40;0,00;10,71;Z4E351ED28;1;3;Acquisto di beni e servizi;1;2;999;Liquidazione Fattura Nr. VPA2200006  del 15/02/2022 (di cui Split per euro 10,71) - CONTO VENDITA RIPRODUZIONI A STAMPA FINE ART -  PAGAMENTO ALL'IMPRESA FORNITRICE DEL CORRISPETTIVO SPETTANTE PER LA MERCE  VENDUTA MESE DI DICEMBRE 2021;1374;1;3;1;2;999
CRISTOFORO SOC.COOP. SOCIALE ONLUS;16/03/2022;Altri servizi diversi n.a.c.;1.101,61;0,00;100,15;8589752796;1;3;Acquisto di beni e servizi;2;99;999;Liquidazione Fattura Nr. 189. 20006/ 2022  del 31/01/2022 (di cui Split per euro 100,15) - FATTURA;1371;1;3;2;99;999
VAR GROUP S.P.A. CON SOCIO UNICO;16/03/2022;Gestione e manutenzione applicazioni;1.845,25;0,00;332,75;Z2033A52E0;1;3;Acquisto di beni e servizi;2;19;1;Liquidazione Fattura Nr. 22/2E/000044 del 31/01/2022 - FATTURA SEZ.E Ove dovuto, contributo SIAE per D.L. N.68 del 9/4/2003, incluso nel prezzo. Contributo Ambientale CONAI assolto (di cui Split per euro 332,75);1373;1;3;2;19;1
A.N.A.P.O.O. ASSOCIAZIONE NAZIONALE ASSAGGIATORI PROFESSIONISTI DI OLIO DI OLIVA;16/03/2022;Altri servizi diversi n.a.c.;2.867,00;0,00;517,00;Z3C344D6F2;1;3;Acquisto di beni e servizi;2;99;999;Liquidazione Fattura Nr. 2/PA  del 22/02/2022 (di cui Split per euro 517,00) - organizzazione e gestione 21� concorso olio qualit� del Montalbano;1456;1;3;2;99;999
CEL NETWORK S.R.L.;16/03/2022;Accesso a banche dati e a pubblicazioni on line;1.401,40;0,00;53,90;Z063403B98;1;3;Acquisto di beni e servizi;2;5;3;Liquidazione Fattura Nr. 250  del 31/01/2022 (di cui Split per euro 53,90) - Abbonamento annuale 2022;1350;1;3;2;5;3
CEL NETWORK S.R.L.;16/03/2022;Accesso a banche dati e a pubblicazioni on line;127,40;0,00;4,90;Z063403B98;1;3;Acquisto di beni e servizi;2;5;3;Liquidazione Fattura Nr. 250  del 31/01/2022 (di cui Split per euro 4,90) - Abbonamento annuale 2022;1349;1;3;2;5;3
IL PICCOLO PRINCIPE SOC. COOP. SOC. ONLUS;16/03/2022;Altri servizi diversi n.a.c.;3.339,63;0,00;159,03;754997761D;1;3;Acquisto di beni e servizi;2;99;999;Liquidazione Fattura Nr. 000002-2C0  del 24/01/2022 (di cui Split per euro 159,03) - Fatt. regime sciss.pag.;1451;1;3;2;99;999
IL PICCOLO PRINCIPE SOC. COOP. SOC. ONLUS;16/03/2022;Altri servizi diversi n.a.c.;2.897,08;0,00;137,96;7784415E76;1;3;Acquisto di beni e servizi;2;99;999;Liquidazione Fattura Nr. 000087-2C0  del 31/12/2021 (di cui Split per euro 137,96) - Fatt. regime sciss.pag.;1450;1;3;2;99;999
SOCIETA' DIDEROT SOC. COOP.;16/03/2022;Altre spese per servizi amministrativi;1.637,12;0,00;295,22;Z0D34898DD;1;3;Acquisto di beni e servizi;2;16;999;Liquidazione Fattura Nr. FTE-6  del 08/02/2022 (di cui Split per euro 295,22) - SERVIZIO DI ARCHIVIO CORRENTE E DI DEPOSITO PRESSO IL COMUNE DI VINCI mese di gennaio 2022 determinazione n. 283 del 23/12/2021;1333;1;3;2;16;999
DOG'S TOWN STRANOMONDO SAS;16/03/2022;Trasferimenti correnti a Istituzioni Sociali Private ;325,74;0,00;58,74;Z4930054E2;1;4;Trasferimenti correnti;4;1;1;Liquidazione Fattura Nr. 2/02  del 21/01/2022 (di cui Split per euro 58,74) - Fornitura generica;1457;1;4;4;1;1
